Workbook

Sheet Poročilo o izvedenem tekmovanju
B1: ZAPISNIK
B3: o izvedenem tekmovanju v streljanju z zračno puško in pištolo
B6: Izvajalec (društvo): | C6: Strelska družina KAMNIK, Kamnik
B8: Datum: | C8: 2024-10-26 | F8: Pričetek ob: | H8: 08:00:00
B10: Streljalo se je na (število) : | D10: 10 | F10: elektronskih tarč | H10: stez z nosilci papirnatih tarč
B13: Sodelujoča društva: | C13: Strelsko društvo DOMŽALE, Domžale
C14: Strelska družina KAMNIK, Kamnik
C15: Strelsko društvo TRZIN, Trzin
C16: Strelsko društvo ŠKOFJA LOKA, Škofja Loka
C17: Strelsko društvo GORENJA VAS, Gorenja vas
C18: Strelsko društvo Lotrič ŽELEZNIKI, Železniki
C19: Strelsko društvo PREDDVOR, Preddvor
B22: Posebnosti:
B28: Glavni sodnik : | C28: ZORE Franc , RS , P01968
B30: potrjujem, da je tekmovanje izvedeno v skladu s Pravilnikom o tekmovanju za Pokal prijateljstva SZS.
B31: Doseženi rezultati so resnični in pravilni.
B34: Sodnik: | C34: SERŠA Pavel , RS , P02020
B35: Sodnik: | C35: ZORE Franc , RS , P01968
B38: Vodja tekmovanja: | C38: RADEJ Roman
B41: V (kraj): | C41: Kamnik
B43: Datum: | C43: 2024-10-26
J46: Obr.: 17.10.2023
B50: OPOMNIK ZA IZVEDBO TEKMOVANJA
B52: Tekmovanje s serijsko zračno puško za Pokal prijateljstva SZS v kategorijah U11, U13 in U15 se izvaja
B53: po regijah. Lahko se izvede na več streliščih, pogoj je, da sta prisotni vsaj dve društvi.
B54: Datume in izvajalce za posamezna društva določi regijska komisija.
B55: Vsak izvajalec pošlje rezultate v excelu sam in se ne združujejo po regijah. Najkasneje do 11.ure v soboto
B56: v tednu tekme po koledarju tekmovanj se pošljejo po e-mailu na: rezultatiszs@gmail.com
B57: Dokument se shrani pod imenom kratice izvajalca, datuma tekme in krog (SVE20231024-1.krog)
B59: Tekmovanje sodi sodnik z veljavno licenco. Organizator zagotovi pravila ISSF, Pravilnik o tekmovanju za
B60: pokal prijateljstva SZS, štartno listo in morebiti pripravi seznam za elektronske tarče.
B62: Prijava tekmovalcev
B63: Odprta bo ePrijava do petka v tednu pred tekmo. Članice zveze svoje registrirane tekmovalce prijavijo
B64: preko ePrijave v ustrezno starostno kategorijo. Opozarjamo na pravilno prijavo, saj kasneje prehod
B65: med starostnimi kategorijami ni dovoljen. Prav tako opozarjamo na najnižjo dovoljeno starost.
B66: Zelo pomembna je pravilna identifikacija z BIB, saj se ob morebiti ročno izpisani napačni številki rezultat
B67: pripiše drugemu tekmovalcu.
B69: Tekmovalca, ki še ni registriran zabeležite v seznam "ePrijava in Navodila" ter mu določite začasno BIB z
B70: vpisom tudi rojstnega podatka. Nastop takšnega tekmovalca je potrebno prijaviti organizatorju preko maila
B71: zaradi izdelave časovnice. Neregistriran tekmovalec ima lahko samo dva nastopa, pred tretjim zaporednim
B72: turnirjem mora biti registriran sicer se briše iz skupnih rezultatov.
B74: Izdelava štartne liste
B75: Ob zaključku ePrijave vsak organizator iz spletne strani kopira vse prijavljene tekmovalce in jih prilepi v seznam
B76: ePrijava in Navodila. Nato na seznamu, mogoče v stolpcu K v seznamu označi z "1" tekmovalce, ki bodo tekmovali
B77: pri njemu, jih razvrsti in tako dobi vse na vrh liste. Nato določi skupino in strelsko mesto.
B79: Izpolnitev obrazca za rezultate
B80: Po starostnih kategorijah se iz seznama kopira ali pripiše v seznam za rezultate samo BIB pri moških oz. ženskih
B81: tekmovalcih (paziti, da je vpisan pod pravilni spol). Ostale podatke prenese samodejno, vpišemo samo še rezultate. Enako je
B82: za ekipna tekmovanja. Vpiše se samo BIB tekmovalca, ki je v ekipi, ostalo samodejno.
B83: Pri ocenjevanju na elektronskih tarčah se vpišejo tudi nc*.
B84: V kolikor tekmovalca nimate v seznamu ePrijava in Navodila ga ne morete vpisat v seznam za rezultate.
B87: Obstaja možnost, da se bo obrazec nadgrajeval, zato to spremljajte posodobitve na spletu SZS v Obvestilih SZS
B88: https://strelska-zveza.si/sl/informacije/55-obvestila-szs/323-drzavne-lige-z-zracnim-orozjem-2023-2024.html
B90: Z izpolnjenim seznamom rokujte v skladu z zakonom, saj vsebuje osebne podatke. Letnice rojstva se v
B91: biltenih tekmovanj ne prikažejo, za izvajalca pa so pomembni zaradi razvrstitve v ustrezno kategorijo.
B93: Rezultati (listki tiskalnika SIUS; pdf izpis rezultata elektronske tarče; papirnate tarče, časovnica...) se pri izvajalcu
B94: arhivirajo zaradi potrebe po naknadni kontroli ali nadzoru.
B96: Vodje ekip so dolžni pri organizatorju preveriti končne rezultate in pravilen vpis v ustrezno starostno kategorijo .

Sheet PRIJAVA
A1: TEKMOVANJE: 2.DL, GSL, 4. SZ REGIJA
C3: ČASOVNICA | H3: DNE: 17.10, 24.10. in 26.10.2024 | I3: STRELIŠČE KAMNIK | M3: Strelov | O3: KATEGORIJA IN DISCIPLINA
C4: DAN STRELJANJA | D4: SKUPINA | E4: KLIC | F4: PRIPR. IN POSK. ČAS | G4: START | H4: STOP | I4: SKUPAJ V SKUPINI
C5: četrtek 17.10. | D5: 1 | E5: 16.50 | F5: 17.00 | G5: 17.15 | H5: 17.40 | I5: 10 | M5: 20 | O5: U11 MLAJŠI DEČKI - SERIJSKA PUŠKA
C6: četrtek 17.10. | D6: 2 | E6: 17.50 | F6: 18.00 | G6: 18.15 | H6: 18.40 | I6: 10 | M6: 20 | O6: U11 MLAJŠE DEKLICE - SERIJSKA PUŠKA
C7: četrtek 17.10. | D7: 3 | E7: 18.50 | F7: 19.00 | G7: 19.15 | H7: 19.40 | I7: 6 | M7: 20 | O7: U13 DEČKI - SERIJSKA PUŠKA
M8: 20 | O8: U13 DEKLICE - SERIJSKA PUŠKA
C9: četrtek 24.10. | D9: 1 | E9: 13.35 | F9: 13.45 | G9: 14.00 | H9: 14.50 | I9: 2 | M9: 20 | O9: U15 STAREJŠI DEČKI - SERIJSKA PUŠKA
C10: četrtek 24.10. | D10: 2 | E10: 16.00 | F10: 16.10 | G10: 16.25 | H10: 17.15 | I10: 8 | M10: 20 | O10: U15 STAREJŠE DEKLICE - SERIJSKA PUŠKA
C11: četrtek 24.10. | D11: 3 | E11: 17.25 | F11: 17.35 | G11: 17.50 | H11: 18.40 | I11: 7 | M11: 20 | O11: U15 STAREJŠI DEČKI - PUŠKA
C12: četrtek 24.10. | D12: 4 | E12: 18.50 | F12: 19.00 | G12: 19.15 | H12: 20.05 | I12: 10 | M12: 20 | O12: U15 STAREJŠE DEKLICE - PUŠKA
M13: 20 | O13: U15 STAREJŠI DEČKI - PIŠTOLA
C14: sobota 26.10. | D14: 5 | E14: 8.00 | F14: 8.10 | G14: 8.25 | H14: 9.15 | I14: 8 | M14: 20 | O14: U15 STAREJŠE DEKLICE - PIŠTOLA
C15: sobota 26.10. | D15: 6 | E15: 9.25 | F15: 9.35 | G15: 9.50 | H15: 10.40 | I15: 9 | M15: 40 | O15: U17 KADETI - PUŠKA
C16: sobota 26.10. | D16: 7 | E16: 10.50 | F16: 11.00 | G16: 11.15 | H16: 12.05 | I16: 8 | M16: 40 | O16: U17 KADETINJE - PUŠKA
C17: sobota 26.10. | D17: 8 | E17: 12.15 | F17: 12.25 | G17: 12.40 | H17: 13.30 | I17: 9 | M17: 40 | O17: U17 KADETI - PIŠTOLA
C18: sobota 26.10. | D18: 9 | E18: 13.40 | F18: 13.50 | G18: 14.05 | H18: 14.55 | I18: 9 | M18: 40 | O18: U17 KADETINJE - PIŠTOLA
C19: sobota 26.10. | D19: 10 | E19: 15.05 | F19: 15.15 | G19: 15.30 | H19: 16.20 | I19: 8 | M19: 40 | O19: U21 MLADINCI - PUŠKA
C20: sobota 26.10. | D20: 11 | E20: 16.30 | F20: 16.40 | G20: 16.55 | H20: 17.45 | I20: 7 | M20: 40 | O20: U21 MLADINKE - PUŠKA
M21: 40 | O21: U21 MLADINCI - PIŠTOLA
M22: 40 | O22: U21 MLADINKE - PIŠTOLA
M23: 40 | O23: ČLANI - PUŠKA
M24: 40 | O24: ČLANICE - PUŠKA
M25: 40 | O25: ČLANI - PIŠTOLA
M26: 40 | O26: ČLANICE - PIŠTOLA
M27: 20 | O27: VETERANI - SERIJSKA PUŠKA
M28: 20 | O28: VETERANKE - SERIJSKA PUŠKA
M29: 20 | O29: VETERANI - PIŠTOLA
M30: 20 | O30: VETERANKE - PIŠTOLA
B32: Podatki o prijavljenem tekmovalcu | M32: Časovnica
B33: Štartna št. BIB | C33: Priimek | D33: Ime | E33: Spol M/Ž | F33: Letnica rojstva | G33: Kratica članice | H33: Ime članice | I33: Kategorija in disciplina | J33: Ekipni nastop E | K33: GSL | L33: 2DL | M33: Skupina | N33: Strelsko mesto | O33: Kategorija in disciplina veterani, opomba
B35: 16182 | C35: TOMŠIČ | D35: Jakob | E35: M | F35: 2013 | G35: KAM | H35: SD Kamnik | I35: U13 DEČKI - SERIJSKA PUŠKA | K35: GSL | M35: 1 | N35: 1
B36: 4U1303 | C36: ŽLINDRA | D36: Nejc | E36: M | F36: 2011 | G36: KAM | H36: SD Kamnik | I36: U15 STAREJŠI DEČKI - SERIJSKA PUŠKA | K36: GSL | M36: 1 | N36: 2
B37: 4U1304 | C37: DOBOVŠEK | D37: Jon | E37: M | F37: 2011 | G37: KAM | H37: SD Kamnik | I37: U15 STAREJŠI DEČKI - SERIJSKA PUŠKA | K37: GSL | M37: 1 | N37: 3
B38: 4U1505 | C38: KARAFILOVSKI | D38: Marko | E38: M | F38: 2012 | G38: RAD | H38: SD Radovljica | I38: U15 STAREJŠI DEČKI - SERIJSKA PUŠKA | K38: GSL | M38: 1 | N38: 4
B39: 4U1306 | C39: JUNGIČ | D39: Luka | E39: M | F39: 2012 | G39: RAD | H39: SD Radovljica | I39: U13 DEČKI - SERIJSKA PUŠKA | K39: GSL | M39: 1 | N39: 5
B40: 16016 | C40: MEGUŠAR | D40: Vid | E40: M | F40: 2012 | G40: LŽE | H40: SD Lotrič Železniki | I40: U13 DEČKI - SERIJSKA PUŠKA | K40: GSL | M40: 1 | N40: 6
B41: 16383 | C41: BOGATAJ | D41: Aiša | E41: Ž | F41: 2012 | G41: LŽE | H41: SD Lotrič Železniki | I41: U15 STAREJŠE DEKLICE - SERIJSKA PUŠKA | K41: GSL | M41: 1 | N41: 7
B42: 16017 | C42: MOHORIČ KOSEM | D42: Nik | E42: M | F42: 2011 | G42: LŽE | H42: SD Lotrič Železniki | I42: U15 STAREJŠI DEČKI - SERIJSKA PUŠKA | K42: GSL | M42: 1 | N42: 8
B43: 4U1501 | C43: PREZELJ | D43: Aleksej | E43: M | F43: 2010 | G43: LŽE | H43: SD Lotrič Železniki | I43: U15 STAREJŠI DEČKI - SERIJSKA PUŠKA | K43: GSL | M43: 1 | N43: 9
B44: 4U1302 | C44: BRDNIK | D44: Jaš | E44: M | F44: 2012 | G44: LŽE | H44: SD Lotrič Železniki | I44: U13 DEČKI - SERIJSKA PUŠKA | K44: GSL | M44: 1 | N44: 10
B46: 16058 | C46: GABER | D46: Matej | E46: M | F46: 2013 | G46: ŠLO | H46: SD Škofja Loka | I46: U13 DEČKI - SERIJSKA PUŠKA | K46: GSL | M46: 2 | N46: 1
B47: 16604 | C47: KUMER | D47: Matic | E47: M | F47: 2012 | G47: ŠLO | H47: SD Škofja Loka | I47: U13 DEČKI - SERIJSKA PUŠKA | K47: GSL | M47: 2 | N47: 2
B48: 16602 | C48: AMBROŽIČ | D48: Oskar | E48: M | F48: 2012 | G48: ŠLO | H48: SD Škofja Loka | I48: U13 DEČKI - SERIJSKA PUŠKA | K48: GSL | M48: 2 | N48: 3
B49: 16605 | C49: PORENTA | D49: Oskar | E49: M | F49: 2012 | G49: ŠLO | H49: SD Škofja Loka | I49: U13 DEČKI - SERIJSKA PUŠKA | K49: GSL | M49: 2 | N49: 4
B50: 16473 | C50: DOLENC | D50: Meta | E50: Ž | F50: 2012 | G50: ŠLO | H50: SD Škofja Loka | I50: U13 DEKLICE - SERIJSKA PUŠKA | K50: GSL | M50: 2 | N50: 5
B51: 16054 | C51: RADANOV ZAVRL | D51: Brin | E51: M | F51: 2011 | G51: ŠLO | H51: SD Škofja Loka | I51: U15 STAREJŠI DEČKI - SERIJSKA PUŠKA | K51: GSL | M51: 2 | N51: 6
B52: 16361 | C52: DOLENC | D52: Marcel | E52: M | F52: 2010 | G52: ŠLO | H52: SD Škofja Loka | I52: U15 STAREJŠI DEČKI - SERIJSKA PUŠKA | K52: GSL | M52: 2 | N52: 7
B53: 16037 | C53: GREGORC | D53: Samo | E53: M | F53: 2010 | G53: ŠLO | H53: SD Škofja Loka | I53: U15 STAREJŠI DEČKI - SERIJSKA PUŠKA | K53: GSL | M53: 2 | N53: 8
B54: 16606 | C54: PORENTA | D54: Lara | E54: Ž | F54: 2010 | G54: ŠLO | H54: SD Škofja Loka | I54: U15 STAREJŠE DEKLICE - SERIJSKA PUŠKA | K54: GSL | M54: 2 | N54: 9
B55: 4U1307 | C55: DROLE | D55: Bine | E55: M | F55: 2011 | G55: ŠLO | H55: SD Škofja Loka | I55: U13 DEČKI - SERIJSKA PUŠKA | K55: GSL | M55: 2 | N55: 10
B57: 16109 | C57: PAŠIĆ | D57: Shamil | E57: M | F57: 2013 | G57: TJK | H57: SD Triglav Javornik - Koroška Bela | I57: U13 DEČKI - SERIJSKA PUŠKA | K57: GSL | M57: 3 | N57: 1
B58: 16108 | C58: DESPOTOVIĆ | D58: Lerina | E58: Ž | F58: 2012 | G58: TJK | H58: SD Triglav Javornik - Koroška Bela | I58: U13 DEKLICE - SERIJSKA PUŠKA | K58: GSL | M58: 3 | N58: 2
B59: 16510 | C59: GAUYACQ | D59: Mael | E59: M | F59: 2013 | G59: GVA | H59: SD Gorenja vas | I59: U13 DEČKI - SERIJSKA PUŠKA | K59: GSL | M59: 3 | N59: 3
B60: 16151 | C60: KOŠIR | D60: Ema | E60: Ž | F60: 2013 | G60: GVA | H60: SD Gorenja vas | I60: U13 DEKLICE - SERIJSKA PUŠKA | K60: GSL | M60: 3 | N60: 4
B61: 16321 | C61: SLAK | D61: Melisa | E61: Ž | F61: 2013 | G61: GVA | H61: SD Gorenja vas | I61: U13 DEKLICE - SERIJSKA PUŠKA | K61: GSL | M61: 3 | N61: 5
B62: 16423 | C62: ŠMID | D62: Bine | E62: M | F62: 2013 | G62: PDD | H62: SD Preddvor | I62: U13 DEČKI - SERIJSKA PUŠKA | K62: GSL | M62: 3 | N62: 6
B64: 15975 | C64: JAKSETIČ | D64: Tristan | E64: M | F64: 2010 | G64: KAM | H64: SD Kamnik | I64: U15 STAREJŠI DEČKI - PUŠKA | J64: E | K64: GSL | L64: 2DL | M64: 1 | N64: 5
B65: 14398 | C65: TONIČ | D65: Bojan | E65: M | F65: 1978 | G65: KAM | H65: SD Kamnik | I65: ČLANI - PIŠTOLA | K65: GSL | M65: 1 | N65: 6
M67: 2 | N67: 1
B68: 2VET14 | C68: LEŠNJEK | D68: Darko | E68: M | F68: 1964 | G68: KAM | H68: SD Kamnik | K68: GSL | M68: 2 | N68: 2 | O68: VETERANI - SERIJSKA PUŠKA
B69: 10182 | C69: ZORE | D69: Franc | E69: M | F69: 1960 | G69: KAM | H69: SD Kamnik | I69: ČLANI - PIŠTOLA | K69: GSL | M69: 2 | N69: 3 | O69: VETERANI - PIŠTOLA
B70: 15972 | C70: PIBERNIK | D70: Klemen | E70: M | F70: 1977 | G70: KAM | H70: SD Kamnik | I70: ČLANI - PIŠTOLA | K70: GSL | M70: 2 | N70: 4
B71: 10171 | C71: REPIČ | D71: Marjan | E71: M | F71: 1956 | G71: KAM | H71: SD Kamnik | I71: ČLANI - PIŠTOLA | K71: GSL | M71: 2 | N71: 5 | O71: VETERANI - PIŠTOLA
B72: 16147 | C72: PIBERNIK | D72: Tilen | E72: M | F72: 2006 | G72: KAM | H72: SD Kamnik | I72: U21 MLADINCI - PIŠTOLA | K72: GSL | M72: 2 | N72: 6
B73: 14658 | C73: BRESKVAR | D73: Patricija | E73: Ž | F73: 2006 | G73: KAM | H73: SD Kamnik | I73: U21 MLADINKE - PUŠKA | K73: GSL | M73: 2 | N73: 7
B74: 10183 | C74: RADEJ | D74: Roman | E74: M | F74: 1957 | G74: KAM | H74: SD Kamnik | K74: GSL | M74: 2 | N74: 8 | O74: VETERANI - SERIJSKA PUŠKA
B75: 2VET04 | C75: SMREKAR | D75: Jana | E75: Ž | F75: 1962 | G75: KAM | H75: SD Kamnik | K75: GSL | M75: 2 | N75: 9 | O75: VETERANKE - SERIJSKA PUŠKA
M76: 2 | N76: 10
M78: 3 | N78: 1
B79: 14897 | C79: AHLIN | D79: Veronika | E79: Ž | F79: 2008 | G79: KAM | H79: SD Kamnik | I79: U17 KADETINJE - PUŠKA | J79: E | K79: GSL | L79: 2DL | M79: 3 | N79: 2
M80: 3 | N80: 3
B81: 15693 | C81: JERMOL | D81: Gaber | E81: M | F81: 2010 | G81: KAM | H81: SD Kamnik | I81: U15 STAREJŠI DEČKI - PUŠKA | K81: GSL | L81: 2DL | M81: 3 | N81: 4
M82: 3 | N82: 5
B83: 15974 | C83: KERN | D83: Jakob | E83: M | F83: 2008 | G83: KAM | H83: SD Kamnik | I83: U17 KADETI - PIŠTOLA | K83: GSL | M83: 3 | N83: 6
B84: 2VET03 | C84: BARONIK | D84: Jožef | E84: M | F84: 1940 | G84: KAM | H84: SD Kamnik | K84: GSL | M84: 3 | N84: 7 | O84: VETERANI - SERIJSKA PUŠKA
B85: 2VET01 | C85: SERŠA | D85: Pavel | E85: M | F85: 1955 | G85: KAM | H85: SD Kamnik | K85: GSL | M85: 3 | N85: 8 | O85: VETERANI - SERIJSKA PUŠKA
B86: 2VET02 | C86: URANIČ | D86: Renato | E86: M | F86: 1963 | G86: KAM | H86: SD Kamnik | K86: GSL | M86: 3 | N86: 9 | O86: VETERANI - SERIJSKA PUŠKA
B87: 10171 | C87: REPIČ | D87: Marjan | E87: M | F87: 1956 | G87: KAM | H87: SD Kamnik | K87: GSL | M87: 3 | N87: 10 | O87: VETERANI - SERIJSKA PUŠKA
B89: 15984 | C89: KALIŠNIK | D89: Andraž | E89: M | F89: 1994 | G89: TRZ | H89: SD Trzin | I89: ČLANI - PIŠTOLA | K89: GSL | L89: 2DL | M89: 4 | N89: 1
B90: 13742 | C90: DAVIDOVIĆ | D90: Miroslav | E90: M | F90: 1971 | G90: TRZ | H90: SD Trzin | I90: ČLANI - PIŠTOLA | J90: E | K90: GSL | L90: 2DL | M90: 4 | N90: 2
B91: 15198 | C91: HAFNAR | D91: Matjaž | E91: M | F91: 1973 | G91: ŠLO | H91: SD Škofja Loka | I91: ČLANI - PIŠTOLA | J91: E | K91: GSL | L91: 2DL | M91: 4 | N91: 3
B92: 15197 | C92: BRENKUŠ | D92: Matjaž | E92: M | F92: 1967 | G92: ŠLO | H92: SD Škofja Loka | I92: ČLANI - PIŠTOLA | J92: E | K92: GSL | L92: 2DL | M92: 4 | N92: 4
B93: 16378 | C93: ČEMAŽAR | D93: Niko | E93: M | F93: 1979 | G93: LŽE | H93: SD Lotrič Železniki | I93: ČLANI - PIŠTOLA | K93: GSL | L93: 2DL | M93: 4 | N93: 5
B94: 15650 | C94: ČEMAŽAR | D94: Neža | E94: Ž | F94: 2008 | G94: LŽE | H94: SD Lotrič Železniki | I94: U17 KADETINJE - PUŠKA | K94: GSL | L94: 2DL | M94: 4 | N94: 6
B95: 14548 | C95: KOBLAR | D95: Amadej | E95: M | F95: 2007 | G95: LŽE | H95: SD Lotrič Železniki | I95: U21 MLADINCI - PUŠKA | K95: GSL | L95: 2DL | M95: 4 | N95: 7
B96: 15788 | C96: ŠUBIC | D96: Toni | E96: M | F96: 2007 | G96: LŽE | H96: SD Lotrič Železniki | I96: U21 MLADINCI - PUŠKA | K96: GSL | L96: 2DL | M96: 4 | N96: 8
B97: 2VET12 | C97: FLANDER | D97: Marko | E97: M | F97: 1962 | G97: LŽE | H97: SD Lotrič Železniki | I97: ČLANI - PIŠTOLA | K97: GSL | M97: 4 | N97: 9 | O97: VETERANI - PIŠTOLA
B98: 16621 | C98: LAPAJNE | D98: Darka | E98: Ž | F98: 1976 | G98: TRZ | H98: SD Trzin | I98: ČLANICE - PIŠTOLA | J98: E | K98: GSL | L98: 2DL | M98: 4 | N98: 10
B100: 10365 | C100: ŠTIFTAR | D100: Jurij | E100: M | F100: 1969 | G100: DOM | H100: SD Domžale | I100: ČLANI - PIŠTOLA | J100: E | K100: GSL | L100: 2DL | M100: 5 | N100: 1
B101: 10177 | C101: DIMIC | D101: Klemen | E101: M | F101: 1984 | G101: DOM | H101: SD Domžale | I101: ČLANI - PIŠTOLA | J101: E | K101: GSL | L101: 2DL | M101: 5 | N101: 2
B102: 11526 | C102: ČAUŠEVIČ | D102: Alen | E102: M | F102: 1992 | G102: DOM | H102: SD Domžale | I102: ČLANI - PIŠTOLA | J102: E | K102: GSL | L102: 2DL | M102: 5 | N102: 3
B103: 14068 | C103: KECELJ | D103: Matija | E103: M | F103: 2002 | G103: DOM | H103: SD Domžale | I103: ČLANI - PIŠTOLA | K103: GSL | M103: 5 | N103: 4
B104: 10183 | C104: RADEJ | D104: Roman | E104: M | F104: 1957 | G104: KAM | H104: SD Kamnik | I104: ČLANI - PIŠTOLA | K104: GSL | M104: 5 | N104: 5 | O104: VETERANI - PIŠTOLA
M105: 5 | N105: 6
B106: 16215 | C106: ZUPIN | D106: Nejc | E106: M | F106: 2009 | G106: PDD | H106: SD Preddvor | I106: U17 KADETI - PUŠKA | J106: E | K106: GSL | L106: 2DL | M106: 5 | N106: 7
B107: 15983 | C107: GAŠPERLIN | D107: Lana | E107: Ž | F107: 2008 | G107: PDD | H107: SD Preddvor | I107: U17 KADETINJE - PUŠKA | J107: E | K107: GSL | L107: 2DL | M107: 5 | N107: 8
M108: 5 | N108: 9
B109: 13844 | C109: RAJGELJ | D109: Sergej | E109: M | F109: 2005 | G109: PDD | H109: SD Preddvor | I109: U21 MLADINCI - PUŠKA | J109: E | K109: GSL | L109: 2DL | M109: 5 | N109: 10
B111: 10392 | C111: KOŠIR | D111: Branko | E111: M | F111: 1964 | G111: LŽE | H111: SD Lotrič Železniki | I111: ČLANI - PUŠKA | K111: GSL | M111: 6 | N111: 1
B112: 14863 | C112: AHAČIČ SREDNIK | D112: Nika | E112: Ž | F112: 1960 | G112: LŽE | H112: SD Lotrič Železniki | I112: ČLANICE - PUŠKA | K112: GSL | L112: 2DL | M112: 6 | N112: 2
B113: 2VET06 | C113: RADEJ | D113: Irena | E113: Ž | F113: 1959 | G113: KAM | H113: SD Kamnik | K113: GSL | M113: 6 | N113: 3 | O113: VETERANKE - SERIJSKA PUŠKA
B114: 2VET07 | C114: ŽORŽ | D114: Janko | E114: M | F114: 1953 | G114: ŠLO | H114: SD Škofja Loka | K114: GSL | M114: 6 | N114: 4 | O114: VETERANI - SERIJSKA PUŠKA
B115: 2VET08 | C115: MOHORIČ | D115: Dimitrij | E115: M | F115: 1960 | G115: ŠLO | H115: SD Škofja Loka | K115: GSL | M115: 6 | N115: 5 | O115: VETERANI - SERIJSKA PUŠKA
B116: 2VET09 | C116: VODOPIVEC | D116: Boris | E116: M | F116: 1952 | G116: ŠLO | H116: SD Škofja Loka | K116: GSL | M116: 6 | N116: 6 | O116: VETERANI - SERIJSKA PUŠKA
B117: 10294 | C117: PETERNELJ | D117: Henrik | E117: M | F117: 1941 | G117: ŠLO | H117: SD Škofja Loka | K117: GSL | M117: 6 | N117: 7 | O117: VETERANI - SERIJSKA PUŠKA
B118: 2VET10 | C118: DEMŠAR | D118: Janko | E118: M | F118: 1948 | G118: ŠLO | H118: SD Škofja Loka | K118: GSL | M118: 6 | N118: 8 | O118: VETERANI - SERIJSKA PUŠKA
B119: 2VET11 | C119: KOČAR | D119: Adi | E119: M | F119: 1941 | G119: ŠLO | H119: SD Škofja Loka | K119: GSL | M119: 6 | N119: 9 | O119: VETERANI - PIŠTOLA
B120: 2VET05 | C120: HRIBAR | D120: Marija | E120: Ž | F120: 1955 | G120: KAM | H120: SD Kamnik | K120: GSL | M120: 6 | N120: 10 | O120: VETERANKE - SERIJSKA PUŠKA
B122: 10294 | C122: PETERNELJ | D122: Henrik | E122: M | F122: 1941 | G122: ŠLO | H122: SD Škofja Loka | I122: ČLANI - PIŠTOLA | J122: E | K122: GSL | L122: 2DL | M122: 7 | N122: 1 | O122: VETERANI - PIŠTOLA
B123: 16229 | C123: GRAŠIČ | D123: Lovro | E123: M | F123: 2008 | G123: ŠLO | H123: SD Škofja Loka | I123: U17 KADETI - PUŠKA | J123: E | K123: GSL | L123: 2DL | M123: 7 | N123: 2
B124: 14600 | C124: GABER | D124: Luka | E124: M | F124: 2008 | G124: ŠLO | H124: SD Škofja Loka | I124: U17 KADETI - PUŠKA | J124: E | K124: GSL | L124: 2DL | M124: 7 | N124: 3
B125: 14599 | C125: KOPRIVNIKAR | D125: Žiga | E125: M | F125: 2008 | G125: ŠLO | H125: SD Škofja Loka | I125: U17 KADETI - PUŠKA | J125: E | K125: GSL | L125: 2DL | M125: 7 | N125: 4
B126: 14401 | C126: AHLIN | D126: Domen | E126: M | F126: 2005 | G126: KAM | H126: SD Kamnik | I126: U21 MLADINCI - PIŠTOLA | K126: GSL | M126: 7 | N126: 5
M127: 7 | N127: 6
B128: 16277 | C128: CEGNAR | D128: Ema | E128: Ž | F128: 2011 | G128: ŠLO | H128: SD Škofja Loka | I128: U15 STAREJŠE DEKLICE - PIŠTOLA | K128: GSL | M128: 7 | N128: 7
B129: 10694 | C129: MATAN | D129: Nuša | E129: Ž | G129: TRZ | H129: SD Trzin | I129: ČLANICE - PIŠTOLA | K129: GSL | L129: 2DL | M129: 7 | N129: 8 | O129: DNS, prekinila streljanje
B130: 13598 | C130: BORC | D130: Urška | E130: Ž | G130: TRZ | H130: SD Trzin | I130: ČLANICE - PIŠTOLA | K130: GSL | L130: 2DL | M130: 7 | N130: 9
B131: 10392 | C131: KOŠIR | D131: Branko | E131: M | F131: 1964 | G131: LŽE | H131: SD Lotrič Železniki | I131: ČLANI - PIŠTOLA | J131: E | K131: GSL | L131: 2DL | M131: 7 | N131: 10 | O131: VETERANI - PIŠTOLA
B133: 14863 | C133: AHAČIČ SREDNIK | D133: Nika | E133: Ž | F133: 1960 | G133: LŽE | H133: SD Lotrič Železniki | I133: ČLANICE - PIŠTOLA | K133: GSL | L133: 2DL | M133: 8 | N133: 1 | O133: VETERANKE - PIŠTOLA
B134: 11172 | C134: DOBRAVEC | D134: Petra | E134: Ž | F134: 1970 | G134: LŽE | H134: SD Lotrič Železniki | I134: ČLANICE - PIŠTOLA | K134: GSL | L134: 2DL | M134: 8 | N134: 2 | O134: DNS - je ni bilo VETERANKE - PIŠTOLA
M135: 8 | N135: 3
B136: 11107 | C136: PRELEC | D136: Tomaž | E136: M | F136: 1963 | G136: LŽE | H136: SD Lotrič Železniki | I136: ČLANI - PIŠTOLA | J136: E | K136: GSL | L136: 2DL | M136: 8 | N136: 4 | O136: VETERANI - PIŠTOLA
B137: 11132 | C137: TOMAŠEVIČ | D137: Klemen | E137: M | F137: 1987 | G137: LŽE | H137: SD Lotrič Železniki | I137: ČLANI - PIŠTOLA | K137: GSL | M137: 8 | N137: 5
B138: 14902 | C138: TOLAR | D138: Matic | E138: M | F138: 2009 | G138: LŽE | H138: SD Lotrič Železniki | I138: U17 KADETI - PIŠTOLA | K138: GSL | L138: 2DL | M138: 8 | N138: 6
B139: 14903 | C139: TOLAR | D139: Žiga | E139: M | F139: 2006 | G139: LŽE | H139: SD Lotrič Železniki | I139: U21 MLADINCI - PIŠTOLA | J139: E | K139: GSL | L139: 2DL | M139: 8 | N139: 7
B140: 16128 | C140: ZUPANC | D140: Aleksander | E140: M | F140: 1992 | G140: LŽE | H140: SD Lotrič Železniki | I140: ČLANI - PIŠTOLA | K140: GSL | L140: 2DL | M140: 8 | N140: 8
B141: 15496 | C141: VALCL | D141: Žare | E141: M | F141: 2008 | G141: LŽE | H141: SD Lotrič Železniki | I141: U17 KADETI - PIŠTOLA | K141: GSL | M141: 8 | N141: 9
B142: 10645 | C142: HABJAN | D142: Andreja | E142: Ž | G142: TRZ | H142: SD Trzin | I142: ČLANICE - PIŠTOLA | J142: E | K142: GSL | L142: 2DL | M142: 8 | N142: 10
B144: 15648 | C144: BENEDIČIČ | D144: Manca | E144: Ž | F144: 2008 | G144: LŽE | H144: SD Lotrič Železniki | I144: U17 KADETINJE - PUŠKA | J144: E | K144: GSL | L144: 2DL | M144: 9 | N144: 1
B145: 14547 | C145: BRATINA | D145: Jakob | E145: M | F145: 2008 | G145: LŽE | H145: SD Lotrič Železniki | I145: U17 KADETI - PUŠKA | J145: E | K145: GSL | L145: 2DL | M145: 9 | N145: 2
B146: 16013 | C146: HABJAN | D146: Nuša | E146: Ž | F146: 2009 | G146: LŽE | H146: SD Lotrič Železniki | I146: U17 KADETINJE - PIŠTOLA | K146: GSL | L146: 2DL | M146: 9 | N146: 3
B147: 13430 | C147: KOŠIR | D147: Nik | E147: M | F147: 2005 | G147: LŽE | H147: SD Lotrič Železniki | I147: U21 MLADINCI - PIŠTOLA | K147: GSL | L147: 2DL | M147: 9 | N147: 4
B148: 14549 | C148: PREZELJ | D148: Matej | E148: M | F148: 2007 | G148: LŽE | H148: SD Lotrič Železniki | I148: U21 MLADINCI - PIŠTOLA | K148: GSL | L148: 2DL | M148: 9 | N148: 5 | O148: DNS - ga ni bilo
M149: 9 | N149: 6
B150: 16384 | C150: REŽEK | D150: Primož | E150: M | F150: 1978 | G150: LŽE | H150: SD Lotrič Železniki | I150: ČLANI - PUŠKA | K150: GSL | L150: 2DL | M150: 9 | N150: 7
B151: 16129 | C151: REŽEK | D151: Luka | E151: M | F151: 2007 | G151: LŽE | H151: SD Lotrič Železniki | I151: U21 MLADINCI - PUŠKA | K151: GSL | L151: 2DL | M151: 9 | N151: 8
B152: 15649 | C152: ŠOLAR | D152: Teja | E152: Ž | F152: 2008 | G152: LŽE | H152: SD Lotrič Železniki | I152: U17 KADETINJE - PUŠKA | J152: E | K152: GSL | L152: 2DL | M152: 9 | N152: 9
M153: 9 | N153: 10
B155: 2VET13 | C155: PRIMOŽIČ | D155: Klemen | E155: M | F155: 1971 | G155: LŽE | H155: SD Lotrič Železniki | I155: ČLANI - PIŠTOLA | K155: GSL | M155: 10 | N155: 1 | O155: VETERANI - PIŠTOLA
B156: 16014 | C156: PRIMOŽIČ | D156: Taja | E156: Ž | F156: 2009 | G156: LŽE | H156: SD Lotrič Železniki | I156: U17 KADETINJE - PIŠTOLA | K156: GSL | L156: 2DL | M156: 10 | N156: 2
B157: 16379 | C157: PRIMOŽIČ | D157: Aleksandra | E157: Ž | F157: 2010 | G157: LŽE | H157: SD Lotrič Železniki | I157: U15 STAREJŠE DEKLICE - PIŠTOLA | K157: GSL | M157: 10 | N157: 3
B158: 16380 | C158: PRIMOŽIČ | D158: Tajša | E158: Ž | F158: 2012 | G158: LŽE | H158: SD Lotrič Železniki | I158: U15 STAREJŠE DEKLICE - PIŠTOLA | K158: GSL | M158: 10 | N158: 4
B159: 14210 | C159: KLARIČ | D159: Denis | E159: M | F159: 1977 | G159: KAM | H159: SD Kamnik | I159: ČLANI - PIŠTOLA | K159: GSL | M159: 10 | N159: 5
B160: 10676 | C160: ZORE | D160: Anže | E160: M | F160: 1985 | G160: KAM | H160: SD Kamnik | I160: ČLANI - PIŠTOLA | K160: GSL | M160: 10 | N160: 6
B161: 10313 | C161: FABJAN | D161: Boštjan | E161: M | F161: 1978 | G161: KAM | H161: SD Kamnik | I161: ČLANI - PUŠKA | J161: E | K161: GSL | L161: 2DL | M161: 10 | N161: 7
B162: 4U1502 | C162: PRIMOŽIČ | D162: Tia | E162: Ž | F162: 2012 | G162: LŽE | H162: SD Lotrič Železniki | I162: U15 STAREJŠE DEKLICE - PIŠTOLA | K162: GSL | M162: 10 | N162: 8
M163: 10 | N163: 9
M164: 10 | N164: 10
B166: 10536 | C166: CANKAR | D166: David | E166: M | F166: 1970 | G166: GVA | H166: SD Gorenja vas | I166: ČLANI - PIŠTOLA | J166: E | K166: GSL | L166: 2DL | M166: 11 | N166: 1 | O166: VETERANI - PIŠTOLA
B167: 15608 | C167: HUJIĆ | D167: Meldin | E167: M | F167: 1997 | G167: GVA | H167: SD Gorenja vas | I167: ČLANI - PIŠTOLA | J167: E | K167: GSL | L167: 2DL | M167: 11 | N167: 2
B168: 13143 | C168: JERAM | D168: Silva | E168: Ž | F168: 1964 | G168: GVA | H168: SD Gorenja vas | I168: ČLANICE - PIŠTOLA | K168: GSL | L168: 2DL | M168: 11 | N168: 3 | O168: VETERANKE - PIŠTOLA
B169: 16320 | C169: KUNC | D169: Tilen | E169: M | F169: 2001 | G169: GVA | H169: SD Gorenja vas | I169: ČLANI - PIŠTOLA | J169: E | K169: GSL | L169: 2DL | M169: 11 | N169: 4
B170: 13804 | C170: JUSTIN | D170: Olga | E170: Ž | F170: 1975 | G170: GVA | H170: SD Gorenja vas | I170: ČLANICE - PIŠTOLA | K170: GSL | M170: 11 | N170: 5 | O170: VETERANKE - PIŠTOLA
B171: 15486 | C171: SLAK | D171: Manja | E171: Ž | F171: 2006 | G171: GVA | H171: SD Gorenja vas | I171: U21 MLADINKE - PIŠTOLA | K171: GSL | M171: 11 | N171: 6
B172: 11227 | C172: BOŽIČ | D172: Gašper | E172: M | F172: 1987 | G172: GVA | H172: SD Gorenja vas | I172: ČLANI - PIŠTOLA | K172: GSL | M172: 11 | N172: 7
M173: 11 | N173: 8
M174: 11 | N174: 9
M175: 11 | N175: 10

Sheet 2.DL PIŠTOLA
A2: Iz zavihka Prijava se za tekmovalca v seznam za rezultate v stolpec E vpiše BIB številka od vrstice 5 dalje. Po vpisu BIB bo preneslo vse podatke v ta seznam, kjer se nato vpisujejo rezultati. Vpiše se rezultat serije v stolpec K, L, M, N ter nc*. Prav tako se za upoštevanje rezultata ekipno vpišejo samo BIB številke v stolpcu T za vse tri člane ekipe, ki je lahko mešana. Prenos ostalih podatkov je samodejen. Posamezno se lahko razvrsti, ekipno ostane nerazvrščeno. Dokument mora imeti omogočen makro.
C4: II. LIGA PIŠTOLA 4. SZ REGIJA
A5: mesto | C5: SD KAMNIK
C7: Priimek in ime | D7: Roj.skrita | E7: BIB | F7: Društvo, klub | G7: 1. ser | H7: 2. ser | I7: 3. ser | J7: 4. ser | K7: 1. ser | L7: 2. ser | M7: 3. ser | N7: 4. ser | O7: skupno | P7: nc*
A8: 1 | C8: =IF(E8="","",VLOOKUP(E8,PRIJAVA!$B$35:$H$240,2,FALSE) & " " & VLOOKUP(E8,PRIJAVA!$B$35:$H$240,3,FALSE)) -> HUJIĆ Meldin | D8: =IF(E8="","",VLOOKUP(E8,PRIJAVA!$B$35:$H$240,5,FALSE)) -> 1997 | E8: 15608 | F8: =IF(E8="","",VLOOKUP(E8,PRIJAVA!$B$35:$H$240,7,FALSE)) -> SD Gorenja vas | K8: 87 | L8: 94 | M8: 92 | N8: 93 | O8: =SUM(G8:N8) -> 366 | P8: 8 | Q8: =IF(C8="TONIČ Bojan","!","") ->  | U8: EKIPNO:
A9: 2 | C9: =IF(E9="","",VLOOKUP(E9,PRIJAVA!$B$35:$H$240,2,FALSE) & " " & VLOOKUP(E9,PRIJAVA!$B$35:$H$240,3,FALSE)) -> CANKAR David | E9: 10536 | F9: =IF(E9="","",VLOOKUP(E9,PRIJAVA!$B$35:$H$240,7,FALSE)) -> SD Gorenja vas | K9: 83 | L9: 95 | M9: 95 | N9: 88 | O9: 361 | P9: 6 | Q9: =IF(C9="TONIČ Bojan","!","") -> 
A10: 3 | C10: =IF(E10="","",VLOOKUP(E10,PRIJAVA!$B$35:$H$240,2,FALSE) & " " & VLOOKUP(E10,PRIJAVA!$B$35:$H$240,3,FALSE)) -> BRENKUŠ Matjaž | D10: =IF(E10="","",VLOOKUP(E10,PRIJAVA!$B$35:$H$240,5,FALSE)) -> 1967 | E10: 15197 | F10: =IF(E10="","",VLOOKUP(E10,PRIJAVA!$B$35:$H$240,7,FALSE)) -> SD Škofja Loka | K10: 91 | L10: 87 | M10: 87 | N10: 95 | O10: 360 | P10: 5 | U10: =IF(T12="","",VLOOKUP(T12,PRIJAVA!$B$35:$H$240,7,FALSE)) -> SD Trzin
A11: 4 | C11: =IF(E11="","",VLOOKUP(E11,PRIJAVA!$B$35:$H$240,2,FALSE) & " " & VLOOKUP(E11,PRIJAVA!$B$35:$H$240,3,FALSE)) -> KALIŠNIK Andraž | D11: =IF(E11="","",VLOOKUP(E11,PRIJAVA!$B$35:$H$240,5,FALSE)) -> 1994 | E11: 15984 | F11: =IF(E11="","",VLOOKUP(E11,PRIJAVA!$B$35:$H$240,7,FALSE)) -> SD Trzin | K11: 87 | L11: 90 | M11: 88 | N11: 92 | O11: 357 | P11: 3 | T11: BIB | U11: Priimek in ime | V11: 1. ser | W11: 2. ser | X11: 3. ser | Y11: 4. ser | Z11: 1. ser | AA11: 2. ser | AB11: 3. ser | AC11: 4. ser | AD11: skupno | AE11: nc*
A12: 5 | C12: =IF(E12="","",VLOOKUP(E12,PRIJAVA!$B$35:$H$240,2,FALSE) & " " & VLOOKUP(E12,PRIJAVA!$B$35:$H$240,3,FALSE)) -> KOŠIR Branko | D12: =IF(E12="","",VLOOKUP(E12,PRIJAVA!$B$35:$H$240,5,FALSE)) -> 1964 | E12: 10392 | F12: =IF(E12="","",VLOOKUP(E12,PRIJAVA!$B$35:$H$240,7,FALSE)) -> SD Lotrič Železniki | K12: 92 | L12: 88 | M12: 89 | N12: 87 | O12: 356 | P12: 5 | T12: 13742 | U12: =IF(T12="","",VLOOKUP(T12,PRIJAVA!$B$35:$H$240,2,FALSE) & " " & VLOOKUP(T12,PRIJAVA!$B$35:$H$240,3,FALSE)) -> DAVIDOVIĆ Miroslav | V12: =IF(U12="","",VLOOKUP(U12,$C$8:$N$106,5,FALSE)) -> 0 | W12: =IF(U12="","",VLOOKUP(U12,$C$8:$N$106,6,FALSE)) -> 0 | X12: =IF(U12="","",VLOOKUP(U12,$C$8:$N$106,7,FALSE)) -> 0 | Y12: =IF(U12="","",VLOOKUP(U12,$C$8:$N$106,8,FALSE)) -> 0 | Z12: =IF(U12="","",VLOOKUP(U12,$C$8:$N$106,9,FALSE)) -> 90 | AA12: =IF(U12="","",VLOOKUP(U12,$C$8:$L$106,10,FALSE)) -> 85 | AB12: =IF(V12="","",VLOOKUP(U12,$C$8:$M$106,11,FALSE)) -> 91 | AC12: =IF(U12="","",VLOOKUP(U12,$C$8:$N$106,12,FALSE)) -> 85 | AD12: =SUM(V12:AC12) -> 351 | AE12: =IF(U12="","",VLOOKUP(U12,$C$8:$P$106,14,FALSE)) -> 7
A13: 6 | C13: =IF(E13="","",VLOOKUP(E13,PRIJAVA!$B$35:$H$240,2,FALSE) & " " & VLOOKUP(E13,PRIJAVA!$B$35:$H$240,3,FALSE)) -> HABJAN Andreja | D13: =IF(E13="","",VLOOKUP(E13,PRIJAVA!$B$35:$H$240,5,FALSE)) -> 0 | E13: 10645 | F13: =IF(E13="","",VLOOKUP(E13,PRIJAVA!$B$35:$H$240,7,FALSE)) -> SD Trzin | K13: 84 | L13: 92 | M13: 90 | N13: 87 | O13: 353 | P13: 4 | T13: 16621 | U13: =IF(T13="","",VLOOKUP(T13,PRIJAVA!$B$35:$H$240,2,FALSE) & " " & VLOOKUP(T13,PRIJAVA!$B$35:$H$240,3,FALSE)) -> LAPAJNE Darka | V13: =IF(U13="","",VLOOKUP(U13,$C$8:$N$106,5,FALSE)) -> 0 | W13: =IF(U13="","",VLOOKUP(U13,$C$8:$N$106,6,FALSE)) -> 0 | X13: =IF(U13="","",VLOOKUP(U13,$C$8:$N$106,7,FALSE)) -> 0 | Y13: =IF(U13="","",VLOOKUP(U13,$C$8:$N$106,8,FALSE)) -> 0 | Z13: =IF(U13="","",VLOOKUP(U13,$C$8:$N$106,9,FALSE)) -> 85 | AA13: =IF(U13="","",VLOOKUP(U13,$C$8:$L$106,10,FALSE)) -> 91 | AB13: =IF(V13="","",VLOOKUP(U13,$C$8:$M$106,11,FALSE)) -> 84 | AC13: =IF(U13="","",VLOOKUP(U13,$C$8:$N$106,12,FALSE)) -> 87 | AD13: =SUM(V13:AC13) -> 347 | AE13: =IF(U13="","",VLOOKUP(U13,$C$8:$P$106,14,FALSE)) -> 3
A14: 7 | C14: =IF(E14="","",VLOOKUP(E14,PRIJAVA!$B$35:$H$240,2,FALSE) & " " & VLOOKUP(E14,PRIJAVA!$B$35:$H$240,3,FALSE)) -> ZUPANC Aleksander | D14: =IF(E14="","",VLOOKUP(E14,PRIJAVA!$B$35:$H$240,5,FALSE)) -> 1992 | E14: 16128 | F14: =IF(E14="","",VLOOKUP(E14,PRIJAVA!$B$35:$H$240,7,FALSE)) -> SD Lotrič Železniki | K14: 88 | L14: 86 | M14: 91 | N14: 88 | O14: 353 | P14: 2 | T14: 10645 | U14: =IF(T14="","",VLOOKUP(T14,PRIJAVA!$B$35:$H$240,2,FALSE) & " " & VLOOKUP(T14,PRIJAVA!$B$35:$H$240,3,FALSE)) -> HABJAN Andreja | V14: =IF(U14="","",VLOOKUP(U14,$C$8:$N$106,5,FALSE)) -> 0 | W14: =IF(U14="","",VLOOKUP(U14,$C$8:$N$106,6,FALSE)) -> 0 | X14: =IF(U14="","",VLOOKUP(U14,$C$8:$N$106,7,FALSE)) -> 0 | Y14: =IF(U14="","",VLOOKUP(U14,$C$8:$N$106,8,FALSE)) -> 0 | Z14: =IF(U14="","",VLOOKUP(U14,$C$8:$N$106,9,FALSE)) -> 84 | AA14: =IF(U14="","",VLOOKUP(U14,$C$8:$L$106,10,FALSE)) -> 92 | AB14: =IF(V14="","",VLOOKUP(U14,$C$8:$M$106,11,FALSE)) -> 90 | AC14: =IF(U14="","",VLOOKUP(U14,$C$8:$N$106,12,FALSE)) -> 87 | AD14: =SUM(V14:AC14) -> 353 | AE14: =IF(U14="","",VLOOKUP(U14,$C$8:$P$106,14,FALSE)) -> 4
A15: 8 | C15: =IF(E15="","",VLOOKUP(E15,PRIJAVA!$B$35:$H$240,2,FALSE) & " " & VLOOKUP(E15,PRIJAVA!$B$35:$H$240,3,FALSE)) -> KUNC Tilen | D15: =IF(E15="","",VLOOKUP(E15,PRIJAVA!$B$35:$H$240,5,FALSE)) -> 2001 | E15: 16320 | F15: =IF(E15="","",VLOOKUP(E15,PRIJAVA!$B$35:$H$240,7,FALSE)) -> SD Gorenja vas | K15: 88 | L15: 84 | M15: 90 | N15: 90 | O15: 352 | P15: 7 | AC15: =SUM(AC12:AC14) -> 259 | AD15: =SUM(AD12:AD14) -> 1051 | AE15: =SUM(AE12:AE14) -> 14
A16: 9 | C16: =IF(E16="","",VLOOKUP(E16,PRIJAVA!$B$35:$H$240,2,FALSE) & " " & VLOOKUP(E16,PRIJAVA!$B$35:$H$240,3,FALSE)) -> DAVIDOVIĆ Miroslav | D16: =IF(E16="","",VLOOKUP(E16,PRIJAVA!$B$35:$H$240,5,FALSE)) -> 1971 | E16: 13742 | F16: =IF(E16="","",VLOOKUP(E16,PRIJAVA!$B$35:$H$240,7,FALSE)) -> SD Trzin | K16: 90 | L16: 85 | M16: 91 | N16: 85 | O16: 351 | P16: 7
A17: 10 | C17: =IF(E17="","",VLOOKUP(E17,PRIJAVA!$B$35:$H$240,2,FALSE) & " " & VLOOKUP(E17,PRIJAVA!$B$35:$H$240,3,FALSE)) -> PRIMOŽIČ Taja | D17: =IF(E17="","",VLOOKUP(E17,PRIJAVA!$B$35:$H$240,5,FALSE)) -> 2009 | E17: 16014 | F17: =IF(E17="","",VLOOKUP(E17,PRIJAVA!$B$35:$H$240,7,FALSE)) -> SD Lotrič Železniki | K17: 88 | L17: 87 | M17: 87 | N17: 87 | O17: 349 | P17: 4
A18: 11 | C18: =IF(E18="","",VLOOKUP(E18,PRIJAVA!$B$35:$H$240,2,FALSE) & " " & VLOOKUP(E18,PRIJAVA!$B$35:$H$240,3,FALSE)) -> LAPAJNE Darka | D18: =IF(E18="","",VLOOKUP(E18,PRIJAVA!$B$35:$H$240,5,FALSE)) -> 1976 | E18: 16621 | F18: =IF(E18="","",VLOOKUP(E18,PRIJAVA!$B$35:$H$240,7,FALSE)) -> SD Trzin | K18: 85 | L18: 91 | M18: 84 | N18: 87 | O18: 347 | P18: 3 | U18: =IF(T20="","",VLOOKUP(T20,PRIJAVA!$B$35:$H$240,7,FALSE)) -> SD Škofja Loka
A19: 12 | C19: =IF(E19="","",VLOOKUP(E19,PRIJAVA!$B$35:$H$240,2,FALSE) & " " & VLOOKUP(E19,PRIJAVA!$B$35:$H$240,3,FALSE)) -> TOLAR Žiga | D19: =IF(E19="","",VLOOKUP(E19,PRIJAVA!$B$35:$H$240,5,FALSE)) -> 2006 | E19: 14903 | F19: =IF(E19="","",VLOOKUP(E19,PRIJAVA!$B$35:$H$240,7,FALSE)) -> SD Lotrič Železniki | K19: 85 | L19: 86 | M19: 90 | N19: 85 | O19: 346 | P19: 5 | T19: BIB | U19: Priimek in ime | V19: 1. ser | W19: 2. ser | X19: 3. ser | Y19: 4. ser | Z19: 1. ser | AA19: 2. ser | AB19: 3. ser | AC19: 4. ser | AD19: skupno | AE19: nc*
A20: 13 | C20: =IF(E20="","",VLOOKUP(E20,PRIJAVA!$B$35:$H$240,2,FALSE) & " " & VLOOKUP(E20,PRIJAVA!$B$35:$H$240,3,FALSE)) -> PRELEC Tomaž | D20: =IF(E20="","",VLOOKUP(E20,PRIJAVA!$B$35:$H$240,5,FALSE)) -> 1963 | E20: 11107 | F20: =IF(E20="","",VLOOKUP(E20,PRIJAVA!$B$35:$H$240,7,FALSE)) -> SD Lotrič Železniki | K20: 81 | L20: 88 | M20: 83 | N20: 92 | O20: 344 | P20: 5 | T20: 15198 | U20: =IF(T20="","",VLOOKUP(T20,PRIJAVA!$B$35:$H$240,2,FALSE) & " " & VLOOKUP(T20,PRIJAVA!$B$35:$H$240,3,FALSE)) -> HAFNAR Matjaž | V20: =IF(U20="","",VLOOKUP(U20,$C$8:$N$106,5,FALSE)) -> 0 | W20: =IF(U20="","",VLOOKUP(U20,$C$8:$N$106,6,FALSE)) -> 0 | X20: =IF(U20="","",VLOOKUP(U20,$C$8:$N$106,7,FALSE)) -> 0 | Y20: =IF(U20="","",VLOOKUP(U20,$C$8:$N$106,8,FALSE)) -> 0 | Z20: =IF(U20="","",VLOOKUP(U20,$C$8:$N$106,9,FALSE)) -> 81 | AA20: =IF(U20="","",VLOOKUP(U20,$C$8:$L$106,10,FALSE)) -> 74 | AB20: =IF(V20="","",VLOOKUP(U20,$C$8:$M$106,11,FALSE)) -> 84 | AC20: =IF(U20="","",VLOOKUP(U20,$C$8:$N$106,12,FALSE)) -> 76 | AD20: =SUM(V20:AC20) -> 315 | AE20: =IF(U20="","",VLOOKUP(U20,$C$8:$P$106,14,FALSE)) -> 1
A21: 14 | C21: =IF(E21="","",VLOOKUP(E21,PRIJAVA!$B$35:$H$240,2,FALSE) & " " & VLOOKUP(E21,PRIJAVA!$B$35:$H$240,3,FALSE)) -> JERAM Silva | D21: =IF(E21="","",VLOOKUP(E21,PRIJAVA!$B$35:$H$240,5,FALSE)) -> 1964 | E21: 13143 | F21: =IF(E21="","",VLOOKUP(E21,PRIJAVA!$B$35:$H$240,7,FALSE)) -> SD Gorenja vas | K21: 85 | L21: 91 | M21: 87 | N21: 81 | O21: 344 | P21: 2 | T21: 15197 | U21: =IF(T21="","",VLOOKUP(T21,PRIJAVA!$B$35:$H$240,2,FALSE) & " " & VLOOKUP(T21,PRIJAVA!$B$35:$H$240,3,FALSE)) -> BRENKUŠ Matjaž | V21: =IF(U21="","",VLOOKUP(U21,$C$8:$N$106,5,FALSE)) -> 0 | W21: =IF(U21="","",VLOOKUP(U21,$C$8:$N$106,6,FALSE)) -> 0 | X21: =IF(U21="","",VLOOKUP(U21,$C$8:$N$106,7,FALSE)) -> 0 | Y21: =IF(U21="","",VLOOKUP(U21,$C$8:$N$106,8,FALSE)) -> 0 | Z21: =IF(U21="","",VLOOKUP(U21,$C$8:$N$106,9,FALSE)) -> 91 | AA21: =IF(U21="","",VLOOKUP(U21,$C$8:$L$106,10,FALSE)) -> 87 | AB21: =IF(V21="","",VLOOKUP(U21,$C$8:$M$106,11,FALSE)) -> 87 | AC21: =IF(U21="","",VLOOKUP(U21,$C$8:$N$106,12,FALSE)) -> 95 | AD21: =SUM(V21:AC21) -> 360 | AE21: =IF(U21="","",VLOOKUP(U21,$C$8:$P$106,14,FALSE)) -> 5
A22: 15 | C22: =IF(E22="","",VLOOKUP(E22,PRIJAVA!$B$35:$H$240,2,FALSE) & " " & VLOOKUP(E22,PRIJAVA!$B$35:$H$240,3,FALSE)) -> DIMIC Klemen | D22: =IF(E22="","",VLOOKUP(E22,PRIJAVA!$B$35:$H$240,5,FALSE)) -> 1984 | E22: 10177 | F22: =IF(E22="","",VLOOKUP(E22,PRIJAVA!$B$35:$H$240,7,FALSE)) -> SD Domžale | K22: 86 | L22: 82 | M22: 84 | N22: 89 | O22: 341 | P22: 1 | T22: 10294 | U22: =IF(T22="","",VLOOKUP(T22,PRIJAVA!$B$35:$H$240,2,FALSE) & " " & VLOOKUP(T22,PRIJAVA!$B$35:$H$240,3,FALSE)) -> PETERNELJ Henrik | V22: =IF(U22="","",VLOOKUP(U22,$C$8:$N$106,5,FALSE)) -> 0 | W22: =IF(U22="","",VLOOKUP(U22,$C$8:$N$106,6,FALSE)) -> 0 | X22: =IF(U22="","",VLOOKUP(U22,$C$8:$N$106,7,FALSE)) -> 0 | Y22: =IF(U22="","",VLOOKUP(U22,$C$8:$N$106,8,FALSE)) -> 0 | Z22: =IF(U22="","",VLOOKUP(U22,$C$8:$N$106,9,FALSE)) -> 85 | AA22: =IF(U22="","",VLOOKUP(U22,$C$8:$L$106,10,FALSE)) -> 86 | AB22: =IF(V22="","",VLOOKUP(U22,$C$8:$M$106,11,FALSE)) -> 81 | AC22: =IF(U22="","",VLOOKUP(U22,$C$8:$N$106,12,FALSE)) -> 75 | AD22: =SUM(V22:AC22) -> 327 | AE22: =IF(U22="","",VLOOKUP(U22,$C$8:$P$106,14,FALSE)) -> 0
A23: 16 | C23: =IF(E23="","",VLOOKUP(E23,PRIJAVA!$B$35:$H$240,2,FALSE) & " " & VLOOKUP(E23,PRIJAVA!$B$35:$H$240,3,FALSE)) -> BORC Urška | D23: =IF(E23="","",VLOOKUP(E23,PRIJAVA!$B$35:$H$240,5,FALSE)) -> 0 | E23: 13598 | F23: =IF(E23="","",VLOOKUP(E23,PRIJAVA!$B$35:$H$240,7,FALSE)) -> SD Trzin | K23: 77 | L23: 85 | M23: 88 | N23: 87 | O23: 337 | P23: 3 | AC23: =SUM(AC20:AC22) -> 246 | AD23: =SUM(AD20:AD22) -> 1002 | AE23: =SUM(AE20:AE22) -> 6
A24: 17 | C24: =IF(E24="","",VLOOKUP(E24,PRIJAVA!$B$35:$H$240,2,FALSE) & " " & VLOOKUP(E24,PRIJAVA!$B$35:$H$240,3,FALSE)) -> ŠTIFTAR Jurij | D24: =IF(E24="","",VLOOKUP(E24,PRIJAVA!$B$35:$H$240,5,FALSE)) -> 1969 | E24: 10365 | F24: =IF(E24="","",VLOOKUP(E24,PRIJAVA!$B$35:$H$240,7,FALSE)) -> SD Domžale | K24: 86 | L24: 82 | M24: 87 | N24: 81 | O24: 336 | P24: 3
A25: 18 | C25: =IF(E25="","",VLOOKUP(E25,PRIJAVA!$B$35:$H$240,2,FALSE) & " " & VLOOKUP(E25,PRIJAVA!$B$35:$H$240,3,FALSE)) -> PETERNELJ Henrik | D25: =IF(E25="","",VLOOKUP(E25,PRIJAVA!$B$35:$H$240,5,FALSE)) -> 1941 | E25: 10294 | F25: =IF(E25="","",VLOOKUP(E25,PRIJAVA!$B$35:$H$240,7,FALSE)) -> SD Škofja Loka | K25: 85 | L25: 86 | M25: 81 | N25: 75 | O25: 327 | P25: 0
A26: 19 | C26: =IF(E26="","",VLOOKUP(E26,PRIJAVA!$B$35:$H$240,2,FALSE) & " " & VLOOKUP(E26,PRIJAVA!$B$35:$H$240,3,FALSE)) -> HABJAN Nuša | D26: =IF(E26="","",VLOOKUP(E26,PRIJAVA!$B$35:$H$240,5,FALSE)) -> 2009 | E26: 16013 | F26: =IF(E26="","",VLOOKUP(E26,PRIJAVA!$B$35:$H$240,7,FALSE)) -> SD Lotrič Železniki | K26: 83 | L26: 77 | M26: 83 | N26: 82 | O26: 325 | P26: 2 | U26: =IF(T28="","",VLOOKUP(T28,PRIJAVA!$B$35:$H$240,7,FALSE)) -> SD Lotrič Železniki
A27: 20 | C27: =IF(E27="","",VLOOKUP(E27,PRIJAVA!$B$35:$H$240,2,FALSE) & " " & VLOOKUP(E27,PRIJAVA!$B$35:$H$240,3,FALSE)) -> KOŠIR Nik | D27: =IF(E27="","",VLOOKUP(E27,PRIJAVA!$B$35:$H$240,5,FALSE)) -> 2005 | E27: 13430 | F27: =IF(E27="","",VLOOKUP(E27,PRIJAVA!$B$35:$H$240,7,FALSE)) -> SD Lotrič Železniki | K27: 78 | L27: 79 | M27: 77 | N27: 88 | O27: 322 | P27: 2 | T27: BIB | U27: Priimek in ime | V27: 1. ser | W27: 2. ser | X27: 3. ser | Y27: 4. ser | Z27: 1. ser | AA27: 2. ser | AB27: 3. ser | AC27: 4. ser | AD27: skupno | AE27: nc*
A28: 21 | C28: =IF(E28="","",VLOOKUP(E28,PRIJAVA!$B$35:$H$240,2,FALSE) & " " & VLOOKUP(E28,PRIJAVA!$B$35:$H$240,3,FALSE)) -> AHAČIČ SREDNIK Nika | D28: =IF(E28="","",VLOOKUP(E28,PRIJAVA!$B$35:$H$240,5,FALSE)) -> 1960 | E28: 14863 | F28: =IF(E28="","",VLOOKUP(E28,PRIJAVA!$B$35:$H$240,7,FALSE)) -> SD Lotrič Železniki | K28: 79 | L28: 77 | M28: 77 | N28: 88 | O28: 321 | P28: 1 | T28: 14903 | U28: =IF(T28="","",VLOOKUP(T28,PRIJAVA!$B$35:$H$240,2,FALSE) & " " & VLOOKUP(T28,PRIJAVA!$B$35:$H$240,3,FALSE)) -> TOLAR Žiga | V28: =IF(U28="","",VLOOKUP(U28,$C$8:$N$106,5,FALSE)) -> 0 | W28: =IF(U28="","",VLOOKUP(U28,$C$8:$N$106,6,FALSE)) -> 0 | X28: =IF(U28="","",VLOOKUP(U28,$C$8:$N$106,7,FALSE)) -> 0 | Y28: =IF(U28="","",VLOOKUP(U28,$C$8:$N$106,8,FALSE)) -> 0 | Z28: =IF(U28="","",VLOOKUP(U28,$C$8:$N$106,9,FALSE)) -> 85 | AA28: =IF(U28="","",VLOOKUP(U28,$C$8:$L$106,10,FALSE)) -> 86 | AB28: =IF(V28="","",VLOOKUP(U28,$C$8:$M$106,11,FALSE)) -> 90 | AC28: =IF(U28="","",VLOOKUP(U28,$C$8:$N$106,12,FALSE)) -> 85 | AD28: =SUM(V28:AC28) -> 346 | AE28: =IF(U28="","",VLOOKUP(U28,$C$8:$P$106,14,FALSE)) -> 5
A29: 22 | C29: =IF(E29="","",VLOOKUP(E29,PRIJAVA!$B$35:$H$240,2,FALSE) & " " & VLOOKUP(E29,PRIJAVA!$B$35:$H$240,3,FALSE)) -> TOLAR Matic | E29: 14902 | F29: =IF(E29="","",VLOOKUP(E29,PRIJAVA!$B$35:$H$240,7,FALSE)) -> SD Lotrič Železniki | K29: 76 | L29: 80 | M29: 80 | N29: 81 | O29: 317 | P29: 0 | T29: 10392 | U29: =IF(T29="","",VLOOKUP(T29,PRIJAVA!$B$35:$H$240,2,FALSE) & " " & VLOOKUP(T29,PRIJAVA!$B$35:$H$240,3,FALSE)) -> KOŠIR Branko | V29: =IF(U29="","",VLOOKUP(U29,$C$8:$N$106,5,FALSE)) -> 0 | W29: =IF(U29="","",VLOOKUP(U29,$C$8:$N$106,6,FALSE)) -> 0 | X29: =IF(U29="","",VLOOKUP(U29,$C$8:$N$106,7,FALSE)) -> 0 | Y29: =IF(U29="","",VLOOKUP(U29,$C$8:$N$106,8,FALSE)) -> 0 | Z29: =IF(U29="","",VLOOKUP(U29,$C$8:$N$106,9,FALSE)) -> 92 | AA29: =IF(U29="","",VLOOKUP(U29,$C$8:$L$106,10,FALSE)) -> 88 | AB29: =IF(V29="","",VLOOKUP(U29,$C$8:$M$106,11,FALSE)) -> 89 | AC29: =IF(U29="","",VLOOKUP(U29,$C$8:$N$106,12,FALSE)) -> 87 | AD29: =SUM(V29:AC29) -> 356 | AE29: =IF(U29="","",VLOOKUP(U29,$C$8:$P$106,14,FALSE)) -> 5
A30: 23 | C30: =IF(E30="","",VLOOKUP(E30,PRIJAVA!$B$35:$H$240,2,FALSE) & " " & VLOOKUP(E30,PRIJAVA!$B$35:$H$240,3,FALSE)) -> HAFNAR Matjaž | D30: =IF(E30="","",VLOOKUP(E30,PRIJAVA!$B$35:$H$240,5,FALSE)) -> 1973 | E30: 15198 | F30: =IF(E30="","",VLOOKUP(E30,PRIJAVA!$B$35:$H$240,7,FALSE)) -> SD Škofja Loka | K30: 81 | L30: 74 | M30: 84 | N30: 76 | O30: 315 | P30: 1 | T30: 11107 | U30: =IF(T30="","",VLOOKUP(T30,PRIJAVA!$B$35:$H$240,2,FALSE) & " " & VLOOKUP(T30,PRIJAVA!$B$35:$H$240,3,FALSE)) -> PRELEC Tomaž | V30: =IF(U30="","",VLOOKUP(U30,$C$8:$N$106,5,FALSE)) -> 0 | W30: =IF(U30="","",VLOOKUP(U30,$C$8:$N$106,6,FALSE)) -> 0 | X30: =IF(U30="","",VLOOKUP(U30,$C$8:$N$106,7,FALSE)) -> 0 | Y30: =IF(U30="","",VLOOKUP(U30,$C$8:$N$106,8,FALSE)) -> 0 | Z30: =IF(U30="","",VLOOKUP(U30,$C$8:$N$106,9,FALSE)) -> 81 | AA30: =IF(U30="","",VLOOKUP(U30,$C$8:$L$106,10,FALSE)) -> 88 | AB30: =IF(V30="","",VLOOKUP(U30,$C$8:$M$106,11,FALSE)) -> 83 | AC30: =IF(U30="","",VLOOKUP(U30,$C$8:$N$106,12,FALSE)) -> 92 | AD30: =SUM(V30:AC30) -> 344 | AE30: =IF(U30="","",VLOOKUP(U30,$C$8:$P$106,14,FALSE)) -> 5
A31: 24 | C31: =IF(E31="","",VLOOKUP(E31,PRIJAVA!$B$35:$H$240,2,FALSE) & " " & VLOOKUP(E31,PRIJAVA!$B$35:$H$240,3,FALSE)) -> ČAUŠEVIČ Alen | D31: =IF(E31="","",VLOOKUP(E31,PRIJAVA!$B$35:$H$240,5,FALSE)) -> 1992 | E31: 11526 | F31: =IF(E31="","",VLOOKUP(E31,PRIJAVA!$B$35:$H$240,7,FALSE)) -> SD Domžale | K31: 72 | L31: 82 | M31: 83 | N31: 77 | O31: 314 | P31: 4 | AC31: =SUM(AC28:AC30) -> 264 | AD31: =SUM(AD28:AD30) -> 1046 | AE31: =SUM(AE28:AE30) -> 15
A32: 25 | C32: =IF(E32="","",VLOOKUP(E32,PRIJAVA!$B$35:$H$240,2,FALSE) & " " & VLOOKUP(E32,PRIJAVA!$B$35:$H$240,3,FALSE)) -> ČEMAŽAR Niko | D32: =IF(E32="","",VLOOKUP(E32,PRIJAVA!$B$35:$H$240,5,FALSE)) -> 1979 | E32: 16378 | F32: =IF(E32="","",VLOOKUP(E32,PRIJAVA!$B$35:$H$240,7,FALSE)) -> SD Lotrič Železniki | K32: 80 | L32: 74 | M32: 80 | N32: 74 | O32: 308 | P32: 3
A33: 26 | C33: =IF(E33="","",VLOOKUP(E33,PRIJAVA!$B$35:$H$240,2,FALSE) & " " & VLOOKUP(E33,PRIJAVA!$B$35:$H$240,3,FALSE)) -> MATAN Nuša | E33: 10694 | F33: =IF(E33="","",VLOOKUP(E33,PRIJAVA!$B$35:$H$240,7,FALSE)) -> SD Trzin | O33: 0 | P33: DNS
A34: 27 | C34: =IF(E34="","",VLOOKUP(E34,PRIJAVA!$B$35:$H$240,2,FALSE) & " " & VLOOKUP(E34,PRIJAVA!$B$35:$H$240,3,FALSE)) -> DOBRAVEC Petra | D34: =IF(E34="","",VLOOKUP(E34,PRIJAVA!$B$35:$H$240,5,FALSE)) -> 1970 | E34: 11172 | F34: =IF(E34="","",VLOOKUP(E34,PRIJAVA!$B$35:$H$240,7,FALSE)) -> SD Lotrič Železniki | O34: 0 | P34: DNS | U34: =IF(T36="","",VLOOKUP(T36,PRIJAVA!$B$35:$H$240,7,FALSE)) -> SD Domžale
A35: 28 | C35: =IF(E35="","",VLOOKUP(E35,PRIJAVA!$B$35:$H$240,2,FALSE) & " " & VLOOKUP(E35,PRIJAVA!$B$35:$H$240,3,FALSE)) -> PREZELJ Matej | E35: 14549 | F35: =IF(E35="","",VLOOKUP(E35,PRIJAVA!$B$35:$H$240,7,FALSE)) -> SD Lotrič Železniki | O35: =SUM(K35:N35) -> 0 | P35: DNS | T35: BIB | U35: Priimek in ime | V35: 1. ser | W35: 2. ser | X35: 3. ser | Y35: 4. ser | Z35: 1. ser | AA35: 2. ser | AB35: 3. ser | AC35: 4. ser | AD35: skupno | AE35: nc*
A36: 29 | C36: =IF(E36="","",VLOOKUP(E36,PRIJAVA!$B$35:$H$240,2,FALSE) & " " & VLOOKUP(E36,PRIJAVA!$B$35:$H$240,3,FALSE)) ->  | D36: =IF(E36="","",VLOOKUP(E36,PRIJAVA!$B$35:$H$240,5,FALSE)) ->  | F36: =IF(E36="","",VLOOKUP(E36,PRIJAVA!$B$35:$H$240,7,FALSE)) ->  | O36: =SUM(G36:N36) -> 0 | T36: 10365 | U36: =IF(T36="","",VLOOKUP(T36,PRIJAVA!$B$35:$H$240,2,FALSE) & " " & VLOOKUP(T36,PRIJAVA!$B$35:$H$240,3,FALSE)) -> ŠTIFTAR Jurij | V36: =IF(U36="","",VLOOKUP(U36,$C$8:$N$106,5,FALSE)) -> 0 | W36: =IF(U36="","",VLOOKUP(U36,$C$8:$N$106,6,FALSE)) -> 0 | X36: =IF(U36="","",VLOOKUP(U36,$C$8:$N$106,7,FALSE)) -> 0 | Y36: =IF(U36="","",VLOOKUP(U36,$C$8:$N$106,8,FALSE)) -> 0 | Z36: =IF(U36="","",VLOOKUP(U36,$C$8:$N$106,9,FALSE)) -> 86 | AA36: =IF(U36="","",VLOOKUP(U36,$C$8:$L$106,10,FALSE)) -> 82 | AB36: =IF(V36="","",VLOOKUP(U36,$C$8:$M$106,11,FALSE)) -> 87 | AC36: =IF(U36="","",VLOOKUP(U36,$C$8:$N$106,12,FALSE)) -> 81 | AD36: =SUM(V36:AC36) -> 336 | AE36: =IF(U36="","",VLOOKUP(U36,$C$8:$P$106,14,FALSE)) -> 3
A37: 30 | C37: =IF(E37="","",VLOOKUP(E37,PRIJAVA!$B$35:$H$240,2,FALSE) & " " & VLOOKUP(E37,PRIJAVA!$B$35:$H$240,3,FALSE)) ->  | D37: =IF(E37="","",VLOOKUP(E37,PRIJAVA!$B$35:$H$240,5,FALSE)) ->  | F37: =IF(E37="","",VLOOKUP(E37,PRIJAVA!$B$35:$H$240,7,FALSE)) ->  | O37: 0 | T37: 10177 | U37: =IF(T37="","",VLOOKUP(T37,PRIJAVA!$B$35:$H$240,2,FALSE) & " " & VLOOKUP(T37,PRIJAVA!$B$35:$H$240,3,FALSE)) -> DIMIC Klemen | V37: =IF(U37="","",VLOOKUP(U37,$C$8:$N$106,5,FALSE)) -> 0 | W37: =IF(U37="","",VLOOKUP(U37,$C$8:$N$106,6,FALSE)) -> 0 | X37: =IF(U37="","",VLOOKUP(U37,$C$8:$N$106,7,FALSE)) -> 0 | Y37: =IF(U37="","",VLOOKUP(U37,$C$8:$N$106,8,FALSE)) -> 0 | Z37: =IF(U37="","",VLOOKUP(U37,$C$8:$N$106,9,FALSE)) -> 86 | AA37: =IF(U37="","",VLOOKUP(U37,$C$8:$L$106,10,FALSE)) -> 82 | AB37: =IF(V37="","",VLOOKUP(U37,$C$8:$M$106,11,FALSE)) -> 84 | AC37: =IF(U37="","",VLOOKUP(U37,$C$8:$N$106,12,FALSE)) -> 89 | AD37: =SUM(V37:AC37) -> 341 | AE37: =IF(U37="","",VLOOKUP(U37,$C$8:$P$106,14,FALSE)) -> 1
A38: 31 | C38: =IF(E38="","",VLOOKUP(E38,PRIJAVA!$B$35:$H$240,2,FALSE) & " " & VLOOKUP(E38,PRIJAVA!$B$35:$H$240,3,FALSE)) ->  | D38: =IF(E38="","",VLOOKUP(E38,PRIJAVA!$B$35:$H$240,5,FALSE)) ->  | F38: =IF(E38="","",VLOOKUP(E38,PRIJAVA!$B$35:$H$240,7,FALSE)) ->  | O38: 0 | T38: 11526 | U38: =IF(T38="","",VLOOKUP(T38,PRIJAVA!$B$35:$H$240,2,FALSE) & " " & VLOOKUP(T38,PRIJAVA!$B$35:$H$240,3,FALSE)) -> ČAUŠEVIČ Alen | V38: =IF(U38="","",VLOOKUP(U38,$C$8:$N$106,5,FALSE)) -> 0 | W38: =IF(U38="","",VLOOKUP(U38,$C$8:$N$106,6,FALSE)) -> 0 | X38: =IF(U38="","",VLOOKUP(U38,$C$8:$N$106,7,FALSE)) -> 0 | Y38: =IF(U38="","",VLOOKUP(U38,$C$8:$N$106,8,FALSE)) -> 0 | Z38: =IF(U38="","",VLOOKUP(U38,$C$8:$N$106,9,FALSE)) -> 72 | AA38: =IF(U38="","",VLOOKUP(U38,$C$8:$L$106,10,FALSE)) -> 82 | AB38: =IF(V38="","",VLOOKUP(U38,$C$8:$M$106,11,FALSE)) -> 83 | AC38: =IF(U38="","",VLOOKUP(U38,$C$8:$N$106,12,FALSE)) -> 77 | AD38: =SUM(V38:AC38) -> 314 | AE38: =IF(U38="","",VLOOKUP(U38,$C$8:$P$106,14,FALSE)) -> 4
A39: 32 | C39: =IF(E39="","",VLOOKUP(E39,PRIJAVA!$B$35:$H$240,2,FALSE) & " " & VLOOKUP(E39,PRIJAVA!$B$35:$H$240,3,FALSE)) ->  | D39: =IF(E39="","",VLOOKUP(E39,PRIJAVA!$B$35:$H$240,5,FALSE)) ->  | F39: =IF(E39="","",VLOOKUP(E39,PRIJAVA!$B$35:$H$240,7,FALSE)) ->  | O39: 0 | AC39: =SUM(AC36:AC38) -> 247 | AD39: =SUM(AD36:AD38) -> 991 | AE39: =SUM(AE36:AE38) -> 8
A40: 33 | C40: =IF(E40="","",VLOOKUP(E40,PRIJAVA!$B$35:$H$240,2,FALSE) & " " & VLOOKUP(E40,PRIJAVA!$B$35:$H$240,3,FALSE)) ->  | D40: =IF(E40="","",VLOOKUP(E40,PRIJAVA!$B$35:$H$240,5,FALSE)) ->  | F40: =IF(E40="","",VLOOKUP(E40,PRIJAVA!$B$35:$H$240,7,FALSE)) ->  | O40: 0
A41: 34 | C41: =IF(E41="","",VLOOKUP(E41,PRIJAVA!$B$35:$H$240,2,FALSE) & " " & VLOOKUP(E41,PRIJAVA!$B$35:$H$240,3,FALSE)) ->  | D41: =IF(E41="","",VLOOKUP(E41,PRIJAVA!$B$35:$H$240,5,FALSE)) ->  | F41: =IF(E41="","",VLOOKUP(E41,PRIJAVA!$B$35:$H$240,7,FALSE)) ->  | O41: 0
A42: 35 | C42: =IF(E42="","",VLOOKUP(E42,PRIJAVA!$B$35:$H$240,2,FALSE) & " " & VLOOKUP(E42,PRIJAVA!$B$35:$H$240,3,FALSE)) ->  | D42: =IF(E42="","",VLOOKUP(E42,PRIJAVA!$B$35:$H$240,5,FALSE)) ->  | F42: =IF(E42="","",VLOOKUP(E42,PRIJAVA!$B$35:$H$240,7,FALSE)) ->  | O42: 0 | U42: =IF(T44="","",VLOOKUP(T44,PRIJAVA!$B$35:$H$240,7,FALSE)) -> SD Gorenja vas
A43: 36 | O43: 0 | T43: BIB | U43: Priimek in ime | V43: 1. ser | W43: 2. ser | X43: 3. ser | Y43: 4. ser | Z43: 1. ser | AA43: 2. ser | AB43: 3. ser | AC43: 4. ser | AD43: skupno | AE43: nc*
A44: 37 | O44: =SUM(G44:N44) -> 0 | T44: 10536 | U44: =IF(T44="","",VLOOKUP(T44,PRIJAVA!$B$35:$H$240,2,FALSE) & " " & VLOOKUP(T44,PRIJAVA!$B$35:$H$240,3,FALSE)) -> CANKAR David | V44: =IF(U44="","",VLOOKUP(U44,$C$8:$N$106,5,FALSE)) -> 0 | W44: =IF(U44="","",VLOOKUP(U44,$C$8:$N$106,6,FALSE)) -> 0 | X44: =IF(U44="","",VLOOKUP(U44,$C$8:$N$106,7,FALSE)) -> 0 | Y44: =IF(U44="","",VLOOKUP(U44,$C$8:$N$106,8,FALSE)) -> 0 | Z44: =IF(U44="","",VLOOKUP(U44,$C$8:$N$106,9,FALSE)) -> 83 | AA44: =IF(U44="","",VLOOKUP(U44,$C$8:$L$106,10,FALSE)) -> 95 | AB44: =IF(V44="","",VLOOKUP(U44,$C$8:$M$106,11,FALSE)) -> 95 | AC44: =IF(U44="","",VLOOKUP(U44,$C$8:$N$106,12,FALSE)) -> 88 | AD44: =SUM(V44:AC44) -> 361 | AE44: =IF(U44="","",VLOOKUP(U44,$C$8:$P$106,14,FALSE)) -> 6
A45: 38 | C45: =IF(E45="","",VLOOKUP(E45,PRIJAVA!$B$35:$H$240,2,FALSE) & " " & VLOOKUP(E45,PRIJAVA!$B$35:$H$240,3,FALSE)) ->  | D45: =IF(E45="","",VLOOKUP(E45,PRIJAVA!$B$35:$H$240,5,FALSE)) ->  | F45: =IF(E45="","",VLOOKUP(E45,PRIJAVA!$B$35:$H$240,7,FALSE)) ->  | O45: =SUM(G45:N45) -> 0 | T45: 15608 | U45: =IF(T45="","",VLOOKUP(T45,PRIJAVA!$B$35:$H$240,2,FALSE) & " " & VLOOKUP(T45,PRIJAVA!$B$35:$H$240,3,FALSE)) -> HUJIĆ Meldin | V45: =IF(U45="","",VLOOKUP(U45,$C$8:$N$106,5,FALSE)) -> 0 | W45: =IF(U45="","",VLOOKUP(U45,$C$8:$N$106,6,FALSE)) -> 0 | X45: =IF(U45="","",VLOOKUP(U45,$C$8:$N$106,7,FALSE)) -> 0 | Y45: =IF(U45="","",VLOOKUP(U45,$C$8:$N$106,8,FALSE)) -> 0 | Z45: =IF(U45="","",VLOOKUP(U45,$C$8:$N$106,9,FALSE)) -> 87 | AA45: =IF(U45="","",VLOOKUP(U45,$C$8:$L$106,10,FALSE)) -> 94 | AB45: =IF(V45="","",VLOOKUP(U45,$C$8:$M$106,11,FALSE)) -> 92 | AC45: =IF(U45="","",VLOOKUP(U45,$C$8:$N$106,12,FALSE)) -> 93 | AD45: =SUM(V45:AC45) -> 366 | AE45: =IF(U45="","",VLOOKUP(U45,$C$8:$P$106,14,FALSE)) -> 8
A46: 39 | C46: =IF(E46="","",VLOOKUP(E46,PRIJAVA!$B$35:$H$240,2,FALSE) & " " & VLOOKUP(E46,PRIJAVA!$B$35:$H$240,3,FALSE)) ->  | D46: =IF(E46="","",VLOOKUP(E46,PRIJAVA!$B$35:$H$240,5,FALSE)) ->  | F46: =IF(E46="","",VLOOKUP(E46,PRIJAVA!$B$35:$H$240,7,FALSE)) ->  | O46: 0 | T46: 16320 | U46: =IF(T46="","",VLOOKUP(T46,PRIJAVA!$B$35:$H$240,2,FALSE) & " " & VLOOKUP(T46,PRIJAVA!$B$35:$H$240,3,FALSE)) -> KUNC Tilen | V46: =IF(U46="","",VLOOKUP(U46,$C$8:$N$106,5,FALSE)) -> 0 | W46: =IF(U46="","",VLOOKUP(U46,$C$8:$N$106,6,FALSE)) -> 0 | X46: =IF(U46="","",VLOOKUP(U46,$C$8:$N$106,7,FALSE)) -> 0 | Y46: =IF(U46="","",VLOOKUP(U46,$C$8:$N$106,8,FALSE)) -> 0 | Z46: =IF(U46="","",VLOOKUP(U46,$C$8:$N$106,9,FALSE)) -> 88 | AA46: =IF(U46="","",VLOOKUP(U46,$C$8:$L$106,10,FALSE)) -> 84 | AB46: =IF(V46="","",VLOOKUP(U46,$C$8:$M$106,11,FALSE)) -> 90 | AC46: =IF(U46="","",VLOOKUP(U46,$C$8:$N$106,12,FALSE)) -> 90 | AD46: =SUM(V46:AC46) -> 352 | AE46: =IF(U46="","",VLOOKUP(U46,$C$8:$P$106,14,FALSE)) -> 7
A47: 40 | C47: =IF(E47="","",VLOOKUP(E47,PRIJAVA!$B$35:$H$240,2,FALSE) & " " & VLOOKUP(E47,PRIJAVA!$B$35:$H$240,3,FALSE)) ->  | D47: =IF(E47="","",VLOOKUP(E47,PRIJAVA!$B$35:$H$240,5,FALSE)) ->  | F47: =IF(E47="","",VLOOKUP(E47,PRIJAVA!$B$35:$H$240,7,FALSE)) ->  | O47: 0 | AC47: =SUM(AC44:AC46) -> 271 | AD47: =SUM(AD44:AD46) -> 1079 | AE47: =SUM(AE44:AE46) -> 21
A48: 41 | C48: =IF(E48="","",VLOOKUP(E48,PRIJAVA!$B$35:$H$240,2,FALSE) & " " & VLOOKUP(E48,PRIJAVA!$B$35:$H$240,3,FALSE)) ->  | D48: =IF(E48="","",VLOOKUP(E48,PRIJAVA!$B$35:$H$240,5,FALSE)) ->  | F48: =IF(E48="","",VLOOKUP(E48,PRIJAVA!$B$35:$H$240,7,FALSE)) ->  | O48: =SUM(G48:N48) -> 0
A49: 42 | C49: =IF(E49="","",VLOOKUP(E49,PRIJAVA!$B$35:$H$240,2,FALSE) & " " & VLOOKUP(E49,PRIJAVA!$B$35:$H$240,3,FALSE)) ->  | D49: =IF(E49="","",VLOOKUP(E49,PRIJAVA!$B$35:$H$240,5,FALSE)) ->  | F49: =IF(E49="","",VLOOKUP(E49,PRIJAVA!$B$35:$H$240,7,FALSE)) ->  | O49: 0
A50: 43 | C50: =IF(E50="","",VLOOKUP(E50,PRIJAVA!$B$35:$H$240,2,FALSE) & " " & VLOOKUP(E50,PRIJAVA!$B$35:$H$240,3,FALSE)) ->  | D50: =IF(E50="","",VLOOKUP(E50,PRIJAVA!$B$35:$H$240,5,FALSE)) ->  | F50: =IF(E50="","",VLOOKUP(E50,PRIJAVA!$B$35:$H$240,7,FALSE)) ->  | O50: 0
A51: 44 | C51: =IF(E51="","",VLOOKUP(E51,PRIJAVA!$B$35:$H$240,2,FALSE) & " " & VLOOKUP(E51,PRIJAVA!$B$35:$H$240,3,FALSE)) ->  | D51: =IF(E51="","",VLOOKUP(E51,PRIJAVA!$B$35:$H$240,5,FALSE)) ->  | F51: =IF(E51="","",VLOOKUP(E51,PRIJAVA!$B$35:$H$240,7,FALSE)) ->  | O51: 0
A52: 45 | C52: =IF(E52="","",VLOOKUP(E52,PRIJAVA!$B$35:$H$240,2,FALSE) & " " & VLOOKUP(E52,PRIJAVA!$B$35:$H$240,3,FALSE)) ->  | D52: =IF(E52="","",VLOOKUP(E52,PRIJAVA!$B$35:$H$240,5,FALSE)) ->  | F52: =IF(E52="","",VLOOKUP(E52,PRIJAVA!$B$35:$H$240,7,FALSE)) ->  | O52: 0
A53: 46 | C53: =IF(E53="","",VLOOKUP(E53,PRIJAVA!$B$35:$H$240,2,FALSE) & " " & VLOOKUP(E53,PRIJAVA!$B$35:$H$240,3,FALSE)) ->  | D53: =IF(E53="","",VLOOKUP(E53,PRIJAVA!$B$35:$H$240,5,FALSE)) ->  | F53: =IF(E53="","",VLOOKUP(E53,PRIJAVA!$B$35:$H$240,7,FALSE)) ->  | O53: 0
A54: 47 | C54: =IF(E54="","",VLOOKUP(E54,PRIJAVA!$B$35:$H$240,2,FALSE) & " " & VLOOKUP(E54,PRIJAVA!$B$35:$H$240,3,FALSE)) ->  | D54: =IF(E54="","",VLOOKUP(E54,PRIJAVA!$B$35:$H$240,5,FALSE)) ->  | F54: =IF(E54="","",VLOOKUP(E54,PRIJAVA!$B$35:$H$240,7,FALSE)) ->  | O54: 0
A55: 48 | C55: =IF(E55="","",VLOOKUP(E55,PRIJAVA!$B$35:$H$240,2,FALSE) & " " & VLOOKUP(E55,PRIJAVA!$B$35:$H$240,3,FALSE)) ->  | D55: =IF(E55="","",VLOOKUP(E55,PRIJAVA!$B$35:$H$240,5,FALSE)) ->  | F55: =IF(E55="","",VLOOKUP(E55,PRIJAVA!$B$35:$H$240,7,FALSE)) ->  | O55: 0
A56: 49 | C56: =IF(E56="","",VLOOKUP(E56,PRIJAVA!$B$35:$H$240,2,FALSE) & " " & VLOOKUP(E56,PRIJAVA!$B$35:$H$240,3,FALSE)) ->  | D56: =IF(E56="","",VLOOKUP(E56,PRIJAVA!$B$35:$H$240,5,FALSE)) ->  | F56: =IF(E56="","",VLOOKUP(E56,PRIJAVA!$B$35:$H$240,7,FALSE)) ->  | O56: 0
A57: 50 | C57: =IF(E57="","",VLOOKUP(E57,PRIJAVA!$B$35:$H$240,2,FALSE) & " " & VLOOKUP(E57,PRIJAVA!$B$35:$H$240,3,FALSE)) ->  | D57: =IF(E57="","",VLOOKUP(E57,PRIJAVA!$B$35:$H$240,5,FALSE)) ->  | F57: =IF(E57="","",VLOOKUP(E57,PRIJAVA!$B$35:$H$240,7,FALSE)) ->  | O57: 0
A58: 51 | C58: =IF(E58="","",VLOOKUP(E58,PRIJAVA!$B$35:$H$240,2,FALSE) & " " & VLOOKUP(E58,PRIJAVA!$B$35:$H$240,3,FALSE)) ->  | D58: =IF(E58="","",VLOOKUP(E58,PRIJAVA!$B$35:$H$240,5,FALSE)) ->  | F58: =IF(E58="","",VLOOKUP(E58,PRIJAVA!$B$35:$H$240,7,FALSE)) ->  | O58: 0
A59: 52 | C59: =IF(E59="","",VLOOKUP(E59,PRIJAVA!$B$35:$H$240,2,FALSE) & " " & VLOOKUP(E59,PRIJAVA!$B$35:$H$240,3,FALSE)) ->  | D59: =IF(E59="","",VLOOKUP(E59,PRIJAVA!$B$35:$H$240,5,FALSE)) ->  | F59: =IF(E59="","",VLOOKUP(E59,PRIJAVA!$B$35:$H$240,7,FALSE)) ->  | O59: 0
A60: 53 | C60: =IF(E60="","",VLOOKUP(E60,PRIJAVA!$B$35:$H$240,2,FALSE) & " " & VLOOKUP(E60,PRIJAVA!$B$35:$H$240,3,FALSE)) ->  | D60: =IF(E60="","",VLOOKUP(E60,PRIJAVA!$B$35:$H$240,5,FALSE)) ->  | F60: =IF(E60="","",VLOOKUP(E60,PRIJAVA!$B$35:$H$240,7,FALSE)) ->  | O60: 0
A61: 54 | C61: =IF(E61="","",VLOOKUP(E61,PRIJAVA!$B$35:$H$240,2,FALSE) & " " & VLOOKUP(E61,PRIJAVA!$B$35:$H$240,3,FALSE)) ->  | D61: =IF(E61="","",VLOOKUP(E61,PRIJAVA!$B$35:$H$240,5,FALSE)) ->  | F61: =IF(E61="","",VLOOKUP(E61,PRIJAVA!$B$35:$H$240,7,FALSE)) ->  | O61: 0
A62: 55 | C62: =IF(E62="","",VLOOKUP(E62,PRIJAVA!$B$35:$H$240,2,FALSE) & " " & VLOOKUP(E62,PRIJAVA!$B$35:$H$240,3,FALSE)) ->  | D62: =IF(E62="","",VLOOKUP(E62,PRIJAVA!$B$35:$H$240,5,FALSE)) ->  | F62: =IF(E62="","",VLOOKUP(E62,PRIJAVA!$B$35:$H$240,7,FALSE)) ->  | O62: 0
A63: 56 | C63: =IF(E63="","",VLOOKUP(E63,PRIJAVA!$B$35:$H$240,2,FALSE) & " " & VLOOKUP(E63,PRIJAVA!$B$35:$H$240,3,FALSE)) ->  | D63: =IF(E63="","",VLOOKUP(E63,PRIJAVA!$B$35:$H$240,5,FALSE)) ->  | F63: =IF(E63="","",VLOOKUP(E63,PRIJAVA!$B$35:$H$240,7,FALSE)) ->  | O63: 0
A64: 57 | C64: =IF(E64="","",VLOOKUP(E64,PRIJAVA!$B$35:$H$240,2,FALSE) & " " & VLOOKUP(E64,PRIJAVA!$B$35:$H$240,3,FALSE)) ->  | D64: =IF(E64="","",VLOOKUP(E64,PRIJAVA!$B$35:$H$240,5,FALSE)) ->  | F64: =IF(E64="","",VLOOKUP(E64,PRIJAVA!$B$35:$H$240,7,FALSE)) ->  | O64: 0
A65: 58 | C65: =IF(E65="","",VLOOKUP(E65,PRIJAVA!$B$35:$H$240,2,FALSE) & " " & VLOOKUP(E65,PRIJAVA!$B$35:$H$240,3,FALSE)) ->  | D65: =IF(E65="","",VLOOKUP(E65,PRIJAVA!$B$35:$H$240,5,FALSE)) ->  | F65: =IF(E65="","",VLOOKUP(E65,PRIJAVA!$B$35:$H$240,7,FALSE)) ->  | O65: 0
A66: 59 | C66: =IF(E66="","",VLOOKUP(E66,PRIJAVA!$B$35:$H$240,2,FALSE) & " " & VLOOKUP(E66,PRIJAVA!$B$35:$H$240,3,FALSE)) ->  | D66: =IF(E66="","",VLOOKUP(E66,PRIJAVA!$B$35:$H$240,5,FALSE)) ->  | F66: =IF(E66="","",VLOOKUP(E66,PRIJAVA!$B$35:$H$240,7,FALSE)) ->  | O66: 0
A67: 60 | C67: =IF(E67="","",VLOOKUP(E67,PRIJAVA!$B$35:$H$240,2,FALSE) & " " & VLOOKUP(E67,PRIJAVA!$B$35:$H$240,3,FALSE)) ->  | D67: =IF(E67="","",VLOOKUP(E67,PRIJAVA!$B$35:$H$240,5,FALSE)) ->  | F67: =IF(E67="","",VLOOKUP(E67,PRIJAVA!$B$35:$H$240,7,FALSE)) ->  | O67: 0
A68: 61 | C68: =IF(E68="","",VLOOKUP(E68,PRIJAVA!$B$35:$H$240,2,FALSE) & " " & VLOOKUP(E68,PRIJAVA!$B$35:$H$240,3,FALSE)) ->  | D68: =IF(E68="","",VLOOKUP(E68,PRIJAVA!$B$35:$H$240,5,FALSE)) ->  | F68: =IF(E68="","",VLOOKUP(E68,PRIJAVA!$B$35:$H$240,7,FALSE)) ->  | O68: 0
A69: 62 | C69: =IF(E69="","",VLOOKUP(E69,PRIJAVA!$B$35:$H$240,2,FALSE) & " " & VLOOKUP(E69,PRIJAVA!$B$35:$H$240,3,FALSE)) ->  | D69: =IF(E69="","",VLOOKUP(E69,PRIJAVA!$B$35:$H$240,5,FALSE)) ->  | F69: =IF(E69="","",VLOOKUP(E69,PRIJAVA!$B$35:$H$240,7,FALSE)) ->  | O69: 0
A70: 63 | C70: =IF(E70="","",VLOOKUP(E70,PRIJAVA!$B$35:$H$240,2,FALSE) & " " & VLOOKUP(E70,PRIJAVA!$B$35:$H$240,3,FALSE)) ->  | D70: =IF(E70="","",VLOOKUP(E70,PRIJAVA!$B$35:$H$240,5,FALSE)) ->  | F70: =IF(E70="","",VLOOKUP(E70,PRIJAVA!$B$35:$H$240,7,FALSE)) ->  | O70: 0
A71: 64 | C71: =IF(E71="","",VLOOKUP(E71,PRIJAVA!$B$35:$H$240,2,FALSE) & " " & VLOOKUP(E71,PRIJAVA!$B$35:$H$240,3,FALSE)) ->  | D71: =IF(E71="","",VLOOKUP(E71,PRIJAVA!$B$35:$H$240,5,FALSE)) ->  | F71: =IF(E71="","",VLOOKUP(E71,PRIJAVA!$B$35:$H$240,7,FALSE)) ->  | O71: 0
A72: 65 | C72: =IF(E72="","",VLOOKUP(E72,PRIJAVA!$B$35:$H$240,2,FALSE) & " " & VLOOKUP(E72,PRIJAVA!$B$35:$H$240,3,FALSE)) ->  | D72: =IF(E72="","",VLOOKUP(E72,PRIJAVA!$B$35:$H$240,5,FALSE)) ->  | F72: =IF(E72="","",VLOOKUP(E72,PRIJAVA!$B$35:$H$240,7,FALSE)) ->  | O72: =SUM(G72:N72) -> 0
A73: 66 | C73: =IF(E73="","",VLOOKUP(E73,PRIJAVA!$B$35:$H$240,2,FALSE) & " " & VLOOKUP(E73,PRIJAVA!$B$35:$H$240,3,FALSE)) ->  | D73: =IF(E73="","",VLOOKUP(E73,PRIJAVA!$B$35:$H$240,5,FALSE)) ->  | F73: =IF(E73="","",VLOOKUP(E73,PRIJAVA!$B$35:$H$240,7,FALSE)) ->  | O73: 0
A74: 67 | C74: =IF(E74="","",VLOOKUP(E74,PRIJAVA!$B$35:$H$240,2,FALSE) & " " & VLOOKUP(E74,PRIJAVA!$B$35:$H$240,3,FALSE)) ->  | D74: =IF(E74="","",VLOOKUP(E74,PRIJAVA!$B$35:$H$240,5,FALSE)) ->  | F74: =IF(E74="","",VLOOKUP(E74,PRIJAVA!$B$35:$H$240,7,FALSE)) ->  | O74: 0
A75: 68 | C75: =IF(E75="","",VLOOKUP(E75,PRIJAVA!$B$35:$H$240,2,FALSE) & " " & VLOOKUP(E75,PRIJAVA!$B$35:$H$240,3,FALSE)) ->  | D75: =IF(E75="","",VLOOKUP(E75,PRIJAVA!$B$35:$H$240,5,FALSE)) ->  | F75: =IF(E75="","",VLOOKUP(E75,PRIJAVA!$B$35:$H$240,7,FALSE)) ->  | O75: 0
A76: 69 | C76: =IF(E76="","",VLOOKUP(E76,PRIJAVA!$B$35:$H$240,2,FALSE) & " " & VLOOKUP(E76,PRIJAVA!$B$35:$H$240,3,FALSE)) ->  | D76: =IF(E76="","",VLOOKUP(E76,PRIJAVA!$B$35:$H$240,5,FALSE)) ->  | F76: =IF(E76="","",VLOOKUP(E76,PRIJAVA!$B$35:$H$240,7,FALSE)) ->  | O76: 0
A77: 70 | C77: =IF(E77="","",VLOOKUP(E77,PRIJAVA!$B$35:$H$240,2,FALSE) & " " & VLOOKUP(E77,PRIJAVA!$B$35:$H$240,3,FALSE)) ->  | D77: =IF(E77="","",VLOOKUP(E77,PRIJAVA!$B$35:$H$240,5,FALSE)) ->  | F77: =IF(E77="","",VLOOKUP(E77,PRIJAVA!$B$35:$H$240,7,FALSE)) ->  | O77: 0
A78: 71 | C78: =IF(E78="","",VLOOKUP(E78,PRIJAVA!$B$35:$H$240,2,FALSE) & " " & VLOOKUP(E78,PRIJAVA!$B$35:$H$240,3,FALSE)) ->  | D78: =IF(E78="","",VLOOKUP(E78,PRIJAVA!$B$35:$H$240,5,FALSE)) ->  | F78: =IF(E78="","",VLOOKUP(E78,PRIJAVA!$B$35:$H$240,7,FALSE)) ->  | O78: 0
A79: 72 | C79: =IF(E79="","",VLOOKUP(E79,PRIJAVA!$B$35:$H$240,2,FALSE) & " " & VLOOKUP(E79,PRIJAVA!$B$35:$H$240,3,FALSE)) ->  | D79: =IF(E79="","",VLOOKUP(E79,PRIJAVA!$B$35:$H$240,5,FALSE)) ->  | F79: =IF(E79="","",VLOOKUP(E79,PRIJAVA!$B$35:$H$240,7,FALSE)) ->  | O79: 0
A80: 73 | C80: =IF(E80="","",VLOOKUP(E80,PRIJAVA!$B$35:$H$240,2,FALSE) & " " & VLOOKUP(E80,PRIJAVA!$B$35:$H$240,3,FALSE)) ->  | D80: =IF(E80="","",VLOOKUP(E80,PRIJAVA!$B$35:$H$240,5,FALSE)) ->  | F80: =IF(E80="","",VLOOKUP(E80,PRIJAVA!$B$35:$H$240,7,FALSE)) ->  | O80: 0
A81: 74 | C81: =IF(E81="","",VLOOKUP(E81,PRIJAVA!$B$35:$H$240,2,FALSE) & " " & VLOOKUP(E81,PRIJAVA!$B$35:$H$240,3,FALSE)) ->  | D81: =IF(E81="","",VLOOKUP(E81,PRIJAVA!$B$35:$H$240,5,FALSE)) ->  | F81: =IF(E81="","",VLOOKUP(E81,PRIJAVA!$B$35:$H$240,7,FALSE)) ->  | O81: 0
A82: 75 | C82: =IF(E82="","",VLOOKUP(E82,PRIJAVA!$B$35:$H$240,2,FALSE) & " " & VLOOKUP(E82,PRIJAVA!$B$35:$H$240,3,FALSE)) ->  | D82: =IF(E82="","",VLOOKUP(E82,PRIJAVA!$B$35:$H$240,5,FALSE)) ->  | F82: =IF(E82="","",VLOOKUP(E82,PRIJAVA!$B$35:$H$240,7,FALSE)) ->  | O82: 0
A83: 76 | C83: =IF(E83="","",VLOOKUP(E83,PRIJAVA!$B$35:$H$240,2,FALSE) & " " & VLOOKUP(E83,PRIJAVA!$B$35:$H$240,3,FALSE)) ->  | D83: =IF(E83="","",VLOOKUP(E83,PRIJAVA!$B$35:$H$240,5,FALSE)) ->  | F83: =IF(E83="","",VLOOKUP(E83,PRIJAVA!$B$35:$H$240,7,FALSE)) ->  | O83: 0
A84: 77 | C84: =IF(E84="","",VLOOKUP(E84,PRIJAVA!$B$35:$H$240,2,FALSE) & " " & VLOOKUP(E84,PRIJAVA!$B$35:$H$240,3,FALSE)) ->  | D84: =IF(E84="","",VLOOKUP(E84,PRIJAVA!$B$35:$H$240,5,FALSE)) ->  | F84: =IF(E84="","",VLOOKUP(E84,PRIJAVA!$B$35:$H$240,7,FALSE)) ->  | O84: 0
A85: 78 | C85: =IF(E85="","",VLOOKUP(E85,PRIJAVA!$B$35:$H$240,2,FALSE) & " " & VLOOKUP(E85,PRIJAVA!$B$35:$H$240,3,FALSE)) ->  | D85: =IF(E85="","",VLOOKUP(E85,PRIJAVA!$B$35:$H$240,5,FALSE)) ->  | F85: =IF(E85="","",VLOOKUP(E85,PRIJAVA!$B$35:$H$240,7,FALSE)) ->  | O85: 0
A86: 79 | C86: =IF(E86="","",VLOOKUP(E86,PRIJAVA!$B$35:$H$240,2,FALSE) & " " & VLOOKUP(E86,PRIJAVA!$B$35:$H$240,3,FALSE)) ->  | D86: =IF(E86="","",VLOOKUP(E86,PRIJAVA!$B$35:$H$240,5,FALSE)) ->  | F86: =IF(E86="","",VLOOKUP(E86,PRIJAVA!$B$35:$H$240,7,FALSE)) ->  | O86: 0
A87: 80 | C87: =IF(E87="","",VLOOKUP(E87,PRIJAVA!$B$35:$H$240,2,FALSE) & " " & VLOOKUP(E87,PRIJAVA!$B$35:$H$240,3,FALSE)) ->  | D87: =IF(E87="","",VLOOKUP(E87,PRIJAVA!$B$35:$H$240,5,FALSE)) ->  | F87: =IF(E87="","",VLOOKUP(E87,PRIJAVA!$B$35:$H$240,7,FALSE)) ->  | O87: 0
A88: 81 | C88: =IF(E88="","",VLOOKUP(E88,PRIJAVA!$B$35:$H$240,2,FALSE) & " " & VLOOKUP(E88,PRIJAVA!$B$35:$H$240,3,FALSE)) ->  | D88: =IF(E88="","",VLOOKUP(E88,PRIJAVA!$B$35:$H$240,5,FALSE)) ->  | F88: =IF(E88="","",VLOOKUP(E88,PRIJAVA!$B$35:$H$240,7,FALSE)) ->  | O88: 0
A89: 82 | C89: =IF(E89="","",VLOOKUP(E89,PRIJAVA!$B$35:$H$240,2,FALSE) & " " & VLOOKUP(E89,PRIJAVA!$B$35:$H$240,3,FALSE)) ->  | D89: =IF(E89="","",VLOOKUP(E89,PRIJAVA!$B$35:$H$240,5,FALSE)) ->  | F89: =IF(E89="","",VLOOKUP(E89,PRIJAVA!$B$35:$H$240,7,FALSE)) ->  | O89: 0
A90: 83 | C90: =IF(E90="","",VLOOKUP(E90,PRIJAVA!$B$35:$H$240,2,FALSE) & " " & VLOOKUP(E90,PRIJAVA!$B$35:$H$240,3,FALSE)) ->  | D90: =IF(E90="","",VLOOKUP(E90,PRIJAVA!$B$35:$H$240,5,FALSE)) ->  | F90: =IF(E90="","",VLOOKUP(E90,PRIJAVA!$B$35:$H$240,7,FALSE)) ->  | O90: 0
A91: 84 | C91: =IF(E91="","",VLOOKUP(E91,PRIJAVA!$B$35:$H$240,2,FALSE) & " " & VLOOKUP(E91,PRIJAVA!$B$35:$H$240,3,FALSE)) ->  | D91: =IF(E91="","",VLOOKUP(E91,PRIJAVA!$B$35:$H$240,5,FALSE)) ->  | F91: =IF(E91="","",VLOOKUP(E91,PRIJAVA!$B$35:$H$240,7,FALSE)) ->  | O91: 0
A92: 85 | C92: =IF(E92="","",VLOOKUP(E92,PRIJAVA!$B$35:$H$240,2,FALSE) & " " & VLOOKUP(E92,PRIJAVA!$B$35:$H$240,3,FALSE)) ->  | D92: =IF(E92="","",VLOOKUP(E92,PRIJAVA!$B$35:$H$240,5,FALSE)) ->  | F92: =IF(E92="","",VLOOKUP(E92,PRIJAVA!$B$35:$H$240,7,FALSE)) ->  | O92: 0
A93: 86 | C93: =IF(E93="","",VLOOKUP(E93,PRIJAVA!$B$35:$H$240,2,FALSE) & " " & VLOOKUP(E93,PRIJAVA!$B$35:$H$240,3,FALSE)) ->  | D93: =IF(E93="","",VLOOKUP(E93,PRIJAVA!$B$35:$H$240,5,FALSE)) ->  | F93: =IF(E93="","",VLOOKUP(E93,PRIJAVA!$B$35:$H$240,7,FALSE)) ->  | O93: 0
A94: 87 | C94: =IF(E94="","",VLOOKUP(E94,PRIJAVA!$B$35:$H$240,2,FALSE) & " " & VLOOKUP(E94,PRIJAVA!$B$35:$H$240,3,FALSE)) ->  | D94: =IF(E94="","",VLOOKUP(E94,PRIJAVA!$B$35:$H$240,5,FALSE)) ->  | F94: =IF(E94="","",VLOOKUP(E94,PRIJAVA!$B$35:$H$240,7,FALSE)) ->  | O94: 0
A95: 88 | C95: =IF(E95="","",VLOOKUP(E95,PRIJAVA!$B$35:$H$240,2,FALSE) & " " & VLOOKUP(E95,PRIJAVA!$B$35:$H$240,3,FALSE)) ->  | D95: =IF(E95="","",VLOOKUP(E95,PRIJAVA!$B$35:$H$240,5,FALSE)) ->  | F95: =IF(E95="","",VLOOKUP(E95,PRIJAVA!$B$35:$H$240,7,FALSE)) ->  | O95: 0
A96: 89 | C96: =IF(E96="","",VLOOKUP(E96,PRIJAVA!$B$35:$H$240,2,FALSE) & " " & VLOOKUP(E96,PRIJAVA!$B$35:$H$240,3,FALSE)) ->  | D96: =IF(E96="","",VLOOKUP(E96,PRIJAVA!$B$35:$H$240,5,FALSE)) ->  | F96: =IF(E96="","",VLOOKUP(E96,PRIJAVA!$B$35:$H$240,7,FALSE)) ->  | O96: 0
A97: 90 | C97: =IF(E97="","",VLOOKUP(E97,PRIJAVA!$B$35:$H$240,2,FALSE) & " " & VLOOKUP(E97,PRIJAVA!$B$35:$H$240,3,FALSE)) ->  | D97: =IF(E97="","",VLOOKUP(E97,PRIJAVA!$B$35:$H$240,5,FALSE)) ->  | F97: =IF(E97="","",VLOOKUP(E97,PRIJAVA!$B$35:$H$240,7,FALSE)) ->  | O97: 0
A98: 91 | C98: =IF(E98="","",VLOOKUP(E98,PRIJAVA!$B$35:$H$240,2,FALSE) & " " & VLOOKUP(E98,PRIJAVA!$B$35:$H$240,3,FALSE)) ->  | D98: =IF(E98="","",VLOOKUP(E98,PRIJAVA!$B$35:$H$240,5,FALSE)) ->  | F98: =IF(E98="","",VLOOKUP(E98,PRIJAVA!$B$35:$H$240,7,FALSE)) ->  | O98: 0
A99: 92 | C99: =IF(E99="","",VLOOKUP(E99,PRIJAVA!$B$35:$H$240,2,FALSE) & " " & VLOOKUP(E99,PRIJAVA!$B$35:$H$240,3,FALSE)) ->  | D99: =IF(E99="","",VLOOKUP(E99,PRIJAVA!$B$35:$H$240,5,FALSE)) ->  | F99: =IF(E99="","",VLOOKUP(E99,PRIJAVA!$B$35:$H$240,7,FALSE)) ->  | O99: 0
A100: 93 | C100: =IF(E100="","",VLOOKUP(E100,PRIJAVA!$B$35:$H$240,2,FALSE) & " " & VLOOKUP(E100,PRIJAVA!$B$35:$H$240,3,FALSE)) ->  | D100: =IF(E100="","",VLOOKUP(E100,PRIJAVA!$B$35:$H$240,5,FALSE)) ->  | F100: =IF(E100="","",VLOOKUP(E100,PRIJAVA!$B$35:$H$240,7,FALSE)) ->  | O100: 0 | U100: =IF(T102="","",VLOOKUP(T102,PRIJAVA!$B$35:$H$240,7,FALSE)) -> SD Domžale
A101: 94 | C101: =IF(E101="","",VLOOKUP(E101,PRIJAVA!$B$35:$H$240,2,FALSE) & " " & VLOOKUP(E101,PRIJAVA!$B$35:$H$240,3,FALSE)) ->  | D101: =IF(E101="","",VLOOKUP(E101,PRIJAVA!$B$35:$H$240,5,FALSE)) ->  | F101: =IF(E101="","",VLOOKUP(E101,PRIJAVA!$B$35:$H$240,7,FALSE)) ->  | O101: 0 | T101: BIB | U101: Priimek in ime | V101: 1. ser | W101: 2. ser | X101: 3. ser | Y101: 4. ser | Z101: 1. ser | AA101: 2. ser | AB101: 3. ser | AC101: 4. ser | AD101: skupno | AE101: nc*
A102: 95 | C102: =IF(E102="","",VLOOKUP(E102,PRIJAVA!$B$35:$H$240,2,FALSE) & " " & VLOOKUP(E102,PRIJAVA!$B$35:$H$240,3,FALSE)) ->  | D102: =IF(E102="","",VLOOKUP(E102,PRIJAVA!$B$35:$H$240,5,FALSE)) ->  | F102: =IF(E102="","",VLOOKUP(E102,PRIJAVA!$B$35:$H$240,7,FALSE)) ->  | O102: 0 | T102: 10365 | U102: =IF(T102="","",VLOOKUP(T102,PRIJAVA!$B$35:$H$240,2,FALSE) & " " & VLOOKUP(T102,PRIJAVA!$B$35:$H$240,3,FALSE)) -> ŠTIFTAR Jurij | V102: =IF(U102="","",VLOOKUP(U102,$C$8:$N$106,5,FALSE)) -> 0 | W102: =IF(U102="","",VLOOKUP(U102,$C$8:$N$106,6,FALSE)) -> 0 | X102: =IF(U102="","",VLOOKUP(U102,$C$8:$N$106,7,FALSE)) -> 0 | Y102: =IF(U102="","",VLOOKUP(U102,$C$8:$N$106,8,FALSE)) -> 0 | Z102: =IF(U102="","",VLOOKUP(U102,$C$8:$N$106,9,FALSE)) -> 86 | AA102: =IF(U102="","",VLOOKUP(U102,$C$8:$L$106,10,FALSE)) -> 82 | AB102: =IF(V102="","",VLOOKUP(U102,$C$8:$M$106,11,FALSE)) -> 87 | AC102: =IF(U102="","",VLOOKUP(U102,$C$8:$N$106,12,FALSE)) -> 81 | AD102: =SUM(V102:AC102) -> 336 | AE102: =IF(U102="","",VLOOKUP(U102,$C$8:$P$106,14,FALSE)) -> 3
A103: 96 | C103: =IF(E103="","",VLOOKUP(E103,PRIJAVA!$B$35:$H$240,2,FALSE) & " " & VLOOKUP(E103,PRIJAVA!$B$35:$H$240,3,FALSE)) ->  | D103: =IF(E103="","",VLOOKUP(E103,PRIJAVA!$B$35:$H$240,5,FALSE)) ->  | F103: =IF(E103="","",VLOOKUP(E103,PRIJAVA!$B$35:$H$240,7,FALSE)) ->  | O103: 0 | T103: 10177 | U103: =IF(T103="","",VLOOKUP(T103,PRIJAVA!$B$35:$H$240,2,FALSE) & " " & VLOOKUP(T103,PRIJAVA!$B$35:$H$240,3,FALSE)) -> DIMIC Klemen | V103: =IF(U103="","",VLOOKUP(U103,$C$8:$N$106,5,FALSE)) -> 0 | W103: =IF(U103="","",VLOOKUP(U103,$C$8:$N$106,6,FALSE)) -> 0 | X103: =IF(U103="","",VLOOKUP(U103,$C$8:$N$106,7,FALSE)) -> 0 | Y103: =IF(U103="","",VLOOKUP(U103,$C$8:$N$106,8,FALSE)) -> 0 | Z103: =IF(U103="","",VLOOKUP(U103,$C$8:$N$106,9,FALSE)) -> 86 | AA103: =IF(U103="","",VLOOKUP(U103,$C$8:$L$106,10,FALSE)) -> 82 | AB103: =IF(V103="","",VLOOKUP(U103,$C$8:$M$106,11,FALSE)) -> 84 | AC103: =IF(U103="","",VLOOKUP(U103,$C$8:$N$106,12,FALSE)) -> 89 | AD103: =SUM(V103:AC103) -> 341 | AE103: =IF(U103="","",VLOOKUP(U103,$C$8:$P$106,14,FALSE)) -> 1
T104: 14973 | U104: =IF(T104="","",VLOOKUP(T104,PRIJAVA!$B$35:$H$240,2,FALSE) & " " & VLOOKUP(T104,PRIJAVA!$B$35:$H$240,3,FALSE)) ->  | V104: =IF(U104="","",VLOOKUP(U104,$C$8:$N$106,5,FALSE)) ->  | W104: =IF(U104="","",VLOOKUP(U104,$C$8:$N$106,6,FALSE)) ->  | X104: =IF(U104="","",VLOOKUP(U104,$C$8:$N$106,7,FALSE)) ->  | Y104: =IF(U104="","",VLOOKUP(U104,$C$8:$N$106,8,FALSE)) ->  | Z104: =IF(U104="","",VLOOKUP(U104,$C$8:$N$106,9,FALSE)) ->  | AA104: =IF(U104="","",VLOOKUP(U104,$C$8:$L$106,10,FALSE)) ->  | AB104: =IF(V104="","",VLOOKUP(U104,$C$8:$M$106,11,FALSE)) ->  | AC104: =IF(U104="","",VLOOKUP(U104,$C$8:$N$106,12,FALSE)) ->  | AD104: =SUM(V104:AC104) ->  | AE104: =IF(U104="","",VLOOKUP(U104,$C$8:$P$106,14,FALSE)) -> 
AC105: =SUM(AC102:AC104) ->  | AD105: =SUM(AD102:AD104) ->  | AE105: =SUM(AE102:AE104) -> 

Sheet 2.DL PUŠKA
A2: Iz zavihka Prijava se za tekmovalca v seznam za rezultate v stolpec E vpiše BIB številka od vrstice 5 dalje. Po vpisu BIB bo preneslo vse podatke v ta seznam, kjer se nato vpisujejo rezultati. Vpiše se rezultat serije v stolpec K, L, M, N ter nc*. Prav tako se za upoštevanje rezultata ekipno vpišejo samo BIB številke v stolpcu T za vse tri člane ekipe, ki je lahko mešana. Prenos ostalih podatkov je samodejen. Posamezno se lahko razvrsti, ekipno ostane nerazvrščeno. Dokument mora imeti omogočen makro.
C4: II. LIGA PUŠKA 4. SZ REGIJA
A5: mesto | C5: SD KAMNIK
C7: Priimek in ime | D7: Roj.skrita | E7: BIB | F7: Društvo, klub | G7: 1. ser | H7: 2. ser | I7: 3. ser | J7: 4. ser | K7: 1. ser | L7: 2. ser | M7: 3. ser | N7: 4. ser | O7: skupno | P7: nc*
A8: 1 | C8: =IF(E8="","",VLOOKUP(E8,PRIJAVA!$B$35:$H$240,2,FALSE) & " " & VLOOKUP(E8,PRIJAVA!$B$35:$H$240,3,FALSE)) -> JAKSETIČ Tristan | D8: =IF(E8="","",VLOOKUP(E8,PRIJAVA!$B$35:$H$240,5,FALSE)) -> 2010 | E8: 15975 | F8: =IF(E8="","",VLOOKUP(E8,PRIJAVA!$B$35:$H$240,7,FALSE)) -> SD Kamnik | K8: 96.6 | L8: 98.3 | M8: 94.5 | N8: 97.1 | O8: =SUM(G8:N8) -> 386.5 | P8: 7 | U8: EKIPNO:
A9: 2 | C9: =IF(E9="","",VLOOKUP(E9,PRIJAVA!$B$35:$H$240,2,FALSE) & " " & VLOOKUP(E9,PRIJAVA!$B$35:$H$240,3,FALSE)) -> AHLIN Veronika | D9: =IF(E9="","",VLOOKUP(E9,PRIJAVA!$B$35:$H$240,5,FALSE)) -> 2008 | E9: 14897 | F9: =IF(E9="","",VLOOKUP(E9,PRIJAVA!$B$35:$H$240,7,FALSE)) -> SD Kamnik | K9: 103.6 | L9: 99.6 | M9: 101.4 | N9: 102.9 | O9: 407.5 | P9: 22
A10: 3 | C10: =IF(E10="","",VLOOKUP(E10,PRIJAVA!$B$35:$H$240,2,FALSE) & " " & VLOOKUP(E10,PRIJAVA!$B$35:$H$240,3,FALSE)) -> JERMOL Gaber | D10: =IF(E10="","",VLOOKUP(E10,PRIJAVA!$B$35:$H$240,5,FALSE)) -> 2010 | E10: 15693 | F10: =IF(E10="","",VLOOKUP(E10,PRIJAVA!$B$35:$H$240,7,FALSE)) -> SD Kamnik | K10: 88.4 | L10: 95.5 | M10: 94.8 | N10: 86 | O10: 364.7 | P10: 6 | U10: =IF(T12="","",VLOOKUP(T12,PRIJAVA!$B$35:$H$240,7,FALSE)) -> SD Kamnik
A11: 4 | C11: =IF(E11="","",VLOOKUP(E11,PRIJAVA!$B$35:$H$240,2,FALSE) & " " & VLOOKUP(E11,PRIJAVA!$B$35:$H$240,3,FALSE)) -> ČEMAŽAR Neža | D11: 2008 | E11: 15650 | F11: =IF(E11="","",VLOOKUP(E11,PRIJAVA!$B$35:$H$240,7,FALSE)) -> SD Lotrič Železniki | K11: 86.9 | L11: 98.2 | M11: 98.3 | N11: 95.2 | O11: 378.6 | P11: 14 | T11: BIB | U11: Priimek in ime | V11: 1. ser | W11: 2. ser | X11: 3. ser | Y11: 4. ser | Z11: 1. ser | AA11: 2. ser | AB11: 3. ser | AC11: 4. ser | AD11: skupno | AE11: nc*
A12: 5 | C12: =IF(E12="","",VLOOKUP(E12,PRIJAVA!$B$35:$H$240,2,FALSE) & " " & VLOOKUP(E12,PRIJAVA!$B$35:$H$240,3,FALSE)) -> KOBLAR Amadej | D12: =IF(E12="","",VLOOKUP(E12,PRIJAVA!$B$35:$H$240,5,FALSE)) -> 2007 | E12: 14548 | F12: =IF(E12="","",VLOOKUP(E12,PRIJAVA!$B$35:$H$240,7,FALSE)) -> SD Lotrič Železniki | K12: 93.2 | L12: 95.5 | M12: 94.2 | N12: 93.6 | O12: 376.5 | P12: 9 | T12: 15975 | U12: =IF(T12="","",VLOOKUP(T12,PRIJAVA!$B$35:$H$240,2,FALSE) & " " & VLOOKUP(T12,PRIJAVA!$B$35:$H$240,3,FALSE)) -> JAKSETIČ Tristan | V12: =IF(U12="","",VLOOKUP(U12,$C$8:$N$106,5,FALSE)) -> 0 | W12: =IF(U12="","",VLOOKUP(U12,$C$8:$N$106,6,FALSE)) -> 0 | X12: =IF(U12="","",VLOOKUP(U12,$C$8:$N$106,7,FALSE)) -> 0 | Y12: =IF(U12="","",VLOOKUP(U12,$C$8:$N$106,8,FALSE)) -> 0 | Z12: =IF(U12="","",VLOOKUP(U12,$C$8:$N$106,9,FALSE)) -> 96.6 | AA12: =IF(U12="","",VLOOKUP(U12,$C$8:$L$106,10,FALSE)) -> 98.3 | AB12: =IF(V12="","",VLOOKUP(U12,$C$8:$M$106,11,FALSE)) -> 94.5 | AC12: =IF(U12="","",VLOOKUP(U12,$C$8:$N$106,12,FALSE)) -> 97.1 | AD12: =SUM(V12:AC12) -> 386.5 | AE12: =IF(U12="","",VLOOKUP(U12,$C$8:$P$106,14,FALSE)) -> 7
A13: 6 | C13: =IF(E13="","",VLOOKUP(E13,PRIJAVA!$B$35:$H$240,2,FALSE) & " " & VLOOKUP(E13,PRIJAVA!$B$35:$H$240,3,FALSE)) -> ŠUBIC Toni | D13: =IF(E13="","",VLOOKUP(E13,PRIJAVA!$B$35:$H$240,5,FALSE)) -> 2007 | E13: 15788 | F13: =IF(E13="","",VLOOKUP(E13,PRIJAVA!$B$35:$H$240,7,FALSE)) -> SD Lotrič Železniki | K13: 97.2 | L13: 92.5 | M13: 95.1 | N13: 95.9 | O13: 380.7 | P13: 8 | T13: 14897 | U13: =IF(T13="","",VLOOKUP(T13,PRIJAVA!$B$35:$H$240,2,FALSE) & " " & VLOOKUP(T13,PRIJAVA!$B$35:$H$240,3,FALSE)) -> AHLIN Veronika | V13: =IF(U13="","",VLOOKUP(U13,$C$8:$N$106,5,FALSE)) -> 0 | W13: =IF(U13="","",VLOOKUP(U13,$C$8:$N$106,6,FALSE)) -> 0 | X13: =IF(U13="","",VLOOKUP(U13,$C$8:$N$106,7,FALSE)) -> 0 | Y13: =IF(U13="","",VLOOKUP(U13,$C$8:$N$106,8,FALSE)) -> 0 | Z13: =IF(U13="","",VLOOKUP(U13,$C$8:$N$106,9,FALSE)) -> 103.6 | AA13: =IF(U13="","",VLOOKUP(U13,$C$8:$L$106,10,FALSE)) -> 99.6 | AB13: =IF(V13="","",VLOOKUP(U13,$C$8:$M$106,11,FALSE)) -> 101.4 | AC13: =IF(U13="","",VLOOKUP(U13,$C$8:$N$106,12,FALSE)) -> 102.9 | AD13: =SUM(V13:AC13) -> 407.5 | AE13: =IF(U13="","",VLOOKUP(U13,$C$8:$P$106,14,FALSE)) -> 22
A14: 7 | C14: =IF(E14="","",VLOOKUP(E14,PRIJAVA!$B$35:$H$240,2,FALSE) & " " & VLOOKUP(E14,PRIJAVA!$B$35:$H$240,3,FALSE)) -> ZUPIN Nejc | D14: =IF(E14="","",VLOOKUP(E14,PRIJAVA!$B$35:$H$240,5,FALSE)) -> 2009 | E14: 16215 | F14: =IF(E14="","",VLOOKUP(E14,PRIJAVA!$B$35:$H$240,7,FALSE)) -> SD Preddvor | K14: 96.5 | L14: 90.8 | M14: 88.5 | N14: 95.3 | O14: 371.1 | P14: 5 | T14: 10313 | U14: =IF(T14="","",VLOOKUP(T14,PRIJAVA!$B$35:$H$240,2,FALSE) & " " & VLOOKUP(T14,PRIJAVA!$B$35:$H$240,3,FALSE)) -> FABJAN Boštjan | V14: =IF(U14="","",VLOOKUP(U14,$C$8:$N$106,5,FALSE)) -> 0 | W14: =IF(U14="","",VLOOKUP(U14,$C$8:$N$106,6,FALSE)) -> 0 | X14: =IF(U14="","",VLOOKUP(U14,$C$8:$N$106,7,FALSE)) -> 0 | Y14: =IF(U14="","",VLOOKUP(U14,$C$8:$N$106,8,FALSE)) -> 0 | Z14: =IF(U14="","",VLOOKUP(U14,$C$8:$N$106,9,FALSE)) -> 101.6 | AA14: =IF(U14="","",VLOOKUP(U14,$C$8:$L$106,10,FALSE)) -> 101.1 | AB14: =IF(V14="","",VLOOKUP(U14,$C$8:$M$106,11,FALSE)) -> 100.3 | AC14: =IF(U14="","",VLOOKUP(U14,$C$8:$N$106,12,FALSE)) -> 99.2 | AD14: =SUM(V14:AC14) -> 402.2 | AE14: =IF(U14="","",VLOOKUP(U14,$C$8:$P$106,14,FALSE)) -> 19
A15: 8 | C15: =IF(E15="","",VLOOKUP(E15,PRIJAVA!$B$35:$H$240,2,FALSE) & " " & VLOOKUP(E15,PRIJAVA!$B$35:$H$240,3,FALSE)) -> GAŠPERLIN Lana | D15: =IF(E15="","",VLOOKUP(E15,PRIJAVA!$B$35:$H$240,5,FALSE)) -> 2008 | E15: 15983 | F15: =IF(E15="","",VLOOKUP(E15,PRIJAVA!$B$35:$H$240,7,FALSE)) -> SD Preddvor | K15: 98.9 | L15: 95.5 | M15: 93.8 | N15: 90.2 | O15: 378.4 | P15: 8 | AC15: =SUM(AC12:AC14) -> 299.2 | AD15: =SUM(AD12:AD14) -> 1196.2 | AE15: =SUM(AE12:AE14) -> 48
A16: 9 | C16: =IF(E16="","",VLOOKUP(E16,PRIJAVA!$B$35:$H$240,2,FALSE) & " " & VLOOKUP(E16,PRIJAVA!$B$35:$H$240,3,FALSE)) -> RAJGELJ Sergej | D16: =IF(E16="","",VLOOKUP(E16,PRIJAVA!$B$35:$H$240,5,FALSE)) -> 2005 | E16: 13844 | F16: =IF(E16="","",VLOOKUP(E16,PRIJAVA!$B$35:$H$240,7,FALSE)) -> SD Preddvor | K16: 96.3 | L16: 93.4 | M16: 90.2 | N16: 95.6 | O16: 375.5 | P16: 8
A17: 10 | C17: =IF(E17="","",VLOOKUP(E17,PRIJAVA!$B$35:$H$240,2,FALSE) & " " & VLOOKUP(E17,PRIJAVA!$B$35:$H$240,3,FALSE)) -> AHAČIČ SREDNIK Nika | D17: =IF(E17="","",VLOOKUP(E17,PRIJAVA!$B$35:$H$240,5,FALSE)) -> 1960 | E17: 14863 | F17: =IF(E17="","",VLOOKUP(E17,PRIJAVA!$B$35:$H$240,7,FALSE)) -> SD Lotrič Železniki | K17: 84.9 | L17: 96.8 | M17: 93 | N17: 92.9 | O17: 367.6 | P17: 8
A18: 11 | C18: =IF(E18="","",VLOOKUP(E18,PRIJAVA!$B$35:$H$240,2,FALSE) & " " & VLOOKUP(E18,PRIJAVA!$B$35:$H$240,3,FALSE)) -> GRAŠIČ Lovro | D18: =IF(E18="","",VLOOKUP(E18,PRIJAVA!$B$35:$H$240,5,FALSE)) -> 2008 | E18: 16229 | F18: =IF(E18="","",VLOOKUP(E18,PRIJAVA!$B$35:$H$240,7,FALSE)) -> SD Škofja Loka | K18: 93.5 | L18: 93.8 | M18: 96.1 | N18: 97.8 | O18: 381.2 | P18: 6 | U18: =IF(T20="","",VLOOKUP(T20,PRIJAVA!$B$35:$H$240,7,FALSE)) -> SD Preddvor
A19: 12 | C19: =IF(E19="","",VLOOKUP(E19,PRIJAVA!$B$35:$H$240,2,FALSE) & " " & VLOOKUP(E19,PRIJAVA!$B$35:$H$240,3,FALSE)) -> GABER Luka | D19: =IF(E19="","",VLOOKUP(E19,PRIJAVA!$B$35:$H$240,5,FALSE)) -> 2008 | E19: 14600 | F19: =IF(E19="","",VLOOKUP(E19,PRIJAVA!$B$35:$H$240,7,FALSE)) -> SD Škofja Loka | K19: 100.6 | L19: 99.4 | M19: 102.2 | N19: 99.8 | O19: 402 | P19: 20 | T19: BIB | U19: Priimek in ime | V19: 1. ser | W19: 2. ser | X19: 3. ser | Y19: 4. ser | Z19: 1. ser | AA19: 2. ser | AB19: 3. ser | AC19: 4. ser | AD19: skupno | AE19: nc*
A20: 13 | C20: =IF(E20="","",VLOOKUP(E20,PRIJAVA!$B$35:$H$240,2,FALSE) & " " & VLOOKUP(E20,PRIJAVA!$B$35:$H$240,3,FALSE)) -> KOPRIVNIKAR Žiga | D20: =IF(E20="","",VLOOKUP(E20,PRIJAVA!$B$35:$H$240,5,FALSE)) -> 2008 | E20: 14599 | F20: =IF(E20="","",VLOOKUP(E20,PRIJAVA!$B$35:$H$240,7,FALSE)) -> SD Škofja Loka | K20: 95.6 | L20: 86.3 | M20: 94.5 | N20: 95 | O20: 371.4 | P20: 5 | T20: 16215 | U20: =IF(T20="","",VLOOKUP(T20,PRIJAVA!$B$35:$H$240,2,FALSE) & " " & VLOOKUP(T20,PRIJAVA!$B$35:$H$240,3,FALSE)) -> ZUPIN Nejc | V20: =IF(U20="","",VLOOKUP(U20,$C$8:$N$106,5,FALSE)) -> 0 | W20: =IF(U20="","",VLOOKUP(U20,$C$8:$N$106,6,FALSE)) -> 0 | X20: =IF(U20="","",VLOOKUP(U20,$C$8:$N$106,7,FALSE)) -> 0 | Y20: =IF(U20="","",VLOOKUP(U20,$C$8:$N$106,8,FALSE)) -> 0 | Z20: =IF(U20="","",VLOOKUP(U20,$C$8:$N$106,9,FALSE)) -> 96.5 | AA20: =IF(U20="","",VLOOKUP(U20,$C$8:$L$106,10,FALSE)) -> 90.8 | AB20: =IF(V20="","",VLOOKUP(U20,$C$8:$M$106,11,FALSE)) -> 88.5 | AC20: =IF(U20="","",VLOOKUP(U20,$C$8:$N$106,12,FALSE)) -> 95.3 | AD20: =SUM(V20:AC20) -> 371.1 | AE20: =IF(U20="","",VLOOKUP(U20,$C$8:$P$106,14,FALSE)) -> 5
A21: 14 | C21: =IF(E21="","",VLOOKUP(E21,PRIJAVA!$B$35:$H$240,2,FALSE) & " " & VLOOKUP(E21,PRIJAVA!$B$35:$H$240,3,FALSE)) -> BENEDIČIČ Manca | D21: =IF(E21="","",VLOOKUP(E21,PRIJAVA!$B$35:$H$240,5,FALSE)) -> 2008 | E21: 15648 | F21: =IF(E21="","",VLOOKUP(E21,PRIJAVA!$B$35:$H$240,7,FALSE)) -> SD Lotrič Železniki | K21: 99.2 | L21: 99.9 | M21: 97.2 | N21: 96.9 | O21: 393.2 | P21: 10 | T21: 15983 | U21: =IF(T21="","",VLOOKUP(T21,PRIJAVA!$B$35:$H$240,2,FALSE) & " " & VLOOKUP(T21,PRIJAVA!$B$35:$H$240,3,FALSE)) -> GAŠPERLIN Lana | V21: =IF(U21="","",VLOOKUP(U21,$C$8:$N$106,5,FALSE)) -> 0 | W21: =IF(U21="","",VLOOKUP(U21,$C$8:$N$106,6,FALSE)) -> 0 | X21: =IF(U21="","",VLOOKUP(U21,$C$8:$N$106,7,FALSE)) -> 0 | Y21: =IF(U21="","",VLOOKUP(U21,$C$8:$N$106,8,FALSE)) -> 0 | Z21: =IF(U21="","",VLOOKUP(U21,$C$8:$N$106,9,FALSE)) -> 98.9 | AA21: =IF(U21="","",VLOOKUP(U21,$C$8:$L$106,10,FALSE)) -> 95.5 | AB21: =IF(V21="","",VLOOKUP(U21,$C$8:$M$106,11,FALSE)) -> 93.8 | AC21: =IF(U21="","",VLOOKUP(U21,$C$8:$N$106,12,FALSE)) -> 90.2 | AD21: =SUM(V21:AC21) -> 378.4 | AE21: =IF(U21="","",VLOOKUP(U21,$C$8:$P$106,14,FALSE)) -> 8
A22: 15 | C22: =IF(E22="","",VLOOKUP(E22,PRIJAVA!$B$35:$H$240,2,FALSE) & " " & VLOOKUP(E22,PRIJAVA!$B$35:$H$240,3,FALSE)) -> BRATINA Jakob | D22: 2007 | E22: 14547 | F22: =IF(E22="","",VLOOKUP(E22,PRIJAVA!$B$35:$H$240,7,FALSE)) -> SD Lotrič Železniki | K22: 95.2 | L22: 97.2 | M22: 92 | N22: 91.5 | O22: =SUM(K22:N22) -> 375.9 | P22: 6 | T22: 13844 | U22: =IF(T22="","",VLOOKUP(T22,PRIJAVA!$B$35:$H$240,2,FALSE) & " " & VLOOKUP(T22,PRIJAVA!$B$35:$H$240,3,FALSE)) -> RAJGELJ Sergej | V22: =IF(U22="","",VLOOKUP(U22,$C$8:$N$106,5,FALSE)) -> 0 | W22: =IF(U22="","",VLOOKUP(U22,$C$8:$N$106,6,FALSE)) -> 0 | X22: =IF(U22="","",VLOOKUP(U22,$C$8:$N$106,7,FALSE)) -> 0 | Y22: =IF(U22="","",VLOOKUP(U22,$C$8:$N$106,8,FALSE)) -> 0 | Z22: =IF(U22="","",VLOOKUP(U22,$C$8:$N$106,9,FALSE)) -> 96.3 | AA22: =IF(U22="","",VLOOKUP(U22,$C$8:$L$106,10,FALSE)) -> 93.4 | AB22: =IF(V22="","",VLOOKUP(U22,$C$8:$M$106,11,FALSE)) -> 90.2 | AC22: =IF(U22="","",VLOOKUP(U22,$C$8:$N$106,12,FALSE)) -> 95.6 | AD22: =SUM(V22:AC22) -> 375.5 | AE22: =IF(U22="","",VLOOKUP(U22,$C$8:$P$106,14,FALSE)) -> 8
A23: 16 | C23: =IF(E23="","",VLOOKUP(E23,PRIJAVA!$B$35:$H$240,2,FALSE) & " " & VLOOKUP(E23,PRIJAVA!$B$35:$H$240,3,FALSE)) -> REŽEK Primož | D23: =IF(E23="","",VLOOKUP(E23,PRIJAVA!$B$35:$H$240,5,FALSE)) -> 1978 | E23: 16384 | F23: =IF(E23="","",VLOOKUP(E23,PRIJAVA!$B$35:$H$240,7,FALSE)) -> SD Lotrič Železniki | K23: 86 | L23: 84.9 | M23: 90.3 | N23: 86.3 | O23: =SUM(G23:N23) -> 347.5 | P23: 3 | AC23: =SUM(AC20:AC22) -> 281.1 | AD23: =SUM(AD20:AD22) -> 1125 | AE23: =SUM(AE20:AE22) -> 21
A24: 17 | C24: =IF(E24="","",VLOOKUP(E24,PRIJAVA!$B$35:$H$240,2,FALSE) & " " & VLOOKUP(E24,PRIJAVA!$B$35:$H$240,3,FALSE)) -> REŽEK Luka | D24: =IF(E24="","",VLOOKUP(E24,PRIJAVA!$B$35:$H$240,5,FALSE)) -> 2007 | E24: 16129 | F24: =IF(E24="","",VLOOKUP(E24,PRIJAVA!$B$35:$H$240,7,FALSE)) -> SD Lotrič Železniki | K24: 86.6 | L24: 93.2 | M24: 89.2 | N24: 92.3 | O24: =SUM(G24:N24) -> 361.3 | P24: 8
A25: 18 | C25: =IF(E25="","",VLOOKUP(E25,PRIJAVA!$B$35:$H$240,2,FALSE) & " " & VLOOKUP(E25,PRIJAVA!$B$35:$H$240,3,FALSE)) -> ŠOLAR Teja | D25: =IF(E25="","",VLOOKUP(E25,PRIJAVA!$B$35:$H$240,5,FALSE)) -> 2008 | E25: 15649 | F25: =IF(E25="","",VLOOKUP(E25,PRIJAVA!$B$35:$H$240,7,FALSE)) -> SD Lotrič Železniki | K25: 101 | L25: 100.9 | M25: 100.2 | N25: 102 | O25: =SUM(G25:N25) -> 404.1 | P25: 24
A26: 19 | C26: =IF(E26="","",VLOOKUP(E26,PRIJAVA!$B$35:$H$240,2,FALSE) & " " & VLOOKUP(E26,PRIJAVA!$B$35:$H$240,3,FALSE)) -> FABJAN Boštjan | E26: 10313 | F26: =IF(E26="","",VLOOKUP(E26,PRIJAVA!$B$35:$H$240,7,FALSE)) -> SD Kamnik | K26: 101.6 | L26: 101.1 | M26: 100.3 | N26: 99.2 | O26: =SUM(G26:N26) -> 402.2 | P26: 19 | U26: =IF(T28="","",VLOOKUP(T28,PRIJAVA!$B$35:$H$240,7,FALSE)) -> SD Škofja Loka
A27: 20 | C27: =IF(E27="","",VLOOKUP(E27,PRIJAVA!$B$35:$H$240,2,FALSE) & " " & VLOOKUP(E27,PRIJAVA!$B$35:$H$240,3,FALSE)) ->  | D27: =IF(E27="","",VLOOKUP(E27,PRIJAVA!$B$35:$H$240,5,FALSE)) ->  | F27: =IF(E27="","",VLOOKUP(E27,PRIJAVA!$B$35:$H$240,7,FALSE)) ->  | O27: =SUM(G27:N27) -> 0 | T27: BIB | U27: Priimek in ime | V27: 1. ser | W27: 2. ser | X27: 3. ser | Y27: 4. ser | Z27: 1. ser | AA27: 2. ser | AB27: 3. ser | AC27: 4. ser | AD27: skupno | AE27: nc*
A28: 21 | C28: =IF(E28="","",VLOOKUP(E28,PRIJAVA!$B$35:$H$240,2,FALSE) & " " & VLOOKUP(E28,PRIJAVA!$B$35:$H$240,3,FALSE)) ->  | D28: =IF(E28="","",VLOOKUP(E28,PRIJAVA!$B$35:$H$240,5,FALSE)) ->  | F28: =IF(E28="","",VLOOKUP(E28,PRIJAVA!$B$35:$H$240,7,FALSE)) ->  | O28: =SUM(G28:N28) -> 0 | T28: 16229 | U28: =IF(T28="","",VLOOKUP(T28,PRIJAVA!$B$35:$H$240,2,FALSE) & " " & VLOOKUP(T28,PRIJAVA!$B$35:$H$240,3,FALSE)) -> GRAŠIČ Lovro | V28: =IF(U28="","",VLOOKUP(U28,$C$8:$N$106,5,FALSE)) -> 0 | W28: =IF(U28="","",VLOOKUP(U28,$C$8:$N$106,6,FALSE)) -> 0 | X28: =IF(U28="","",VLOOKUP(U28,$C$8:$N$106,7,FALSE)) -> 0 | Y28: =IF(U28="","",VLOOKUP(U28,$C$8:$N$106,8,FALSE)) -> 0 | Z28: =IF(U28="","",VLOOKUP(U28,$C$8:$N$106,9,FALSE)) -> 93.5 | AA28: =IF(U28="","",VLOOKUP(U28,$C$8:$L$106,10,FALSE)) -> 93.8 | AB28: =IF(V28="","",VLOOKUP(U28,$C$8:$M$106,11,FALSE)) -> 96.1 | AC28: =IF(U28="","",VLOOKUP(U28,$C$8:$N$106,12,FALSE)) -> 97.8 | AD28: =SUM(V28:AC28) -> 381.2 | AE28: =IF(U28="","",VLOOKUP(U28,$C$8:$P$106,14,FALSE)) -> 6
A29: 22 | C29: =IF(E29="","",VLOOKUP(E29,PRIJAVA!$B$35:$H$240,2,FALSE) & " " & VLOOKUP(E29,PRIJAVA!$B$35:$H$240,3,FALSE)) ->  | D29: =IF(E29="","",VLOOKUP(E29,PRIJAVA!$B$35:$H$240,5,FALSE)) ->  | F29: =IF(E29="","",VLOOKUP(E29,PRIJAVA!$B$35:$H$240,7,FALSE)) ->  | O29: 0 | T29: 14600 | U29: =IF(T29="","",VLOOKUP(T29,PRIJAVA!$B$35:$H$240,2,FALSE) & " " & VLOOKUP(T29,PRIJAVA!$B$35:$H$240,3,FALSE)) -> GABER Luka | V29: =IF(U29="","",VLOOKUP(U29,$C$8:$N$106,5,FALSE)) -> 0 | W29: =IF(U29="","",VLOOKUP(U29,$C$8:$N$106,6,FALSE)) -> 0 | X29: =IF(U29="","",VLOOKUP(U29,$C$8:$N$106,7,FALSE)) -> 0 | Y29: =IF(U29="","",VLOOKUP(U29,$C$8:$N$106,8,FALSE)) -> 0 | Z29: =IF(U29="","",VLOOKUP(U29,$C$8:$N$106,9,FALSE)) -> 100.6 | AA29: =IF(U29="","",VLOOKUP(U29,$C$8:$L$106,10,FALSE)) -> 99.4 | AB29: =IF(V29="","",VLOOKUP(U29,$C$8:$M$106,11,FALSE)) -> 102.2 | AC29: =IF(U29="","",VLOOKUP(U29,$C$8:$N$106,12,FALSE)) -> 99.8 | AD29: =SUM(V29:AC29) -> 402 | AE29: =IF(U29="","",VLOOKUP(U29,$C$8:$P$106,14,FALSE)) -> 20
A30: 23 | C30: =IF(E30="","",VLOOKUP(E30,PRIJAVA!$B$35:$H$240,2,FALSE) & " " & VLOOKUP(E30,PRIJAVA!$B$35:$H$240,3,FALSE)) ->  | D30: =IF(E30="","",VLOOKUP(E30,PRIJAVA!$B$35:$H$240,5,FALSE)) ->  | F30: =IF(E30="","",VLOOKUP(E30,PRIJAVA!$B$35:$H$240,7,FALSE)) ->  | O30: =SUM(G30:N30) -> 0 | T30: 14599 | U30: =IF(T30="","",VLOOKUP(T30,PRIJAVA!$B$35:$H$240,2,FALSE) & " " & VLOOKUP(T30,PRIJAVA!$B$35:$H$240,3,FALSE)) -> KOPRIVNIKAR Žiga | V30: =IF(U30="","",VLOOKUP(U30,$C$8:$N$106,5,FALSE)) -> 0 | W30: =IF(U30="","",VLOOKUP(U30,$C$8:$N$106,6,FALSE)) -> 0 | X30: =IF(U30="","",VLOOKUP(U30,$C$8:$N$106,7,FALSE)) -> 0 | Y30: =IF(U30="","",VLOOKUP(U30,$C$8:$N$106,8,FALSE)) -> 0 | Z30: =IF(U30="","",VLOOKUP(U30,$C$8:$N$106,9,FALSE)) -> 95.6 | AA30: =IF(U30="","",VLOOKUP(U30,$C$8:$L$106,10,FALSE)) -> 86.3 | AB30: =IF(V30="","",VLOOKUP(U30,$C$8:$M$106,11,FALSE)) -> 94.5 | AC30: =IF(U30="","",VLOOKUP(U30,$C$8:$N$106,12,FALSE)) -> 95 | AD30: =SUM(V30:AC30) -> 371.4 | AE30: =IF(U30="","",VLOOKUP(U30,$C$8:$P$106,14,FALSE)) -> 5
A31: 24 | C31: =IF(E31="","",VLOOKUP(E31,PRIJAVA!$B$35:$H$240,2,FALSE) & " " & VLOOKUP(E31,PRIJAVA!$B$35:$H$240,3,FALSE)) ->  | D31: =IF(E31="","",VLOOKUP(E31,PRIJAVA!$B$35:$H$240,5,FALSE)) ->  | F31: =IF(E31="","",VLOOKUP(E31,PRIJAVA!$B$35:$H$240,7,FALSE)) ->  | O31: =SUM(G31:N31) -> 0 | AC31: =SUM(AC28:AC30) -> 292.6 | AD31: =SUM(AD28:AD30) -> 1154.6 | AE31: =SUM(AE28:AE30) -> 31
A32: 25 | C32: =IF(E32="","",VLOOKUP(E32,PRIJAVA!$B$35:$H$240,2,FALSE) & " " & VLOOKUP(E32,PRIJAVA!$B$35:$H$240,3,FALSE)) ->  | D32: =IF(E32="","",VLOOKUP(E32,PRIJAVA!$B$35:$H$240,5,FALSE)) ->  | F32: =IF(E32="","",VLOOKUP(E32,PRIJAVA!$B$35:$H$240,7,FALSE)) ->  | O32: 0
A33: 26 | C33: =IF(E33="","",VLOOKUP(E33,PRIJAVA!$B$35:$H$240,2,FALSE) & " " & VLOOKUP(E33,PRIJAVA!$B$35:$H$240,3,FALSE)) ->  | D33: =IF(E33="","",VLOOKUP(E33,PRIJAVA!$B$35:$H$240,5,FALSE)) ->  | F33: =IF(E33="","",VLOOKUP(E33,PRIJAVA!$B$35:$H$240,7,FALSE)) ->  | O33: 0
A34: 27 | C34: =IF(E34="","",VLOOKUP(E34,PRIJAVA!$B$35:$H$240,2,FALSE) & " " & VLOOKUP(E34,PRIJAVA!$B$35:$H$240,3,FALSE)) ->  | D34: =IF(E34="","",VLOOKUP(E34,PRIJAVA!$B$35:$H$240,5,FALSE)) ->  | F34: =IF(E34="","",VLOOKUP(E34,PRIJAVA!$B$35:$H$240,7,FALSE)) ->  | O34: 0 | U34: =IF(T36="","",VLOOKUP(T36,PRIJAVA!$B$35:$H$240,7,FALSE)) -> SD Lotrič Železniki
A35: 28 | C35: =IF(E35="","",VLOOKUP(E35,PRIJAVA!$B$35:$H$240,2,FALSE) & " " & VLOOKUP(E35,PRIJAVA!$B$35:$H$240,3,FALSE)) ->  | D35: =IF(E35="","",VLOOKUP(E35,PRIJAVA!$B$35:$H$240,5,FALSE)) ->  | F35: =IF(E35="","",VLOOKUP(E35,PRIJAVA!$B$35:$H$240,7,FALSE)) ->  | O35: 0 | T35: BIB | U35: Priimek in ime | V35: 1. ser | W35: 2. ser | X35: 3. ser | Y35: 4. ser | Z35: 1. ser | AA35: 2. ser | AB35: 3. ser | AC35: 4. ser | AD35: skupno | AE35: nc*
A36: 29 | C36: =IF(E36="","",VLOOKUP(E36,PRIJAVA!$B$35:$H$240,2,FALSE) & " " & VLOOKUP(E36,PRIJAVA!$B$35:$H$240,3,FALSE)) ->  | D36: =IF(E36="","",VLOOKUP(E36,PRIJAVA!$B$35:$H$240,5,FALSE)) ->  | F36: =IF(E36="","",VLOOKUP(E36,PRIJAVA!$B$35:$H$240,7,FALSE)) ->  | O36: 0 | T36: 15648 | U36: =IF(T36="","",VLOOKUP(T36,PRIJAVA!$B$35:$H$240,2,FALSE) & " " & VLOOKUP(T36,PRIJAVA!$B$35:$H$240,3,FALSE)) -> BENEDIČIČ Manca | V36: =IF(U36="","",VLOOKUP(U36,$C$8:$N$106,5,FALSE)) -> 0 | W36: =IF(U36="","",VLOOKUP(U36,$C$8:$N$106,6,FALSE)) -> 0 | X36: =IF(U36="","",VLOOKUP(U36,$C$8:$N$106,7,FALSE)) -> 0 | Y36: =IF(U36="","",VLOOKUP(U36,$C$8:$N$106,8,FALSE)) -> 0 | Z36: =IF(U36="","",VLOOKUP(U36,$C$8:$N$106,9,FALSE)) -> 99.2 | AA36: =IF(U36="","",VLOOKUP(U36,$C$8:$L$106,10,FALSE)) -> 99.9 | AB36: =IF(V36="","",VLOOKUP(U36,$C$8:$M$106,11,FALSE)) -> 97.2 | AC36: =IF(U36="","",VLOOKUP(U36,$C$8:$N$106,12,FALSE)) -> 96.9 | AD36: =SUM(V36:AC36) -> 393.2 | AE36: =IF(U36="","",VLOOKUP(U36,$C$8:$P$106,14,FALSE)) -> 10
A37: 30 | C37: =IF(E37="","",VLOOKUP(E37,PRIJAVA!$B$35:$H$240,2,FALSE) & " " & VLOOKUP(E37,PRIJAVA!$B$35:$H$240,3,FALSE)) ->  | D37: =IF(E37="","",VLOOKUP(E37,PRIJAVA!$B$35:$H$240,5,FALSE)) ->  | F37: =IF(E37="","",VLOOKUP(E37,PRIJAVA!$B$35:$H$240,7,FALSE)) ->  | O37: 0 | T37: 14547 | U37: =IF(T37="","",VLOOKUP(T37,PRIJAVA!$B$35:$H$240,2,FALSE) & " " & VLOOKUP(T37,PRIJAVA!$B$35:$H$240,3,FALSE)) -> BRATINA Jakob | V37: =IF(U37="","",VLOOKUP(U37,$C$8:$N$106,5,FALSE)) -> 0 | W37: =IF(U37="","",VLOOKUP(U37,$C$8:$N$106,6,FALSE)) -> 0 | X37: =IF(U37="","",VLOOKUP(U37,$C$8:$N$106,7,FALSE)) -> 0 | Y37: =IF(U37="","",VLOOKUP(U37,$C$8:$N$106,8,FALSE)) -> 0 | Z37: =IF(U37="","",VLOOKUP(U37,$C$8:$N$106,9,FALSE)) -> 95.2 | AA37: =IF(U37="","",VLOOKUP(U37,$C$8:$L$106,10,FALSE)) -> 97.2 | AB37: =IF(V37="","",VLOOKUP(U37,$C$8:$M$106,11,FALSE)) -> 92 | AC37: =IF(U37="","",VLOOKUP(U37,$C$8:$N$106,12,FALSE)) -> 91.5 | AD37: =SUM(V37:AC37) -> 375.9 | AE37: =IF(U37="","",VLOOKUP(U37,$C$8:$P$106,14,FALSE)) -> 6
A38: 31 | C38: =IF(E38="","",VLOOKUP(E38,PRIJAVA!$B$35:$H$240,2,FALSE) & " " & VLOOKUP(E38,PRIJAVA!$B$35:$H$240,3,FALSE)) ->  | D38: =IF(E38="","",VLOOKUP(E38,PRIJAVA!$B$35:$H$240,5,FALSE)) ->  | F38: =IF(E38="","",VLOOKUP(E38,PRIJAVA!$B$35:$H$240,7,FALSE)) ->  | O38: 0 | T38: 15649 | U38: =IF(T38="","",VLOOKUP(T38,PRIJAVA!$B$35:$H$240,2,FALSE) & " " & VLOOKUP(T38,PRIJAVA!$B$35:$H$240,3,FALSE)) -> ŠOLAR Teja | V38: =IF(U38="","",VLOOKUP(U38,$C$8:$N$106,5,FALSE)) -> 0 | W38: =IF(U38="","",VLOOKUP(U38,$C$8:$N$106,6,FALSE)) -> 0 | X38: =IF(U38="","",VLOOKUP(U38,$C$8:$N$106,7,FALSE)) -> 0 | Y38: =IF(U38="","",VLOOKUP(U38,$C$8:$N$106,8,FALSE)) -> 0 | Z38: =IF(U38="","",VLOOKUP(U38,$C$8:$N$106,9,FALSE)) -> 101 | AA38: =IF(U38="","",VLOOKUP(U38,$C$8:$L$106,10,FALSE)) -> 100.9 | AB38: =IF(V38="","",VLOOKUP(U38,$C$8:$M$106,11,FALSE)) -> 100.2 | AC38: =IF(U38="","",VLOOKUP(U38,$C$8:$N$106,12,FALSE)) -> 102 | AD38: =SUM(V38:AC38) -> 404.1 | AE38: =IF(U38="","",VLOOKUP(U38,$C$8:$P$106,14,FALSE)) -> 24
A39: 32 | C39: =IF(E39="","",VLOOKUP(E39,PRIJAVA!$B$35:$H$240,2,FALSE) & " " & VLOOKUP(E39,PRIJAVA!$B$35:$H$240,3,FALSE)) ->  | D39: =IF(E39="","",VLOOKUP(E39,PRIJAVA!$B$35:$H$240,5,FALSE)) ->  | F39: =IF(E39="","",VLOOKUP(E39,PRIJAVA!$B$35:$H$240,7,FALSE)) ->  | O39: 0 | AC39: =SUM(AC36:AC38) -> 290.4 | AD39: =SUM(AD36:AD38) -> 1173.2 | AE39: =SUM(AE36:AE38) -> 40
A40: 33 | C40: =IF(E40="","",VLOOKUP(E40,PRIJAVA!$B$35:$H$240,2,FALSE) & " " & VLOOKUP(E40,PRIJAVA!$B$35:$H$240,3,FALSE)) ->  | D40: =IF(E40="","",VLOOKUP(E40,PRIJAVA!$B$35:$H$240,5,FALSE)) ->  | F40: =IF(E40="","",VLOOKUP(E40,PRIJAVA!$B$35:$H$240,7,FALSE)) ->  | O40: 0
A41: 34 | C41: =IF(E41="","",VLOOKUP(E41,PRIJAVA!$B$35:$H$240,2,FALSE) & " " & VLOOKUP(E41,PRIJAVA!$B$35:$H$240,3,FALSE)) ->  | D41: =IF(E41="","",VLOOKUP(E41,PRIJAVA!$B$35:$H$240,5,FALSE)) ->  | F41: =IF(E41="","",VLOOKUP(E41,PRIJAVA!$B$35:$H$240,7,FALSE)) ->  | O41: 0 | U41: =IF(T43="","",VLOOKUP(T43,PRIJAVA!$B$35:$H$240,7,FALSE)) -> 
A42: 35 | C42: =IF(E42="","",VLOOKUP(E42,PRIJAVA!$B$35:$H$240,2,FALSE) & " " & VLOOKUP(E42,PRIJAVA!$B$35:$H$240,3,FALSE)) ->  | D42: =IF(E42="","",VLOOKUP(E42,PRIJAVA!$B$35:$H$240,5,FALSE)) ->  | F42: =IF(E42="","",VLOOKUP(E42,PRIJAVA!$B$35:$H$240,7,FALSE)) ->  | O42: 0 | T42: BIB | U42: Priimek in ime | V42: 1. ser | W42: 2. ser | X42: 3. ser | Y42: 4. ser | Z42: 1. ser | AA42: 2. ser | AB42: 3. ser | AC42: 4. ser | AD42: skupno | AE42: nc*
A43: 36 | C43: =IF(E43="","",VLOOKUP(E43,PRIJAVA!$B$35:$H$240,2,FALSE) & " " & VLOOKUP(E43,PRIJAVA!$B$35:$H$240,3,FALSE)) ->  | D43: =IF(E43="","",VLOOKUP(E43,PRIJAVA!$B$35:$H$240,5,FALSE)) ->  | F43: =IF(E43="","",VLOOKUP(E43,PRIJAVA!$B$35:$H$240,7,FALSE)) ->  | O43: 0 | U43: =IF(T43="","",VLOOKUP(T43,PRIJAVA!$B$35:$H$240,2,FALSE) & " " & VLOOKUP(T43,PRIJAVA!$B$35:$H$240,3,FALSE)) ->  | V43: =IF(U43="","",VLOOKUP(U43,$C$8:$N$106,5,FALSE)) ->  | W43: =IF(U43="","",VLOOKUP(U43,$C$8:$N$106,6,FALSE)) ->  | X43: =IF(U43="","",VLOOKUP(U43,$C$8:$N$106,7,FALSE)) ->  | Y43: =IF(U43="","",VLOOKUP(U43,$C$8:$N$106,8,FALSE)) ->  | Z43: =IF(U43="","",VLOOKUP(U43,$C$8:$N$106,9,FALSE)) ->  | AA43: =IF(U43="","",VLOOKUP(U43,$C$8:$L$106,10,FALSE)) ->  | AB43: =IF(V43="","",VLOOKUP(U43,$C$8:$M$106,11,FALSE)) ->  | AC43: =IF(U43="","",VLOOKUP(U43,$C$8:$N$106,12,FALSE)) ->  | AD43: =SUM(V43:AC43) -> 0 | AE43: =IF(U43="","",VLOOKUP(U43,$C$8:$P$106,14,FALSE)) -> 
A44: 37 | C44: =IF(E44="","",VLOOKUP(E44,PRIJAVA!$B$35:$H$240,2,FALSE) & " " & VLOOKUP(E44,PRIJAVA!$B$35:$H$240,3,FALSE)) ->  | D44: =IF(E44="","",VLOOKUP(E44,PRIJAVA!$B$35:$H$240,5,FALSE)) ->  | F44: =IF(E44="","",VLOOKUP(E44,PRIJAVA!$B$35:$H$240,7,FALSE)) ->  | O44: 0 | U44: =IF(T44="","",VLOOKUP(T44,PRIJAVA!$B$35:$H$240,2,FALSE) & " " & VLOOKUP(T44,PRIJAVA!$B$35:$H$240,3,FALSE)) ->  | V44: =IF(U44="","",VLOOKUP(U44,$C$8:$N$106,5,FALSE)) ->  | W44: =IF(U44="","",VLOOKUP(U44,$C$8:$N$106,6,FALSE)) ->  | X44: =IF(U44="","",VLOOKUP(U44,$C$8:$N$106,7,FALSE)) ->  | Y44: =IF(U44="","",VLOOKUP(U44,$C$8:$N$106,8,FALSE)) ->  | Z44: =IF(U44="","",VLOOKUP(U44,$C$8:$N$106,9,FALSE)) ->  | AA44: =IF(U44="","",VLOOKUP(U44,$C$8:$L$106,10,FALSE)) ->  | AB44: =IF(V44="","",VLOOKUP(U44,$C$8:$M$106,11,FALSE)) ->  | AC44: =IF(U44="","",VLOOKUP(U44,$C$8:$N$106,12,FALSE)) ->  | AD44: =SUM(V44:AC44) -> 0 | AE44: =IF(U44="","",VLOOKUP(U44,$C$8:$P$106,14,FALSE)) -> 
A45: 38 | C45: =IF(E45="","",VLOOKUP(E45,PRIJAVA!$B$35:$H$240,2,FALSE) & " " & VLOOKUP(E45,PRIJAVA!$B$35:$H$240,3,FALSE)) ->  | D45: =IF(E45="","",VLOOKUP(E45,PRIJAVA!$B$35:$H$240,5,FALSE)) ->  | F45: =IF(E45="","",VLOOKUP(E45,PRIJAVA!$B$35:$H$240,7,FALSE)) ->  | O45: 0 | U45: =IF(T45="","",VLOOKUP(T45,PRIJAVA!$B$35:$H$240,2,FALSE) & " " & VLOOKUP(T45,PRIJAVA!$B$35:$H$240,3,FALSE)) ->  | V45: =IF(U45="","",VLOOKUP(U45,$C$8:$N$106,5,FALSE)) ->  | W45: =IF(U45="","",VLOOKUP(U45,$C$8:$N$106,6,FALSE)) ->  | X45: =IF(U45="","",VLOOKUP(U45,$C$8:$N$106,7,FALSE)) ->  | Y45: =IF(U45="","",VLOOKUP(U45,$C$8:$N$106,8,FALSE)) ->  | Z45: =IF(U45="","",VLOOKUP(U45,$C$8:$N$106,9,FALSE)) ->  | AA45: =IF(U45="","",VLOOKUP(U45,$C$8:$L$106,10,FALSE)) ->  | AB45: =IF(V45="","",VLOOKUP(U45,$C$8:$M$106,11,FALSE)) ->  | AC45: =IF(U45="","",VLOOKUP(U45,$C$8:$N$106,12,FALSE)) ->  | AD45: =SUM(V45:AC45) -> 0 | AE45: =IF(U45="","",VLOOKUP(U45,$C$8:$P$106,14,FALSE)) -> 
A46: 39 | C46: =IF(E46="","",VLOOKUP(E46,PRIJAVA!$B$35:$H$240,2,FALSE) & " " & VLOOKUP(E46,PRIJAVA!$B$35:$H$240,3,FALSE)) ->  | D46: =IF(E46="","",VLOOKUP(E46,PRIJAVA!$B$35:$H$240,5,FALSE)) ->  | F46: =IF(E46="","",VLOOKUP(E46,PRIJAVA!$B$35:$H$240,7,FALSE)) ->  | O46: 0 | AC46: =SUM(AC43:AC45) -> 0 | AD46: =SUM(AD43:AD45) -> 0 | AE46: =SUM(AE43:AE45) -> 0
A47: 40 | C47: =IF(E47="","",VLOOKUP(E47,PRIJAVA!$B$35:$H$240,2,FALSE) & " " & VLOOKUP(E47,PRIJAVA!$B$35:$H$240,3,FALSE)) ->  | D47: =IF(E47="","",VLOOKUP(E47,PRIJAVA!$B$35:$H$240,5,FALSE)) ->  | F47: =IF(E47="","",VLOOKUP(E47,PRIJAVA!$B$35:$H$240,7,FALSE)) ->  | O47: 0
A48: 41 | C48: =IF(E48="","",VLOOKUP(E48,PRIJAVA!$B$35:$H$240,2,FALSE) & " " & VLOOKUP(E48,PRIJAVA!$B$35:$H$240,3,FALSE)) ->  | D48: =IF(E48="","",VLOOKUP(E48,PRIJAVA!$B$35:$H$240,5,FALSE)) ->  | F48: =IF(E48="","",VLOOKUP(E48,PRIJAVA!$B$35:$H$240,7,FALSE)) ->  | O48: 0
A49: 42 | C49: =IF(E49="","",VLOOKUP(E49,PRIJAVA!$B$35:$H$240,2,FALSE) & " " & VLOOKUP(E49,PRIJAVA!$B$35:$H$240,3,FALSE)) ->  | D49: =IF(E49="","",VLOOKUP(E49,PRIJAVA!$B$35:$H$240,5,FALSE)) ->  | F49: =IF(E49="","",VLOOKUP(E49,PRIJAVA!$B$35:$H$240,7,FALSE)) ->  | O49: 0
A50: 43 | C50: =IF(E50="","",VLOOKUP(E50,PRIJAVA!$B$35:$H$240,2,FALSE) & " " & VLOOKUP(E50,PRIJAVA!$B$35:$H$240,3,FALSE)) ->  | D50: =IF(E50="","",VLOOKUP(E50,PRIJAVA!$B$35:$H$240,5,FALSE)) ->  | F50: =IF(E50="","",VLOOKUP(E50,PRIJAVA!$B$35:$H$240,7,FALSE)) ->  | O50: 0
A51: 44 | C51: =IF(E51="","",VLOOKUP(E51,PRIJAVA!$B$35:$H$240,2,FALSE) & " " & VLOOKUP(E51,PRIJAVA!$B$35:$H$240,3,FALSE)) ->  | D51: =IF(E51="","",VLOOKUP(E51,PRIJAVA!$B$35:$H$240,5,FALSE)) ->  | F51: =IF(E51="","",VLOOKUP(E51,PRIJAVA!$B$35:$H$240,7,FALSE)) ->  | O51: 0
A52: 45 | C52: =IF(E52="","",VLOOKUP(E52,PRIJAVA!$B$35:$H$240,2,FALSE) & " " & VLOOKUP(E52,PRIJAVA!$B$35:$H$240,3,FALSE)) ->  | D52: =IF(E52="","",VLOOKUP(E52,PRIJAVA!$B$35:$H$240,5,FALSE)) ->  | F52: =IF(E52="","",VLOOKUP(E52,PRIJAVA!$B$35:$H$240,7,FALSE)) ->  | O52: 0
A53: 46 | C53: =IF(E53="","",VLOOKUP(E53,PRIJAVA!$B$35:$H$240,2,FALSE) & " " & VLOOKUP(E53,PRIJAVA!$B$35:$H$240,3,FALSE)) ->  | D53: =IF(E53="","",VLOOKUP(E53,PRIJAVA!$B$35:$H$240,5,FALSE)) ->  | F53: =IF(E53="","",VLOOKUP(E53,PRIJAVA!$B$35:$H$240,7,FALSE)) ->  | O53: 0
A54: 47 | C54: =IF(E54="","",VLOOKUP(E54,PRIJAVA!$B$35:$H$240,2,FALSE) & " " & VLOOKUP(E54,PRIJAVA!$B$35:$H$240,3,FALSE)) ->  | D54: =IF(E54="","",VLOOKUP(E54,PRIJAVA!$B$35:$H$240,5,FALSE)) ->  | F54: =IF(E54="","",VLOOKUP(E54,PRIJAVA!$B$35:$H$240,7,FALSE)) ->  | O54: 0
A55: 48 | C55: =IF(E55="","",VLOOKUP(E55,PRIJAVA!$B$35:$H$240,2,FALSE) & " " & VLOOKUP(E55,PRIJAVA!$B$35:$H$240,3,FALSE)) ->  | D55: =IF(E55="","",VLOOKUP(E55,PRIJAVA!$B$35:$H$240,5,FALSE)) ->  | F55: =IF(E55="","",VLOOKUP(E55,PRIJAVA!$B$35:$H$240,7,FALSE)) ->  | O55: 0
A56: 49 | C56: =IF(E56="","",VLOOKUP(E56,PRIJAVA!$B$35:$H$240,2,FALSE) & " " & VLOOKUP(E56,PRIJAVA!$B$35:$H$240,3,FALSE)) ->  | D56: =IF(E56="","",VLOOKUP(E56,PRIJAVA!$B$35:$H$240,5,FALSE)) ->  | F56: =IF(E56="","",VLOOKUP(E56,PRIJAVA!$B$35:$H$240,7,FALSE)) ->  | O56: 0
A57: 50 | C57: =IF(E57="","",VLOOKUP(E57,PRIJAVA!$B$35:$H$240,2,FALSE) & " " & VLOOKUP(E57,PRIJAVA!$B$35:$H$240,3,FALSE)) ->  | D57: =IF(E57="","",VLOOKUP(E57,PRIJAVA!$B$35:$H$240,5,FALSE)) ->  | F57: =IF(E57="","",VLOOKUP(E57,PRIJAVA!$B$35:$H$240,7,FALSE)) ->  | O57: 0
A58: 51 | C58: =IF(E58="","",VLOOKUP(E58,PRIJAVA!$B$35:$H$240,2,FALSE) & " " & VLOOKUP(E58,PRIJAVA!$B$35:$H$240,3,FALSE)) ->  | D58: =IF(E58="","",VLOOKUP(E58,PRIJAVA!$B$35:$H$240,5,FALSE)) ->  | F58: =IF(E58="","",VLOOKUP(E58,PRIJAVA!$B$35:$H$240,7,FALSE)) ->  | O58: 0
A59: 52 | C59: =IF(E59="","",VLOOKUP(E59,PRIJAVA!$B$35:$H$240,2,FALSE) & " " & VLOOKUP(E59,PRIJAVA!$B$35:$H$240,3,FALSE)) ->  | D59: =IF(E59="","",VLOOKUP(E59,PRIJAVA!$B$35:$H$240,5,FALSE)) ->  | F59: =IF(E59="","",VLOOKUP(E59,PRIJAVA!$B$35:$H$240,7,FALSE)) ->  | O59: 0
A60: 53 | C60: =IF(E60="","",VLOOKUP(E60,PRIJAVA!$B$35:$H$240,2,FALSE) & " " & VLOOKUP(E60,PRIJAVA!$B$35:$H$240,3,FALSE)) ->  | D60: =IF(E60="","",VLOOKUP(E60,PRIJAVA!$B$35:$H$240,5,FALSE)) ->  | F60: =IF(E60="","",VLOOKUP(E60,PRIJAVA!$B$35:$H$240,7,FALSE)) ->  | O60: 0
A61: 54 | C61: =IF(E61="","",VLOOKUP(E61,PRIJAVA!$B$35:$H$240,2,FALSE) & " " & VLOOKUP(E61,PRIJAVA!$B$35:$H$240,3,FALSE)) ->  | D61: =IF(E61="","",VLOOKUP(E61,PRIJAVA!$B$35:$H$240,5,FALSE)) ->  | F61: =IF(E61="","",VLOOKUP(E61,PRIJAVA!$B$35:$H$240,7,FALSE)) ->  | O61: 0
A62: 55 | C62: =IF(E62="","",VLOOKUP(E62,PRIJAVA!$B$35:$H$240,2,FALSE) & " " & VLOOKUP(E62,PRIJAVA!$B$35:$H$240,3,FALSE)) ->  | D62: =IF(E62="","",VLOOKUP(E62,PRIJAVA!$B$35:$H$240,5,FALSE)) ->  | F62: =IF(E62="","",VLOOKUP(E62,PRIJAVA!$B$35:$H$240,7,FALSE)) ->  | O62: 0
A63: 56 | C63: =IF(E63="","",VLOOKUP(E63,PRIJAVA!$B$35:$H$240,2,FALSE) & " " & VLOOKUP(E63,PRIJAVA!$B$35:$H$240,3,FALSE)) ->  | D63: =IF(E63="","",VLOOKUP(E63,PRIJAVA!$B$35:$H$240,5,FALSE)) ->  | F63: =IF(E63="","",VLOOKUP(E63,PRIJAVA!$B$35:$H$240,7,FALSE)) ->  | O63: 0
A64: 57 | C64: =IF(E64="","",VLOOKUP(E64,PRIJAVA!$B$35:$H$240,2,FALSE) & " " & VLOOKUP(E64,PRIJAVA!$B$35:$H$240,3,FALSE)) ->  | D64: =IF(E64="","",VLOOKUP(E64,PRIJAVA!$B$35:$H$240,5,FALSE)) ->  | F64: =IF(E64="","",VLOOKUP(E64,PRIJAVA!$B$35:$H$240,7,FALSE)) ->  | O64: 0
A65: 58 | C65: =IF(E65="","",VLOOKUP(E65,PRIJAVA!$B$35:$H$240,2,FALSE) & " " & VLOOKUP(E65,PRIJAVA!$B$35:$H$240,3,FALSE)) ->  | D65: =IF(E65="","",VLOOKUP(E65,PRIJAVA!$B$35:$H$240,5,FALSE)) ->  | F65: =IF(E65="","",VLOOKUP(E65,PRIJAVA!$B$35:$H$240,7,FALSE)) ->  | O65: 0
A66: 59 | C66: =IF(E66="","",VLOOKUP(E66,PRIJAVA!$B$35:$H$240,2,FALSE) & " " & VLOOKUP(E66,PRIJAVA!$B$35:$H$240,3,FALSE)) ->  | D66: =IF(E66="","",VLOOKUP(E66,PRIJAVA!$B$35:$H$240,5,FALSE)) ->  | F66: =IF(E66="","",VLOOKUP(E66,PRIJAVA!$B$35:$H$240,7,FALSE)) ->  | O66: 0
A67: 60 | C67: =IF(E67="","",VLOOKUP(E67,PRIJAVA!$B$35:$H$240,2,FALSE) & " " & VLOOKUP(E67,PRIJAVA!$B$35:$H$240,3,FALSE)) ->  | D67: =IF(E67="","",VLOOKUP(E67,PRIJAVA!$B$35:$H$240,5,FALSE)) ->  | F67: =IF(E67="","",VLOOKUP(E67,PRIJAVA!$B$35:$H$240,7,FALSE)) ->  | O67: 0
A68: 61 | C68: =IF(E68="","",VLOOKUP(E68,PRIJAVA!$B$35:$H$240,2,FALSE) & " " & VLOOKUP(E68,PRIJAVA!$B$35:$H$240,3,FALSE)) ->  | D68: =IF(E68="","",VLOOKUP(E68,PRIJAVA!$B$35:$H$240,5,FALSE)) ->  | F68: =IF(E68="","",VLOOKUP(E68,PRIJAVA!$B$35:$H$240,7,FALSE)) ->  | O68: 0
A69: 62 | C69: =IF(E69="","",VLOOKUP(E69,PRIJAVA!$B$35:$H$240,2,FALSE) & " " & VLOOKUP(E69,PRIJAVA!$B$35:$H$240,3,FALSE)) ->  | D69: =IF(E69="","",VLOOKUP(E69,PRIJAVA!$B$35:$H$240,5,FALSE)) ->  | F69: =IF(E69="","",VLOOKUP(E69,PRIJAVA!$B$35:$H$240,7,FALSE)) ->  | O69: 0
A70: 63 | C70: =IF(E70="","",VLOOKUP(E70,PRIJAVA!$B$35:$H$240,2,FALSE) & " " & VLOOKUP(E70,PRIJAVA!$B$35:$H$240,3,FALSE)) ->  | D70: =IF(E70="","",VLOOKUP(E70,PRIJAVA!$B$35:$H$240,5,FALSE)) ->  | F70: =IF(E70="","",VLOOKUP(E70,PRIJAVA!$B$35:$H$240,7,FALSE)) ->  | O70: 0
A71: 64 | C71: =IF(E71="","",VLOOKUP(E71,PRIJAVA!$B$35:$H$240,2,FALSE) & " " & VLOOKUP(E71,PRIJAVA!$B$35:$H$240,3,FALSE)) ->  | D71: =IF(E71="","",VLOOKUP(E71,PRIJAVA!$B$35:$H$240,5,FALSE)) ->  | F71: =IF(E71="","",VLOOKUP(E71,PRIJAVA!$B$35:$H$240,7,FALSE)) ->  | O71: 0
A72: 65 | C72: =IF(E72="","",VLOOKUP(E72,PRIJAVA!$B$35:$H$240,2,FALSE) & " " & VLOOKUP(E72,PRIJAVA!$B$35:$H$240,3,FALSE)) ->  | D72: =IF(E72="","",VLOOKUP(E72,PRIJAVA!$B$35:$H$240,5,FALSE)) ->  | F72: =IF(E72="","",VLOOKUP(E72,PRIJAVA!$B$35:$H$240,7,FALSE)) ->  | O72: =SUM(G72:N72) -> 0
A73: 66 | C73: =IF(E73="","",VLOOKUP(E73,PRIJAVA!$B$35:$H$240,2,FALSE) & " " & VLOOKUP(E73,PRIJAVA!$B$35:$H$240,3,FALSE)) ->  | D73: =IF(E73="","",VLOOKUP(E73,PRIJAVA!$B$35:$H$240,5,FALSE)) ->  | F73: =IF(E73="","",VLOOKUP(E73,PRIJAVA!$B$35:$H$240,7,FALSE)) ->  | O73: 0
A74: 67 | C74: =IF(E74="","",VLOOKUP(E74,PRIJAVA!$B$35:$H$240,2,FALSE) & " " & VLOOKUP(E74,PRIJAVA!$B$35:$H$240,3,FALSE)) ->  | D74: =IF(E74="","",VLOOKUP(E74,PRIJAVA!$B$35:$H$240,5,FALSE)) ->  | F74: =IF(E74="","",VLOOKUP(E74,PRIJAVA!$B$35:$H$240,7,FALSE)) ->  | O74: 0
A75: 68 | C75: =IF(E75="","",VLOOKUP(E75,PRIJAVA!$B$35:$H$240,2,FALSE) & " " & VLOOKUP(E75,PRIJAVA!$B$35:$H$240,3,FALSE)) ->  | D75: =IF(E75="","",VLOOKUP(E75,PRIJAVA!$B$35:$H$240,5,FALSE)) ->  | F75: =IF(E75="","",VLOOKUP(E75,PRIJAVA!$B$35:$H$240,7,FALSE)) ->  | O75: 0
A76: 69 | C76: =IF(E76="","",VLOOKUP(E76,PRIJAVA!$B$35:$H$240,2,FALSE) & " " & VLOOKUP(E76,PRIJAVA!$B$35:$H$240,3,FALSE)) ->  | D76: =IF(E76="","",VLOOKUP(E76,PRIJAVA!$B$35:$H$240,5,FALSE)) ->  | F76: =IF(E76="","",VLOOKUP(E76,PRIJAVA!$B$35:$H$240,7,FALSE)) ->  | O76: 0
A77: 70 | C77: =IF(E77="","",VLOOKUP(E77,PRIJAVA!$B$35:$H$240,2,FALSE) & " " & VLOOKUP(E77,PRIJAVA!$B$35:$H$240,3,FALSE)) ->  | D77: =IF(E77="","",VLOOKUP(E77,PRIJAVA!$B$35:$H$240,5,FALSE)) ->  | F77: =IF(E77="","",VLOOKUP(E77,PRIJAVA!$B$35:$H$240,7,FALSE)) ->  | O77: 0
A78: 71 | C78: =IF(E78="","",VLOOKUP(E78,PRIJAVA!$B$35:$H$240,2,FALSE) & " " & VLOOKUP(E78,PRIJAVA!$B$35:$H$240,3,FALSE)) ->  | D78: =IF(E78="","",VLOOKUP(E78,PRIJAVA!$B$35:$H$240,5,FALSE)) ->  | F78: =IF(E78="","",VLOOKUP(E78,PRIJAVA!$B$35:$H$240,7,FALSE)) ->  | O78: 0
A79: 72 | C79: =IF(E79="","",VLOOKUP(E79,PRIJAVA!$B$35:$H$240,2,FALSE) & " " & VLOOKUP(E79,PRIJAVA!$B$35:$H$240,3,FALSE)) ->  | D79: =IF(E79="","",VLOOKUP(E79,PRIJAVA!$B$35:$H$240,5,FALSE)) ->  | F79: =IF(E79="","",VLOOKUP(E79,PRIJAVA!$B$35:$H$240,7,FALSE)) ->  | O79: 0
A80: 73 | C80: =IF(E80="","",VLOOKUP(E80,PRIJAVA!$B$35:$H$240,2,FALSE) & " " & VLOOKUP(E80,PRIJAVA!$B$35:$H$240,3,FALSE)) ->  | D80: =IF(E80="","",VLOOKUP(E80,PRIJAVA!$B$35:$H$240,5,FALSE)) ->  | F80: =IF(E80="","",VLOOKUP(E80,PRIJAVA!$B$35:$H$240,7,FALSE)) ->  | O80: 0
A81: 74 | C81: =IF(E81="","",VLOOKUP(E81,PRIJAVA!$B$35:$H$240,2,FALSE) & " " & VLOOKUP(E81,PRIJAVA!$B$35:$H$240,3,FALSE)) ->  | D81: =IF(E81="","",VLOOKUP(E81,PRIJAVA!$B$35:$H$240,5,FALSE)) ->  | F81: =IF(E81="","",VLOOKUP(E81,PRIJAVA!$B$35:$H$240,7,FALSE)) ->  | O81: 0
A82: 75 | C82: =IF(E82="","",VLOOKUP(E82,PRIJAVA!$B$35:$H$240,2,FALSE) & " " & VLOOKUP(E82,PRIJAVA!$B$35:$H$240,3,FALSE)) ->  | D82: =IF(E82="","",VLOOKUP(E82,PRIJAVA!$B$35:$H$240,5,FALSE)) ->  | F82: =IF(E82="","",VLOOKUP(E82,PRIJAVA!$B$35:$H$240,7,FALSE)) ->  | O82: 0
A83: 76 | C83: =IF(E83="","",VLOOKUP(E83,PRIJAVA!$B$35:$H$240,2,FALSE) & " " & VLOOKUP(E83,PRIJAVA!$B$35:$H$240,3,FALSE)) ->  | D83: =IF(E83="","",VLOOKUP(E83,PRIJAVA!$B$35:$H$240,5,FALSE)) ->  | F83: =IF(E83="","",VLOOKUP(E83,PRIJAVA!$B$35:$H$240,7,FALSE)) ->  | O83: 0
A84: 77 | C84: =IF(E84="","",VLOOKUP(E84,PRIJAVA!$B$35:$H$240,2,FALSE) & " " & VLOOKUP(E84,PRIJAVA!$B$35:$H$240,3,FALSE)) ->  | D84: =IF(E84="","",VLOOKUP(E84,PRIJAVA!$B$35:$H$240,5,FALSE)) ->  | F84: =IF(E84="","",VLOOKUP(E84,PRIJAVA!$B$35:$H$240,7,FALSE)) ->  | O84: 0
A85: 78 | C85: =IF(E85="","",VLOOKUP(E85,PRIJAVA!$B$35:$H$240,2,FALSE) & " " & VLOOKUP(E85,PRIJAVA!$B$35:$H$240,3,FALSE)) ->  | D85: =IF(E85="","",VLOOKUP(E85,PRIJAVA!$B$35:$H$240,5,FALSE)) ->  | F85: =IF(E85="","",VLOOKUP(E85,PRIJAVA!$B$35:$H$240,7,FALSE)) ->  | O85: 0
A86: 79 | C86: =IF(E86="","",VLOOKUP(E86,PRIJAVA!$B$35:$H$240,2,FALSE) & " " & VLOOKUP(E86,PRIJAVA!$B$35:$H$240,3,FALSE)) ->  | D86: =IF(E86="","",VLOOKUP(E86,PRIJAVA!$B$35:$H$240,5,FALSE)) ->  | F86: =IF(E86="","",VLOOKUP(E86,PRIJAVA!$B$35:$H$240,7,FALSE)) ->  | O86: 0
A87: 80 | C87: =IF(E87="","",VLOOKUP(E87,PRIJAVA!$B$35:$H$240,2,FALSE) & " " & VLOOKUP(E87,PRIJAVA!$B$35:$H$240,3,FALSE)) ->  | D87: =IF(E87="","",VLOOKUP(E87,PRIJAVA!$B$35:$H$240,5,FALSE)) ->  | F87: =IF(E87="","",VLOOKUP(E87,PRIJAVA!$B$35:$H$240,7,FALSE)) ->  | O87: 0
A88: 81 | C88: =IF(E88="","",VLOOKUP(E88,PRIJAVA!$B$35:$H$240,2,FALSE) & " " & VLOOKUP(E88,PRIJAVA!$B$35:$H$240,3,FALSE)) ->  | D88: =IF(E88="","",VLOOKUP(E88,PRIJAVA!$B$35:$H$240,5,FALSE)) ->  | F88: =IF(E88="","",VLOOKUP(E88,PRIJAVA!$B$35:$H$240,7,FALSE)) ->  | O88: 0
A89: 82 | C89: =IF(E89="","",VLOOKUP(E89,PRIJAVA!$B$35:$H$240,2,FALSE) & " " & VLOOKUP(E89,PRIJAVA!$B$35:$H$240,3,FALSE)) ->  | D89: =IF(E89="","",VLOOKUP(E89,PRIJAVA!$B$35:$H$240,5,FALSE)) ->  | F89: =IF(E89="","",VLOOKUP(E89,PRIJAVA!$B$35:$H$240,7,FALSE)) ->  | O89: 0
A90: 83 | C90: =IF(E90="","",VLOOKUP(E90,PRIJAVA!$B$35:$H$240,2,FALSE) & " " & VLOOKUP(E90,PRIJAVA!$B$35:$H$240,3,FALSE)) ->  | D90: =IF(E90="","",VLOOKUP(E90,PRIJAVA!$B$35:$H$240,5,FALSE)) ->  | F90: =IF(E90="","",VLOOKUP(E90,PRIJAVA!$B$35:$H$240,7,FALSE)) ->  | O90: 0
A91: 84 | C91: =IF(E91="","",VLOOKUP(E91,PRIJAVA!$B$35:$H$240,2,FALSE) & " " & VLOOKUP(E91,PRIJAVA!$B$35:$H$240,3,FALSE)) ->  | D91: =IF(E91="","",VLOOKUP(E91,PRIJAVA!$B$35:$H$240,5,FALSE)) ->  | F91: =IF(E91="","",VLOOKUP(E91,PRIJAVA!$B$35:$H$240,7,FALSE)) ->  | O91: 0
A92: 85 | C92: =IF(E92="","",VLOOKUP(E92,PRIJAVA!$B$35:$H$240,2,FALSE) & " " & VLOOKUP(E92,PRIJAVA!$B$35:$H$240,3,FALSE)) ->  | D92: =IF(E92="","",VLOOKUP(E92,PRIJAVA!$B$35:$H$240,5,FALSE)) ->  | F92: =IF(E92="","",VLOOKUP(E92,PRIJAVA!$B$35:$H$240,7,FALSE)) ->  | O92: 0
A93: 86 | C93: =IF(E93="","",VLOOKUP(E93,PRIJAVA!$B$35:$H$240,2,FALSE) & " " & VLOOKUP(E93,PRIJAVA!$B$35:$H$240,3,FALSE)) ->  | D93: =IF(E93="","",VLOOKUP(E93,PRIJAVA!$B$35:$H$240,5,FALSE)) ->  | F93: =IF(E93="","",VLOOKUP(E93,PRIJAVA!$B$35:$H$240,7,FALSE)) ->  | O93: 0
A94: 87 | C94: =IF(E94="","",VLOOKUP(E94,PRIJAVA!$B$35:$H$240,2,FALSE) & " " & VLOOKUP(E94,PRIJAVA!$B$35:$H$240,3,FALSE)) ->  | D94: =IF(E94="","",VLOOKUP(E94,PRIJAVA!$B$35:$H$240,5,FALSE)) ->  | F94: =IF(E94="","",VLOOKUP(E94,PRIJAVA!$B$35:$H$240,7,FALSE)) ->  | O94: 0
A95: 88 | C95: =IF(E95="","",VLOOKUP(E95,PRIJAVA!$B$35:$H$240,2,FALSE) & " " & VLOOKUP(E95,PRIJAVA!$B$35:$H$240,3,FALSE)) ->  | D95: =IF(E95="","",VLOOKUP(E95,PRIJAVA!$B$35:$H$240,5,FALSE)) ->  | F95: =IF(E95="","",VLOOKUP(E95,PRIJAVA!$B$35:$H$240,7,FALSE)) ->  | O95: 0
A96: 89 | C96: =IF(E96="","",VLOOKUP(E96,PRIJAVA!$B$35:$H$240,2,FALSE) & " " & VLOOKUP(E96,PRIJAVA!$B$35:$H$240,3,FALSE)) ->  | D96: =IF(E96="","",VLOOKUP(E96,PRIJAVA!$B$35:$H$240,5,FALSE)) ->  | F96: =IF(E96="","",VLOOKUP(E96,PRIJAVA!$B$35:$H$240,7,FALSE)) ->  | O96: 0
A97: 90 | C97: =IF(E97="","",VLOOKUP(E97,PRIJAVA!$B$35:$H$240,2,FALSE) & " " & VLOOKUP(E97,PRIJAVA!$B$35:$H$240,3,FALSE)) ->  | D97: =IF(E97="","",VLOOKUP(E97,PRIJAVA!$B$35:$H$240,5,FALSE)) ->  | F97: =IF(E97="","",VLOOKUP(E97,PRIJAVA!$B$35:$H$240,7,FALSE)) ->  | O97: 0
A98: 91 | C98: =IF(E98="","",VLOOKUP(E98,PRIJAVA!$B$35:$H$240,2,FALSE) & " " & VLOOKUP(E98,PRIJAVA!$B$35:$H$240,3,FALSE)) ->  | D98: =IF(E98="","",VLOOKUP(E98,PRIJAVA!$B$35:$H$240,5,FALSE)) ->  | F98: =IF(E98="","",VLOOKUP(E98,PRIJAVA!$B$35:$H$240,7,FALSE)) ->  | O98: 0
A99: 92 | C99: =IF(E99="","",VLOOKUP(E99,PRIJAVA!$B$35:$H$240,2,FALSE) & " " & VLOOKUP(E99,PRIJAVA!$B$35:$H$240,3,FALSE)) ->  | D99: =IF(E99="","",VLOOKUP(E99,PRIJAVA!$B$35:$H$240,5,FALSE)) ->  | F99: =IF(E99="","",VLOOKUP(E99,PRIJAVA!$B$35:$H$240,7,FALSE)) ->  | O99: 0
A100: 93 | C100: =IF(E100="","",VLOOKUP(E100,PRIJAVA!$B$35:$H$240,2,FALSE) & " " & VLOOKUP(E100,PRIJAVA!$B$35:$H$240,3,FALSE)) ->  | D100: =IF(E100="","",VLOOKUP(E100,PRIJAVA!$B$35:$H$240,5,FALSE)) ->  | F100: =IF(E100="","",VLOOKUP(E100,PRIJAVA!$B$35:$H$240,7,FALSE)) ->  | O100: 0
A101: 94 | C101: =IF(E101="","",VLOOKUP(E101,PRIJAVA!$B$35:$H$240,2,FALSE) & " " & VLOOKUP(E101,PRIJAVA!$B$35:$H$240,3,FALSE)) ->  | D101: =IF(E101="","",VLOOKUP(E101,PRIJAVA!$B$35:$H$240,5,FALSE)) ->  | F101: =IF(E101="","",VLOOKUP(E101,PRIJAVA!$B$35:$H$240,7,FALSE)) ->  | O101: 0
A102: 95 | C102: =IF(E102="","",VLOOKUP(E102,PRIJAVA!$B$35:$H$240,2,FALSE) & " " & VLOOKUP(E102,PRIJAVA!$B$35:$H$240,3,FALSE)) ->  | D102: =IF(E102="","",VLOOKUP(E102,PRIJAVA!$B$35:$H$240,5,FALSE)) ->  | F102: =IF(E102="","",VLOOKUP(E102,PRIJAVA!$B$35:$H$240,7,FALSE)) ->  | O102: 0
A103: 96 | C103: =IF(E103="","",VLOOKUP(E103,PRIJAVA!$B$35:$H$240,2,FALSE) & " " & VLOOKUP(E103,PRIJAVA!$B$35:$H$240,3,FALSE)) ->  | D103: =IF(E103="","",VLOOKUP(E103,PRIJAVA!$B$35:$H$240,5,FALSE)) ->  | F103: =IF(E103="","",VLOOKUP(E103,PRIJAVA!$B$35:$H$240,7,FALSE)) ->  | O103: 0

Sheet sodniki (hidden)
A1: Izberite iz seznama
A2: KOPINJA Jože , DS , P02006
A3: SLANIČ Davorin , DS , P01890
A4: MAKARI Igor , DS , P02004
A5: CIGLAR Tomaž , RS , P02130
A6: JERIČ Boštjan , RS , P02131
A7: KELENC Janez , MS , B 8087
A8: KELENC Žan , DS , P02003
A9: GOLOB Irena , MS , B 8086
A10: GOLOB Enea , DS , P02017
A11: ČUČKO Aljaž , RS , P02102
A12: DRAŠKOVIČ Božidar , RS , P02140
A13: MAUČEC Jože , RS , P01933
A14: MAUČEC Gregor , DS , P01935
A15: BALAŠKO Štefan , DS , P01931
A16: ŽALIK Avgust , RS , P01932
A17: KOSI Mladen , DS , P01962
A18: KRIŽANIČ Toni , DS , P00034
A19: NAGY Robert , RS , P02002
A20: ŠTAMAN Vasja , DS , P01963
A21: VOGRINEC Alojz , DS , P00035
A22: ŽNIDARIČ Nuša , RS , P02079
A23: HABJANIČ Matjaž , RS , P00045
A24: HORVAT Tadej , MS , B 8085
A25: STANIČ Andrej , RS , P00041
A26: VERNIK Darko , DS , P00046
A27: VOČANEC Stiven , MS , B 8083
A28: KARDOŠ Branko , RS , P02068
A29: VERBANČIČ Denis , RS , P00622
A30: ČERNI Mitja , DS , P01860
A31: ČERNI Štefan , RS , P01858
A32: ČERNI Jernej , RS , P01861
A33: GRLEC Drago , RS , P00287
A34: SLEPEC Boštjan , S ,
A35: CAR Franc , RS ,
A36: BENKOVIČ Tomaž , RS ,
A37: LUBEJ Anton , S , P00062
A38: JAZBINŠEK Jernej , DS , P00061
A39: VRABIČ Tomaž , DS , P00065
A40: SREŠ Sonja , DS , P01980
A41: GRIL Boštjan , RS , P00063
A42: PODLESNIK Stanko , DS , P00069
A43: TRUP Janez , MS , B 2771
A44: VERNIK Milan , DS , P00082
A45: STRNAD Adrijana , MS , B 8090
A46: POTRČ Mojca , MS , B 8088
A47: OSRAJNIK Janez , RS , P02060
A48: SULJIČ Sabina , RS , P02088
A49: VIDMAR Boštjan , RS , P02062
A50: KOLAR Anton , RS , P02063
A51: BERDNIK Andreja , RS , P02064
A52: VIDMAR Karli , DS , P02065
A53: BERLAK Janko , RS , P00084
A54: PAVLIN Darko , DS , P00053
A55: PŠAJD Ludvik , DS , P00051
A56: CICMANOVIČ Zimet Ivo , S , P02072
A57: GOJKOŠEK Žan , RS , P02073
A58: ŠIRONIK Domen , RS , P02074
A59: VUK Tilen , RS , P02076
A60: MOHORKO Matevž , DS , P00080
A61: KMETEC Gregor , DS , P02008
A62: MOHORKO Uroš , DS , P02009
A63: LESKOVAR Iztok , RS ,
A64: SIMIČ George , DS , P01934
A65: KNEZ Beno , DS , P00047
A66: JELEN Marko , DS , P01836
A67: ARNUŠ Radivoj , S , P02120
A68: FIJAUŽ Peter , RS , P02121
A69: GOLOB Peter ml , DS , P02011
A70: GOLOB Peter , MS , A 5779
A71: MAJHENIČ Anton Jože , MS , A 3284
A72: STOŠIĆ Mile , DS , P02012
A73: KOSTANJEVEC Zlatko , DS , P00055
A74: GÖNC Simeon , MS , B 8084
A75: STRAKUŠEK Oto , MS , A 5781
A76: STRAKUŠEK Martin , DS , P00596
A77: STRAKUŠEK Vesna , DS , P00115
A78: SLANŠEK Bogdan , RS , P02141
A79: OCVIRK Marjan , RS , P02040
A80: MAROT Matic , RS , P02041
A81: PRIVŠEK Cvetko , RS , P02142
A82: HUDALES Martin , RS , P01851
A83: MENCINGER Robert , DS , P00120
A84: SLATINEK Viktor , RS , P01835
A85: GORIŠEK Boris , RS , P02043
A86: KALIN Marjan , RS , P02044
A87: JENKO Peter , RS , P02046
A88: TKALEC Peter , RS , P02143
A89: ŠTERMAN Renato , MS , B 5158
A90: FEVŽER Martin , MS , B 8062
A91: STAJNKO Igor , MS , B 8089
A92: ROŽIČ Branko , RS , P00170
A93: ŠTIFTAR Jurij , DS , P00171
A94: KOŠIR Aleš , DS , P01871
A95: KUČIČ Krištof , DS , P01977
A96: REPIČ Rožle , RS , P01870
A97: ZORE Anže , DS , P01867
A98: SERŠA Pavel , RS , P02020
A99: ZORE Franc , RS , P01968
A100: MARKELJ Vesna , RS , P02081
A101: KOŠIR Timotej , RS , P02083
A102: KOŠIR Branko , DS , P00174
A103: MARKELJ Franci , RS , P01909
A104: PRELEC Tomaž , DS , P01887
A105: PRELEC Romana , DS , P02023
A106: JEZERŠEK Pavel , RS , P02144
A107: BERNOT Anže , S ,
A108: JAZBEC Damijan , DS , P02104
A109: KLOPČIČ Nejc , RS , P02105
A110: KONJEVIĆ Miloš , RS , P02108
A111: JOHANSSON Stellan , RS , P02109
A112: ADLEŠIČ Jernej , MS , B 8081
A113: GORJUP Andreja , MS , A 5780
A114: KAPLAN Janez , RS , P02037
A115: NOSE Matej , RS , P02039
A116: KAPLAN Jože , S , P02036
A117: LESAR Anton , DS , P01964
A118: VIDMAR Samo Alain , RS , P02053
A119: IVANC Rok , RS , P02054
A120: BOŽIČ Matej , DS , P01971
A121: JANEŽ Herman , DS , P00073
A122: JURKOVIČ Mihael , DS , P00083
A123: KOS Draga , DS , P00066
A124: SLADIČ Polonca , DS , P02159
A125: TEKAVČIČ Andraž , DS , P00052
A126: MIKOLIČ Alojz , MS , B 3285
A127: VALANT Elvira , MS , A 4199
A128: BENČINA Sonja , RS , P02090
A129: BEVK Branimir , RS , P02091
A130: VIDMAR Stanko , RS , P02092
A131: VALANT Igor , DS , P00076
A132: VALANT Tilen , DS , P00064
A133: MAJERLE Anton , MS , B 3283
A134: VRHUNC Luka , RS , P02098
A135: MAJERLE Miha , RS , P02099
A136: KRIVEC Matic , RS , P02101
A137: HROVAT Primož , RS , P02100
A138: MUGERLE Alenka , DS , P02027
A139: LUNDER Roman , RS , P02028
A140: KEP Stanka , RS , P02029
A141: RUS Milan , RS , P02047
A142: HUDOKLIN Srečko , RS , P02048
A143: UHAN Nejc , RS , P02049
A144: BELE Mirko , RS , P02050
A145: UHAN Blaž , RS , P02052
A146: ZUPANČIČ Miran , DS , P00103
A147: RIBIČ Jože , DS , P00090
A148: JANC Aleš Mitja , RS , P02085
A149: BOŽIČ Janko , RS , P02086
A150: PROGAR Franc , DS , P00101
A151: FERENČAK Robert , MS , A 5156
A152: SEČEN Ernest , DS , P00089
A153: URH Vladimir , RS , P02033
A154: UGRIN David , DS , P00141
A155: FROLICH Stanislav , RS , P02145
A156: ČAKARDIĆ Jurij , DS , P00143
A157: SOVDAT Edi , DS , P00159
A158: LAZAR Diego , RS , P02066
A159: UDOVIČ Gorazd , DS , P00086
A160: NABERGOJ Gašper , DS , P00862
A161: FAJDIGA Petra , RS ,
A162: BOLA UJČIČ Denis , DS ,
A163: GRANDIČ Dejan , DS , P00133
A164: FRAGIACOMO Branka , RS , P02112
A165: LAMPREHT Bojan , DS , P00160
A166: RUDOLF Benjamina , DS , P01910
A167: FRANK Aljoša , DS , P00132
A168: RITOŠA Giuliano , MS , A 5157

Sheet clanice (hidden)
A1: Izberite iz seznama
A2: Strelsko društvo SLOVENSKE KONJICE, Slovenske Konjice
A3: Strelsko društvo DOLIČ, Mislinja
A4: Strelsko društvo LJUBO ŠERCER, Ljubljana
A5: Klub za praktično streljanje BURJA Bač, Pivka
A6: Strelski klub BREŽICE, Brežice
A7: Strelsko društvo JOŽETA MIHEVCA IDRIJA, Idrija
A8: Strelski klub IZOLA, Izola
A9: Strelska družina KAMNIK, Kamnik
A10: Strelsko društvo TRIGLAV JAVORNIK - KOROŠKA BELA, Koroška Bela
A11: Strelska družina ANKARAN, Ankaran
A12: Strelsko društvo praktičnega streljanja SLOVENSKA BISTRICA, Slovenska Bistrica
A13: Občinska strelska zveza Kočevje, Kočevje
A14: Strelsko društvo PREDOSLJE, Kranj
A15: Strelski klub DEVETKA, Maribor
A16: Strelski klub RIBNICA, Ribnica
A17: Strelsko društvo LESKOVEC, Leskovec
A18: Strelsko društvo DUŠAN POŽENEL REČICA PRI LAŠKEM, Rečica pri Laškem
A19: Strelsko društvo FENIX, Maribor
A20: Strelsko društvo CELJSKA ČETA Mala Breza
A21: Strelsko društvo CELJE, Celje
A22: Strelsko društvo ŠMARTNO-LITIJA, Litija
A23: Strelsko društvo TELEKOM, Ljubljana
A24: Strelsko društvo TABOR-JEŽICA, Ljubljana
A25: Strelsko društvo POETOVIO, Ptuj
A26: Strelsko društvo OLIMPIJA, Ljubljana
A27: Strelsko društvo trap ŠTEFAN KOVAČ MURSKA SOBOTA, Murska Sobota
A28: Strelsko društvo Rudar Presika, Ljutomer
A29: Strelsko društvo GORJANCI, Novo Mesto
A30: Strelski klub MORIS - KOČEVSKA REKA - KOČEVJE, Kočevska Reka
A31: Strelsko društvo trap ORMOŽ, Ormož
A32: Strelski klub MARIBOR, Maribor
A33: Strelsko društvo MESTO LJUTOMER, Ljutomer
A34: Strelsko društvo "KOLOMAN FLISAR" TIŠINA, Tišina
A35: Športno strelsko društvo MURSKA SOBOTA, Murska Sobota
A36: Strelsko društvo Trap Kungota, Kungota
A37: Strelsko društvo KOBRA LAŠKO, Laško
A38: Strelsko društvo ŠTEFAN KOVAČ TURNIŠČE, Turnišče
A39: Strelsko društvo ELEKTRO MARIBOR, Maribor
A40: Strelsko društvo FRANC LEŠNIK VUK HOTINJA VAS, Hotinja vas
A41: Strelsko društvo I. POHORSKI BATALJON RUŠE, Ruše
A42: Strelski klub KUNŠPERK, Bistrica ob Sotli
A43: Strelsko društvo JOŽE KERENČIČ MIKLAVŽ, Miklavž
A44: Strelsko društvo Fram
A45: Strelsko društvo SVEČINA, Zgornja Kungota
A46: Cerkniško društvo strelk in strelcev, Cerknica
A47: Strelsko društvo SALONIT ANHOVO, Deskle
A48: Strelsko društvo KOVINAR ORMOŽ, Ormož
A49: Strelsko društvo "SREDIŠČE" SREDIŠČE OB DRAVI, Središče ob Dravi
A50: Strelsko društvo TOVARNE SLADKORJA ORMOŽ, Ormož
A51: Strelsko društvo IX. KORPUSA PIRAN, Piran
A52: Strelsko društvo PORTOROŽ, Portorož
A53: Strelsko društvo POSTOJNA, Postojna
A54: Združenje slovenskih častnikov Trbovlje
A55: Strelski klub PTUJ, Ptuj
A56: Strelsko društvo RADOVLJICA, Radovljica
A57: Občinsko združenje slovenskih častnikov Hrastnik, Hrastnik
A58: Strelsko društvo SOIT, Medvode
A59: Strelsko društvo IMPOL SLOVENSKA BISTRICA, Slovenska Bistrica
A60: Društvo za taktično streljanje Laško
A61: Lovska zveza Koper
A62: Strelsko društvo KALIBER, Fokovci
A63: Strelsko društvo MAROK SEVNICA, Sevnica
A64: Športno društvo ČRENŠOVCI, Črenšovci
A65: Strelski športni klub TOLMIN, Tolmin
A66: Strelsko društvo 1956 TRBOVLJE, Trbovlje
A67: ŠPORTNO REKREATIVNO DRUŠTVO BREZA, Straža
A68: Strelsko društvo MROŽ VELENJE, Velenje
A69: Strelsko društvo "JEZERO" DOBROVNIK, Dobrovnik
A70: Strelsko društvo VRHNIKA, Vrhnika
A71: Strelsko društvo DOMŽALE, Domžale
A72: Strelsko društvo VREMŠČICA VREMSKI BRITOF, Famlje
A73: Športno strelski klub COAL PETIŠOVCI, Petišovci
A74: Strelsko društvo TRZIN, Trzin
A75: ŠPORTNO STRELSKO DRUŠTVO BURJA, Vipava
A76: Strelsko društvo KISOVEC, Zagorje
A77: Strelsko društvo LIBOJE, Petrovče
A78: Strelsko društvo PROARMIS
A79: Športno društvo Pohorski odred Maribor
A80: Območno združenje Slovenskih Častnikov Jesenice-Kranjska Gora
A81: Strelsko društvo ŠKOFJA LOKA, Škofja Loka
A82: Športno strelsko društvo RADGONA, Gornja Radgona
A83: Strelsko društvo JANKO JURKOVIČ VIDEM, Sveti Jurij ob Ščavnici
A84: Strelsko društvo GROSUPLJE, Grosuplje
A85: Strelsko društvo KOVINAR ŠTORE, Štore
A86: Strelsko društvo GANČANI, Beltinci
A87: Strelsko društvo KOVINOPLASTIKA LOŽ, Stari trg pri Ložu
A88: Strelsko društvo JOŽE KOVAČIČ ŠENTVID PRI STIČNI, Šentvid pri Stični
A89: Strelsko društvo SONJA VESEL IVANČNA GORICA, Ivančna Gorica
A90: Strelsko društvo RUDNIK HRASTNIK, Hrastnik
A91: Strelsko društvo POHORSKI BATALJON OPLOTNICA
A92: Strelsko društvo 4. JUNIJ ILIRSKA BISTRICA, Ilirska Bistrica
A93: Strelsko društvo PREDDVOR, Preddvor
A94: Strelsko društvo LENDAVA, Lendava
A95: Strelsko društvo TREBNJE, Trebnje
A96: Strelsko društvo GRANIČAR Cankova
A97: Strelsko društvo KIDRIČEVO, Kidričevo
A98: Strelska družina VELKA, Zgornja Velka
A99: Strelsko društvo SAGITTARIUS, Novo mesto
A100: Strelsko društvo SEBEBORCI, Martanjci
A101: Strelsko društvo JURŠINCI, Juršinci
A102: Trap klub ILIRSKA BISTRICA, Ilirska Bistrica
A103: Strelsko društvo SVOBODA SEŽANA, Sežana
A104: Trap klub BRDA, Goriška Brda
A105: "Trap" strelski klub ZLD GORICA, Nova Gorica
A106: Strelsko društvo Radlje od Dravi
A107: Strelsko društvo ŽALEC, Žalec
A108: Strelsko društvo "PANOVEC", Nova Gorica
A109: Strelsko društvo OKROGAR SKVARČA, Zagorje ob Savi
A110: Strelsko društvo RUDAR GLOBOKO, Globoko
A111: Strelsko društvo GORENJA VAS, Gorenja vas
A112: Strelsko društvo "KATJA" TOMAŽ, Sveti Tomaž
A113: Strelsko društvo Lotrič ŽELEZNIKI, Železniki
A114: Športno društvo ZPE, Ljubljana
A115: Strelsko društvo POLICIST, Maribor
A116: Strelsko društvo SLOVENJ GRADEC, Slovenj Gradec
A117: Strelsko društvo BUKOVEC DOBREPOLJE, Videm-Dobrepolje
A118: Strelsko društvo POHORJE VITANJE, Vitanje
A119: Strelsko društvo VETERAN MARIBOR, Maribor
